Local authority department which incurred the expenditure,Service Division,Cost Centre,Summary of the Purpose of Expenditure,Expense Type,Expense Code,Detailed Expense Type,Date of Transaction,Transaction Number,Beneficiary,Merchant Category Number,Merchant Category,Gross Amount,VAT,Net Amount
Children and Young Peoples Services,Head of Childrens Social Care,085333,Coxhoe Satelite Home,Supplies and Services,348037,Subsistence E348,01-Dec-2019,000006800161890,THE POACHERS POCKET,5812,Subsistence,42.40,0.00,42.40
Children and Young Peoples Services,Head of Early Help Inclusion & Vulnerable Children.,085957,Secure Management,Supplies and Services,324117,Provisions E324,01-Dec-2019,000006800162572,TESCO STORES 6329,5411,Catering costs - provisions,106.51,0.00,106.51
Transformation and Partnerships,Business Support,052986,CYPS - Locality and Operational Support,Supplies and Services,304403,Equipment and Materials,01-Dec-2019,000006800162632,AMZNMktplace,5999,Other consumables,29.02,0.00,29.02
Regeneration and Local Services,Culture Sport and Tourism,054815,Gala Theatre Stage School,Supplies and Services,304403,Equipment and Materials,01-Dec-2019,000006800162734,AMZNMktplace,5999,Other consumables,11.39,0.00,11.39
Children and Young Peoples Services,Head of Early Help Inclusion & Vulnerable Children.,085962,Aycliffe Secure - Durham,Supplies and Services,324117,Provisions E324,01-Dec-2019,000006800162790,TESCO STORES 6329,5411,Catering costs - provisions,49.23,0.00,49.23
Regeneration and Local Services,Development and Housing,030554,International Relations 030554,Transport,235057,Public Transport,01-Dec-2019,000006800163108,ARROW EMA,4121,Staff travelling,22.37,0.00,22.37
Resources BK0010,Resources Management CK0450,069000,Resources Management 069000,Supplies and Services,324117,Provisions E324,01-Dec-2019,000006800163360,CO-OP GROUP 010830,5411,Catering costs - provisions,14.40,0.00,14.40
Children and Young Peoples Services,Head of Childrens Social Care,085342,9 Cedar Drive Aycliffe,Supplies and Services,324117,Provisions E324,01-Dec-2019,000006800163438,SAINSBURYS LOC4622,5411,Catering costs - provisions,12.00,0.00,12.00
Children and Young Peoples Services,Head of Childrens Social Care,085334,West Rainton Satelite Home,Supplies and Services,348037,Subsistence E348,01-Dec-2019,000006800163622,MCDONALDS,5814,Subsistence,4.99,0.00,4.99
Children and Young Peoples Services,Head of Childrens Social Care,085332,Middlestone Moor CU,Supplies and Services,348037,Subsistence E348,01-Dec-2019,000006800163916,DANCING BETTY,5813,Subsistence,37.52,0.00,37.52
Children and Young Peoples Services,Head of Childrens Social Care,085332,Middlestone Moor CU,Supplies and Services,384999,Miscellaneous Expenses,01-Dec-2019,000006800163926,CINEWORLD CINEMAS,7922,Other expenses,30.60,0.00,30.60
Children and Young Peoples Services,Head of Childrens Social Care,085332,Middlestone Moor CU,Supplies and Services,384999,Miscellaneous Expenses,01-Dec-2019,000006800163934,CINEWORLD CINEMAS,7922,Other expenses,33.24,0.00,33.24
Transformation and Partnerships,Business Support,069010,Administration 069010,Supplies and Services,336005,Advertising E336,01-Dec-2019,000006800164438,FACEBK D4H92N64B2,7311,Advertising other than for staff,168.75,0.00,168.75
Children and Young Peoples Services,Head of Education and Skills,071801,Selby Cottage Childcare Centre,Supplies and Services,324117,Provisions E324,02-Dec-2019,000006805402206,WILKO RETAIL LIMITED,5399,Catering costs - provisions,12.00,0.00,12.00
Children and Young Peoples Services,Head of Education and Skills,075021,Youth Employment Initiative,Supplies and Services,384199,Miscellaneous Expenses,02-Dec-2019,000006805402272,HARTLEPOOL BC CNP,9399,Other hired and contracted services,11.00,0.00,11.00
Children and Young Peoples Services,Head of Education and Skills,075021,Youth Employment Initiative,Supplies and Services,384199,Miscellaneous Expenses,02-Dec-2019,000006805402276,HARTLEPOOL BC CNP,9399,Other hired and contracted services,11.00,0.00,11.00
Children and Young Peoples Services,Head of Education and Skills,075021,Youth Employment Initiative,Supplies and Services,384199,Miscellaneous Expenses,02-Dec-2019,000006805402282,HARTLEPOOL BC CNP,9399,Other hired and contracted services,11.00,0.00,11.00
Children and Young Peoples Services,Head of Education and Skills,075021,Youth Employment Initiative,Supplies and Services,384199,Miscellaneous Expenses,02-Dec-2019,000006805402290,WWW.DURHAM.GOV.UK,9399,Other hired and contracted services,33.00,0.00,33.00
Regeneration and Local Services,Culture Sport and Tourism,030708,VCD - Marketing & Information,Supplies and Services,384199,Miscellaneous Expenses,02-Dec-2019,000006805402396,MAILCHIMP MONTHLY,5968,Other hired and contracted services,252.57,42.10,210.47
Regeneration and Local Services,Culture Sport and Tourism,011263,Louisa Centre 011263,Supplies and Services,324117,Provisions E324,02-Dec-2019,000006805402416,JR HOLLAND FOODSERVICE,5499,Catering costs - provisions,38.05,0.00,38.05
Children and Young Peoples Services,Head of Childrens Social Care,085341,High Etherley Satelite Home,Supplies and Services,324117,Provisions E324,02-Dec-2019,000006805402442,SAINSBURYS 2199,5411,Catering costs - provisions,70.40,0.00,70.40
Children and Young Peoples Services,Head of Childrens Social Care,085341,High Etherley Satelite Home,Supplies and Services,328041,Clothing uniforms and laundry E328,02-Dec-2019,000006805402446,ARGOS BISHOP AUCKL,5310,Clothing uniforms and laundry,65.49,0.00,65.49
Regeneration and Local Services,Corporate Property and Land,021242,Catering - County Hall,Supplies and Services,324117,Provisions E324,02-Dec-2019,000006805402518,JR HOLLAND FOODSERVICE,5499,Catering costs - provisions,4.84,0.00,4.84
Regeneration and Local Services,Corporate Property and Land,021242,Catering - County Hall,Supplies and Services,324117,Provisions E324,02-Dec-2019,000006805402524,JR HOLLAND FOODSERVICE,5499,Catering costs - provisions,112.11,0.00,112.11
Regeneration and Local Services,Corporate Property and Land,021242,Catering - County Hall,Supplies and Services,324117,Provisions E324,02-Dec-2019,000006805402530,WWW.ADELIEFOODS.CO.UK,5499,Catering costs - provisions,86.15,0.00,86.15
Regeneration and Local Services,Corporate Property and Land,021242,Catering - County Hall,Supplies and Services,324117,Provisions E324,02-Dec-2019,000006805402532,WWW.ADELIEFOODS.CO.UK,5499,Catering costs - provisions,118.06,0.00,118.06
Regeneration and Local Services,Corporate Property and Land,021242,Catering - County Hall,Supplies and Services,324117,Provisions E324,02-Dec-2019,000006805402536,WWW.ADELIEFOODS.CO.UK,5499,Catering costs - provisions,70.18,0.00,70.18
Regeneration and Local Services,Corporate Property and Land,021242,Catering - County Hall,Supplies and Services,324117,Provisions E324,02-Dec-2019,000006805402544,WWW.ADELIEFOODS.CO.UK,5499,Catering costs - provisions,29.98,0.00,29.98
Regeneration and Local Services,Corporate Property and Land,021242,Catering - County Hall,Supplies and Services,324117,Provisions E324,02-Dec-2019,000006805402550,WWW.ADELIEFOODS.CO.UK,5499,Catering costs - provisions,46.24,0.00,46.24
Regeneration and Local Services,Corporate Property and Land,021242,Catering - County Hall,Supplies and Services,324117,Provisions E324,02-Dec-2019,000006805402554,WWW.ADELIEFOODS.CO.UK,5499,Catering costs - provisions,46.24,0.00,46.24
Regeneration and Local Services,Corporate Property and Land,021242,Catering - County Hall,Supplies and Services,324117,Provisions E324,02-Dec-2019,000006805402558,WWW.ADELIEFOODS.CO.UK,5499,Catering costs - provisions,46.24,0.00,46.24
Regeneration and Local Services,Corporate Property and Land,021242,Catering - County Hall,Supplies and Services,324117,Provisions E324,02-Dec-2019,000006805402562,WWW.ADELIEFOODS.CO.UK,5499,Catering costs - provisions,72.86,0.00,72.86
Regeneration and Local Services,Corporate Property and Land,021242,Catering - County Hall,Supplies and Services,324117,Provisions E324,02-Dec-2019,000006805402568,WWW.ADELIEFOODS.CO.UK,5499,Catering costs - provisions,72.86,0.00,72.86
Regeneration and Local Services,Corporate Property and Land,021242,Catering - County Hall,Supplies and Services,324117,Provisions E324,02-Dec-2019,000006805402574,WWW.ADELIEFOODS.CO.UK,5499,Catering costs - provisions,46.24,0.00,46.24
Regeneration and Local Services,Corporate Property and Land,021242,Catering - County Hall,Supplies and Services,324117,Provisions E324,02-Dec-2019,000006805402578,WWW.ADELIEFOODS.CO.UK,5499,Catering costs - provisions,46.24,0.00,46.24
Regeneration and Local Services,Corporate Property and Land,021242,Catering - County Hall,Supplies and Services,324117,Provisions E324,02-Dec-2019,000006805402582,WWW.ADELIEFOODS.CO.UK,5499,Catering costs - provisions,101.88,0.00,101.88
Regeneration and Local Services,Corporate Property and Land,021242,Catering - County Hall,Supplies and Services,324117,Provisions E324,02-Dec-2019,000006805402588,WWW.ADELIEFOODS.CO.UK,5499,Catering costs - provisions,46.24,0.00,46.24
Regeneration and Local Services,Corporate Property and Land,021242,Catering - County Hall,Supplies and Services,324117,Provisions E324,02-Dec-2019,000006805402590,WWW.ADELIEFOODS.CO.UK,5499,Catering costs - provisions,46.24,0.00,46.24
Regeneration and Local Services,Corporate Property and Land,021242,Catering - County Hall,Supplies and Services,324117,Provisions E324,02-Dec-2019,000006805402594,WWW.ADELIEFOODS.CO.UK,5499,Catering costs - provisions,46.24,0.00,46.24
Regeneration and Local Services,Corporate Property and Land,021242,Catering - County Hall,Supplies and Services,324117,Provisions E324,02-Dec-2019,000006805402600,WWW.ADELIEFOODS.CO.UK,5499,Catering costs - provisions,50.24,0.00,50.24
Regeneration and Local Services,Corporate Property and Land,021242,Catering - County Hall,Supplies and Services,324117,Provisions E324,02-Dec-2019,000006805402604,WWW.ADELIEFOODS.CO.UK,5499,Catering costs - provisions,80.22,0.00,80.22
Regeneration and Local Services,Corporate Property and Land,021242,Catering - County Hall,Supplies and Services,324117,Provisions E324,02-Dec-2019,000006805402610,WWW.ADELIEFOODS.CO.UK,5499,Catering costs - provisions,97.30,0.00,97.30
Regeneration and Local Services,Corporate Property and Land,021242,Catering - County Hall,Supplies and Services,324117,Provisions E324,02-Dec-2019,000006805402618,WWW.ADELIEFOODS.CO.UK,5499,Catering costs - provisions,-58.04,0.00,-58.04
Regeneration and Local Services,Culture Sport and Tourism,054812,Gala Theatre - Catering etc,Supplies and Services,324117,Provisions E324,02-Dec-2019,000006805402660,JR HOLLAND FOODSERVICE,5499,Catering costs - provisions,52.74,0.00,52.74
Regeneration and Local Services,Development and Housing,030773,CLLD North,Supplies and Services,304259,Equipment and Materials,02-Dec-2019,000006805402710,NEWCASTLE CITY COUNCIL,9399,Equipment-purchase and rental,120.00,0.00,120.00
Regeneration and Local Services,Development and Housing,030773,CLLD North,Transport,235057,Public Transport,02-Dec-2019,000006805402714,ARRIVA NORTH EAST,4131,Staff travelling,15.00,0.00,15.00
Children and Young Peoples Services,Head of Childrens Social Care,085361,LAC & Permanence Team 1,Supplies and Services,384999,Miscellaneous Expenses,02-Dec-2019,000006805402720,HM PASSPORT OFFICE,9399,Other expenses,49.00,0.00,49.00
Children and Young Peoples Services,Head of Childrens Social Care,085363,LAC & Permanence Team 3,Supplies and Services,384999,Miscellaneous Expenses,02-Dec-2019,000006805402724,HM PASSPORT OFFICE,9399,Other expenses,49.00,0.00,49.00
Children and Young Peoples Services,Head of Childrens Social Care,085362,LAC & Permanence Team 2,Supplies and Services,384999,Miscellaneous Expenses,02-Dec-2019,000006805402730,DARLINGTON BC INTERNET,9399,Other expenses,11.00,0.00,11.00
Children and Young Peoples Services,Head of Childrens Social Care,085362,LAC & Permanence Team 2,Supplies and Services,384999,Miscellaneous Expenses,02-Dec-2019,000006805402732,DARLINGTON BC INTERNET,9399,Other expenses,11.00,0.00,11.00
Children and Young Peoples Services,Head of Childrens Social Care,085362,LAC & Permanence Team 2,Supplies and Services,384999,Miscellaneous Expenses,02-Dec-2019,000006805402736,Durham County CNCL,9399,Other expenses,-11.00,0.00,-11.00
Children and Young Peoples Services,Head of Childrens Social Care,085362,LAC & Permanence Team 2,Supplies and Services,384999,Miscellaneous Expenses,02-Dec-2019,000006805402738,Durham County CNCL,9399,Other expenses,-11.00,0.00,-11.00
Children and Young Peoples Services,Head of Childrens Social Care,085352,Tow Law CU,Supplies and Services,328041,Clothing uniforms and laundry E328,02-Dec-2019,000006805402818,NEXT RETAIL LTD,5651,Clothing uniforms and laundry,197.05,0.00,197.05
Children and Young Peoples Services,Head of Childrens Social Care,085352,Tow Law CU,Supplies and Services,304259,Equipment and Materials,02-Dec-2019,000006805402822,CURRYS ONLINE,5732,Equipment-purchase and rental,179.00,0.00,179.00
Children and Young Peoples Services,Head of Childrens Social Care,085352,Tow Law CU,Supplies and Services,384999,Miscellaneous Expenses,02-Dec-2019,000006805402826,GAME RETAIL,5945,Other expenses,19.99,0.00,19.99
Regeneration and Local Services,Culture Sport and Tourism,010664,Freemans Quay Leisure Centre,Supplies and Services,304403,Equipment and Materials,02-Dec-2019,000006805402830,AMZNMktplace,5999,Other consumables,151.98,25.34,126.64
Regeneration and Local Services,Culture Sport and Tourism,010664,Freemans Quay Leisure Centre,Supplies and Services,328041,Clothing uniforms and laundry E328,02-Dec-2019,000006805402838,ARGOS RETAIL GROUP,5310,Clothing uniforms and laundry,42.74,0.00,42.74
Children and Young Peoples Services,Head of Education and Skills,071732,Dean Bank Childcare,Supplies and Services,324117,Provisions E324,02-Dec-2019,000006805402844,ASDA GROCERIES ONLINE,5411,Catering costs - provisions,106.21,0.00,106.21
Children and Young Peoples Services,Head of Education and Skills,071732,Dean Bank Childcare,Supplies and Services,324117,Provisions E324,02-Dec-2019,000006805402852,ASDA GROCERIES ONLINE,5411,Catering costs - provisions,69.70,0.00,69.70
Children and Young Peoples Services,Head of Education and Skills,071732,Dean Bank Childcare,Supplies and Services,324117,Provisions E324,02-Dec-2019,000006805402860,ASDA GROCERIES ONLINE,5411,Catering costs - provisions,-0.99,0.00,-0.99
Children and Young Peoples Services,Head of Education and Skills,071732,Dean Bank Childcare,Supplies and Services,324117,Provisions E324,02-Dec-2019,000006805402862,ASDA GROCERIES ONLINE,5411,Catering costs - provisions,-2.22,0.00,-2.22
Children and Young Peoples Services,Head of Early Help Inclusion & Vulnerable Children.,088113,Seaham  0-19 Community Family Hub,Supplies and Services,328041,Clothing uniforms and laundry E328,02-Dec-2019,000006805402868,WWW.THEWORKS.CO.UK,5310,Clothing uniforms and laundry,60.75,0.00,60.75
Children and Young Peoples Services,Head of Childrens Social Care,085332,Middlestone Moor CU,Supplies and Services,324117,Provisions E324,02-Dec-2019,000006805402896,ASDA SUPERSTORE 4987,5411,Catering costs - provisions,27.94,0.00,27.94
Children and Young Peoples Services,Head of Childrens Social Care,085332,Middlestone Moor CU,Supplies and Services,348037,Subsistence E348,02-Dec-2019,000006805402902,GREGGS,5812,Subsistence,3.45,0.00,3.45
Children and Young Peoples Services,Head of Childrens Social Care,085332,Middlestone Moor CU,Supplies and Services,304259,Equipment and Materials,02-Dec-2019,000006805402904,JD SPORTS PLC,5941,Equipment-purchase and rental,55.00,0.00,55.00
Regeneration and Local Services,Development and Housing,030771,Durham Advance Flexible Fund,Transport,235057,Public Transport,02-Dec-2019,000006805402968,GO NORTH EAST LIMITED,4131,Staff travelling,5.30,0.00,5.30
Regeneration and Local Services,Development and Housing,030771,Durham Advance Flexible Fund,Supplies and Services,304259,Equipment and Materials,02-Dec-2019,000006805402972,DISCLOSURE AND BARRING,9399,Equipment-purchase and rental,23.00,0.00,23.00
Regeneration and Local Services,Business Durham CL0850,030674,Business Services General,Supplies and Services,304403,Equipment and Materials,02-Dec-2019,000006805402988,ADOBE CREATIVE CLOUD,5734,Other consumables,49.94,8.32,41.62
Regeneration and Local Services,Business Durham CL0850,030674,Business Services General,Supplies and Services,342222,Computers and Communications,02-Dec-2019,000006805402992,FASTHOSTS INTERNET,4816,Comp hardware purch-network servers,72.66,12.11,60.55
Regeneration and Local Services,Business Durham CL0850,030674,Business Services General,Supplies and Services,342222,Computers and Communications,02-Dec-2019,000006805402996,FASTHOSTS INTERNET,4816,Comp hardware purch-network servers,67.20,11.20,56.00
Children and Young Peoples Services,Head of Early Help Inclusion & Vulnerable Children.,071445,Chester le Street One Point Hub,Supplies and Services,304259,Equipment and Materials,02-Dec-2019,000006805403006,WWW.DURHAM.GOV.UK,9399,Equipment-purchase and rental,11.00,0.00,11.00
Children and Young Peoples Services,Head of Early Help Inclusion & Vulnerable Children.,085957,Secure Management,Supplies and Services,304403,Equipment and Materials,02-Dec-2019,000006805403016,AMZ 5acresdavid,5999,Other consumables,-44.43,0.00,-44.43
Regeneration and Local Services,Environmental Services,011060,C&G - Hardwick Park Catering,Supplies and Services,324117,Provisions E324,02-Dec-2019,000006805403036,JR HOLLAND FOODSERVICE,5499,Catering costs - provisions,12.63,0.00,12.63
Regeneration and Local Services,Environmental Services,011060,C&G - Hardwick Park Catering,Supplies and Services,324117,Provisions E324,02-Dec-2019,000006805403040,JR HOLLAND FOODSERVICE,5499,Catering costs - provisions,7.29,0.00,7.29
Regeneration and Local Services,Environmental Services,011060,C&G - Hardwick Park Catering,Supplies and Services,324117,Provisions E324,02-Dec-2019,000006805403046,JR HOLLAND FOODSERVICE,5499,Catering costs - provisions,105.01,0.00,105.01
Regeneration and Local Services,Culture Sport and Tourism,054966,Gala Theatre - Gala Productions,Supplies and Services,324117,Provisions E324,02-Dec-2019,000006805403080,WILKO RETAIL LIMITED,5399,Catering costs - provisions,18.00,0.00,18.00
Regeneration and Local Services,Culture Sport and Tourism,054966,Gala Theatre - Gala Productions,Supplies and Services,328041,Clothing uniforms and laundry E328,02-Dec-2019,000006805403086,Argos Durham Arnis,5310,Clothing uniforms and laundry,39.99,0.00,39.99
Regeneration and Local Services,Environmental Services,010919,C&G - Countryside Site Management,Supplies and Services,324117,Provisions E324,02-Dec-2019,000006805403106,WILKO RETAIL LIMITED,5399,Catering costs - provisions,16.00,2.67,13.33
Regeneration and Local Services,Corporate Property and Land,021234,Catering - Locomotion,Supplies and Services,324117,Provisions E324,02-Dec-2019,000006805403116,JR HOLLAND FOODSERVICE,5499,Catering costs - provisions,81.62,0.00,81.62
Regeneration and Local Services,Corporate Property and Land,021234,Catering - Locomotion,Supplies and Services,324117,Provisions E324,02-Dec-2019,000006805403122,WWW.ADELIEFOODS.CO.UK,5499,Catering costs - provisions,191.13,0.00,191.13
Regeneration and Local Services,Corporate Property and Land,021234,Catering - Locomotion,Supplies and Services,324117,Provisions E324,02-Dec-2019,000006805403128,WWW.ADELIEFOODS.CO.UK,5499,Catering costs - provisions,170.19,0.00,170.19
Regeneration and Local Services,Corporate Property and Land,021234,Catering - Locomotion,Supplies and Services,324117,Provisions E324,02-Dec-2019,000006805403130,WWW.ADELIEFOODS.CO.UK,5499,Catering costs - provisions,170.78,0.00,170.78
Regeneration and Local Services,Corporate Property and Land,021234,Catering - Locomotion,Supplies and Services,324117,Provisions E324,02-Dec-2019,000006805403136,WWW.ADELIEFOODS.CO.UK,5499,Catering costs - provisions,105.99,0.00,105.99
Regeneration and Local Services,Corporate Property and Land,021234,Catering - Locomotion,Supplies and Services,324117,Provisions E324,02-Dec-2019,000006805403144,WWW.ADELIEFOODS.CO.UK,5499,Catering costs - provisions,137.22,0.00,137.22
Regeneration and Local Services,Corporate Property and Land,021234,Catering - Locomotion,Supplies and Services,324117,Provisions E324,02-Dec-2019,000006805403148,WWW.ADELIEFOODS.CO.UK,5499,Catering costs - provisions,94.89,0.00,94.89
Regeneration and Local Services,Corporate Property and Land,021234,Catering - Locomotion,Supplies and Services,324117,Provisions E324,02-Dec-2019,000006805403154,WWW.ADELIEFOODS.CO.UK,5499,Catering costs - provisions,106.18,0.00,106.18
Regeneration and Local Services,Corporate Property and Land,021234,Catering - Locomotion,Supplies and Services,324117,Provisions E324,02-Dec-2019,000006805403156,WWW.ADELIEFOODS.CO.UK,5499,Catering costs - provisions,33.84,0.00,33.84
Regeneration and Local Services,Corporate Property and Land,021234,Catering - Locomotion,Supplies and Services,324117,Provisions E324,02-Dec-2019,000006805403162,WWW.ADELIEFOODS.CO.UK,5499,Catering costs - provisions,141.46,0.00,141.46
Regeneration and Local Services,Corporate Property and Land,021234,Catering - Locomotion,Supplies and Services,324117,Provisions E324,02-Dec-2019,000006805403166,WWW.ADELIEFOODS.CO.UK,5499,Catering costs - provisions,-137.22,0.00,-137.22
Children and Young Peoples Services,Head of Early Help Inclusion & Vulnerable Children.,088101,CLS 0-19 Community Family Hub,Supplies and Services,324117,Provisions E324,02-Dec-2019,000006805403172,ASDA GROCERIES ONLINE,5411,Catering costs - provisions,461.41,0.00,461.41
Children and Young Peoples Services,Head of Early Help Inclusion & Vulnerable Children.,088101,CLS 0-19 Community Family Hub,Supplies and Services,324117,Provisions E324,02-Dec-2019,000006805403176,ASDA GROCERIES ONLINE,5411,Catering costs - provisions,-1.49,0.00,-1.49
Children and Young Peoples Services,Head of Childrens Social Care,085331,New Lea Childrens Home,Supplies and Services,324117,Provisions E324,02-Dec-2019,000006805403182,ASDA GROCERIES ONLINE,5411,Catering costs - provisions,158.77,0.00,158.77
Children and Young Peoples Services,Head of Childrens Social Care,085331,New Lea Childrens Home,Supplies and Services,324117,Provisions E324,02-Dec-2019,000006805403186,ASDA GROCERIES ONLINE,5411,Catering costs - provisions,-0.01,0.00,-0.01
Regeneration and Local Services,Corporate Property and Land,010525,Catering - Green Lane,Supplies and Services,324117,Provisions E324,02-Dec-2019,000006805403264,WWW.ADELIEFOODS.CO.UK,5499,Catering costs - provisions,73.60,0.00,73.60
Regeneration and Local Services,Corporate Property and Land,010525,Catering - Green Lane,Supplies and Services,324117,Provisions E324,02-Dec-2019,000006805403270,WWW.ADELIEFOODS.CO.UK,5499,Catering costs - provisions,52.36,0.00,52.36
Regeneration and Local Services,Corporate Property and Land,010525,Catering - Green Lane,Supplies and Services,324117,Provisions E324,02-Dec-2019,000006805403274,WWW.ADELIEFOODS.CO.UK,5499,Catering costs - provisions,65.58,0.00,65.58
Transformation and Partnerships,Business Support,052986,CYPS - Locality and Operational Support,Supplies and Services,304403,Equipment and Materials,02-Dec-2019,000006805403326,AMZNMktplace,5999,Other consumables,27.97,4.67,23.30
Transformation and Partnerships,Business Support,052986,CYPS - Locality and Operational Support,Supplies and Services,304403,Equipment and Materials,02-Dec-2019,000006805403334,AMZNMktplace,5999,Other consumables,24.19,4.04,20.15
Transformation and Partnerships,Business Support,052986,CYPS - Locality and Operational Support,Supplies and Services,304221,Equipment and Materials,02-Dec-2019,000006805403338,B & Q 1120,5200,Direct materials,7.00,0.00,7.00
Regeneration and Local Services,Development and Housing,031576,B& B - Temp Accom,Supplies and Services,364320,Grants to Voluntary Organisations,02-Dec-2019,000006805403362,GRAINGER HOTEL,7011,Accommodation assistance,50.00,8.33,41.67
Regeneration and Local Services,Corporate Property and Land,020079,Bldg Serv - R&M Div 79- Electrical,Supplies and Services,372009,Subscriptions E372,02-Dec-2019,000006805403460,SEAWARD,5046,Subscriptions 372009,525.60,87.60,438.00
Children and Young Peoples Services,Head of Childrens Social Care,085333,Coxhoe Satelite Home,Supplies and Services,324117,Provisions E324,02-Dec-2019,000006805403468,TESCO STORES 2916,5411,Catering costs - provisions,67.15,0.00,67.15
Children and Young Peoples Services,Head of Childrens Social Care,085333,Coxhoe Satelite Home,Supplies and Services,324117,Provisions E324,02-Dec-2019,000006805403472,WILKO RETAIL LIMITED,5399,Catering costs - provisions,33.70,0.00,33.70
Children and Young Peoples Services,Head of Childrens Social Care,085333,Coxhoe Satelite Home,Supplies and Services,328041,Clothing uniforms and laundry E328,02-Dec-2019,000006805403478,W BOYES & CO LTD NEWTO,5310,Clothing uniforms and laundry,8.58,0.00,8.58
Children and Young Peoples Services,Head of Childrens Social Care,085342,9 Cedar Drive Aycliffe,Supplies and Services,328041,Clothing uniforms and laundry E328,02-Dec-2019,000006805403498,POUNDSTRETCHER STOCK,5331,Clothing uniforms and laundry,0.69,0.00,0.69
Children and Young Peoples Services,Head of Childrens Social Care,085342,9 Cedar Drive Aycliffe,Supplies and Services,348037,Subsistence E348,02-Dec-2019,000006805403504,FRANKIE & BENNYS 5186,5812,Subsistence,76.27,0.00,76.27
Children and Young Peoples Services,Head of Childrens Social Care,085342,9 Cedar Drive Aycliffe,Transport,235057,Public Transport,02-Dec-2019,000006805403508,ARRIVA NORTH EAST,4131,Staff travelling,100.00,0.00,100.00
Children and Young Peoples Services,Head of Childrens Social Care,085342,9 Cedar Drive Aycliffe,Supplies and Services,384999,Miscellaneous Expenses,02-Dec-2019,000006805403514,BODYCARE,5977,Other expenses,12.99,0.00,12.99
Children and Young Peoples Services,Head of Childrens Social Care,085342,9 Cedar Drive Aycliffe,Supplies and Services,328041,Clothing uniforms and laundry E328,02-Dec-2019,000006805403518,SuperDryPOS,5691,Clothing uniforms and laundry,79.99,0.00,79.99
Children and Young Peoples Services,Head of Childrens Social Care,085342,9 Cedar Drive Aycliffe,Supplies and Services,304259,Equipment and Materials,02-Dec-2019,000006805403524,FOOTASYLUM,5941,Equipment-purchase and rental,19.99,0.00,19.99
Children and Young Peoples Services,Head of Early Help Inclusion & Vulnerable Children.,071616,Seaham Childrens Centre,Supplies and Services,312009,Newspapers books and periodicals E312,02-Dec-2019,000006805403528,THE BOOK PEOPLE,5942,Newspapers books and periodicals,327.73,0.00,327.73
Regeneration and Local Services,Corporate Property and Land,030691,Catering - Durham Dales Centre,Supplies and Services,324117,Provisions E324,02-Dec-2019,000006805403556,JR HOLLAND FOODSERVICE,5499,Catering costs - provisions,14.46,0.00,14.46
Regeneration and Local Services,Corporate Property and Land,030691,Catering - Durham Dales Centre,Supplies and Services,324117,Provisions E324,02-Dec-2019,000006805403560,JR HOLLAND FOODSERVICE,5499,Catering costs - provisions,137.92,0.00,137.92
Regeneration and Local Services,Development and Housing,031576,B& B - Temp Accom,Supplies and Services,364320,Grants to Voluntary Organisations,02-Dec-2019,000006805403588,HOTEL 52,7011,Accommodation assistance,130.00,0.00,130.00
Adult and Health Services,Head of Adults,055643,Hawthorn House LD Respite Unit,Supplies and Services,324117,Provisions E324,02-Dec-2019,000006805403604,JR HOLLAND FOODSERVICE,5499,Catering costs - provisions,20.28,0.00,20.28
Adult and Health Services,Head of Adults,055643,Hawthorn House LD Respite Unit,Supplies and Services,324117,Provisions E324,02-Dec-2019,000006805403610,JR HOLLAND FOODSERVICE,5499,Catering costs - provisions,36.97,0.00,36.97
Adult and Health Services,Head of Adults,055643,Hawthorn House LD Respite Unit,Supplies and Services,324117,Provisions E324,02-Dec-2019,000006805403612,JR HOLLAND FOODSERVICE,5499,Catering costs - provisions,8.41,0.00,8.41
Children and Young Peoples Services,Head of Early Help Inclusion & Vulnerable Children.,088100,Durham West & CLS 0-19 Targeted Family Support,Supplies and Services,328041,Clothing uniforms and laundry E328,02-Dec-2019,000006805403664,ARGOS RETAIL GROUP,5310,Clothing uniforms and laundry,150.00,0.00,150.00
Children and Young Peoples Services,Head of Early Help Inclusion & Vulnerable Children.,085957,Secure Management,Supplies and Services,304403,Equipment and Materials,02-Dec-2019,000006805403710,AMZNMktplace,5999,Other consumables,-4.95,0.00,-4.95
Transformation and Partnerships,Communications Management,060270,Communications and Marketing,Supplies and Services,384199,Miscellaneous Expenses,02-Dec-2019,000006805403744,AMZNMktplace,5999,Other hired and contracted services,13.92,2.32,11.60
Transformation and Partnerships,Communications Management,060270,Communications and Marketing,Supplies and Services,384199,Miscellaneous Expenses,02-Dec-2019,000006805403744 - 1,AMZNMktplace,5999,Other hired and contracted services,0.04,,0.04
Resources BK0010,Digital and Customer Services,065487,ICT Telephony Recharges,Supplies and Services,304403,Equipment and Materials,02-Dec-2019,000006805403748,AMZNMktplace,5999,Other consumables,284.50,47.50,237.00
Regeneration and Local Services,Corporate Property and Land,021324,Catering - Meadowfield,Supplies and Services,324117,Provisions E324,02-Dec-2019,000006805403762,JR HOLLAND FOODSERVICE,5499,Catering costs - provisions,33.04,0.00,33.04
Children and Young Peoples Services,Head of Childrens Social Care,085352,Tow Law CU,Employees,040149,Recruitment Instruction and Training,02-Dec-2019,000006805403824,PARENTPAY E-COM R,8220,Training-all costs,34.00,0.00,34.00
Children and Young Peoples Services,Head of Childrens Social Care,085352,Tow Law CU,Supplies and Services,348037,Subsistence E348,02-Dec-2019,000006805403828,MCDONALD`S,5812,Subsistence,11.18,0.00,11.18
Children and Young Peoples Services,Head of Childrens Social Care,085396,Fostering Placement Team,Transport,235057,Public Transport,02-Dec-2019,000006805403978,HOLIDAY PAYMENT VRUK,4722,Staff travelling,248.00,0.00,248.00
Children and Young Peoples Services,Head of Childrens Social Care,085396,Fostering Placement Team,Transport,235057,Public Transport,02-Dec-2019,000006805403980,HOLIDAY PAYMENT VRUK,4722,Staff travelling,282.00,0.00,282.00
Regeneration and Local Services,Corporate Property and Land,030691,Catering - Durham Dales Centre,Supplies and Services,384999,Miscellaneous Expenses,02-Dec-2019,000006805404084,WWW.CAFFEVINCI.COM,5046,Other expenses,324.35,0.00,324.35
Regeneration and Local Services,Culture Sport and Tourism,054812,Gala Theatre - Catering etc,Supplies and Services,324117,Provisions E324,02-Dec-2019,000006809732736,BATLEYS PERTH,5300,Catering costs - provisions,236.16,39.36,196.80
Regeneration and Local Services,Culture Sport and Tourism,054812,Gala Theatre - Catering etc,Supplies and Services,324117,Provisions E324,02-Dec-2019,000006809732736 - 1,BATLEYS PERTH,5300,Catering costs - provisions,175.25,,175.25
Regeneration and Local Services,Development and Housing,031576,B& B - Temp Accom,Supplies and Services,364320,Grants to Voluntary Organisations,02-Dec-2019,000006809732762,PREMIER INN,3811,Accommodation assistance,224.00,37.33,186.67
Regeneration and Local Services,Development and Housing,031500,Housing Solutions - Core Team,Employees,040149,Recruitment Instruction and Training,02-Dec-2019,000006809732986,PREMIER INN,3811,Training-all costs,75.50,12.58,62.92
Regeneration and Local Services,Development and Housing,031500,Housing Solutions - Core Team,Supplies and Services,352001,Conference Expenses,02-Dec-2019,000006809732998,Park Head Hotel,7011,Conferencesseminars fees etc,380.00,0.00,380.00
Regeneration and Local Services,Development and Housing,031500,Housing Solutions - Core Team,Supplies and Services,352001,Conference Expenses,02-Dec-2019,000006809733002,Park Head Hotel,7011,Conferencesseminars fees etc,145.00,0.00,145.00
Children and Young Peoples Services,Head of Early Help Inclusion & Vulnerable Children.,085957,Secure Management,Supplies and Services,328041,Clothing uniforms and laundry E328,02-Dec-2019,000006809733098,ARGOS RETAIL GROUP,5310,Clothing uniforms and laundry,-170.92,0.00,-170.92
Regeneration and Local Services,Corporate Property and Land,011001,Green Lane Council Offices Spennymoor,Supplies and Services,304259,Equipment and Materials,02-Dec-2019,000006809733288,PAYPAL TOOLSTATION,5251,Equipment-purchase and rental,66.10,11.02,55.08
Regeneration and Local Services,Corporate Property and Land,030691,Catering - Durham Dales Centre,Supplies and Services,324117,Provisions E324,02-Dec-2019,000006809733384,BATLEYS PERTH,5300,Catering costs - provisions,90.84,15.14,75.70
Regeneration and Local Services,Corporate Property and Land,030691,Catering - Durham Dales Centre,Supplies and Services,324117,Provisions E324,02-Dec-2019,000006809733384 - 1,BATLEYS PERTH,5300,Catering costs - provisions,124.80,,124.80
Transformation and Partnerships,Business Support,052986,CYPS - Locality and Operational Support,Supplies and Services,304403,Equipment and Materials,03-Dec-2019,000006805403342,AMZNMktplace,5999,Other consumables,11.52,1.92,9.60
Transformation and Partnerships,Business Support,052986,CYPS - Locality and Operational Support,Supplies and Services,304403,Equipment and Materials,03-Dec-2019,000006805403342 - 1,AMZNMktplace,5999,Other consumables,0.04,,0.04
Transformation and Partnerships,Business Support,052986,CYPS - Locality and Operational Support,Supplies and Services,304403,Equipment and Materials,03-Dec-2019,000006805403346,AMZNMktplace,5999,Other consumables,51.14,8.54,42.60
Children and Young Peoples Services,Head of Education and Skills,054641,Curious Kids,Supplies and Services,304245,Equipment and Materials,03-Dec-2019,000006809732320,AMZNMKTPLACE AMAZON.CO,5999,Materials,2.34,0.39,1.95
Children and Young Peoples Services,Head of Education and Skills,054641,Curious Kids,Supplies and Services,304245,Equipment and Materials,03-Dec-2019,000006809732326,AMZNMKTPLACE AMAZON.CO,5999,Materials,2.34,0.39,1.95
Children and Young Peoples Services,Head of Education and Skills,054641,Curious Kids,Supplies and Services,304245,Equipment and Materials,03-Dec-2019,000006809732330,AMZNMKTPLACE AMAZON.CO,5999,Materials,2.34,0.39,1.95
Children and Young Peoples Services,Head of Education and Skills,054641,Curious Kids,Supplies and Services,304245,Equipment and Materials,03-Dec-2019,000006809732334,AMZNMKTPLACE AMAZON.CO,5999,Materials,2.34,0.39,1.95
Children and Young Peoples Services,Head of Education and Skills,054641,Curious Kids,Supplies and Services,304245,Equipment and Materials,03-Dec-2019,000006809732340,AMZNMKTPLACE AMAZON.CO,5999,Materials,2.34,0.39,1.95
Children and Young Peoples Services,Head of Education and Skills,054641,Curious Kids,Supplies and Services,304245,Equipment and Materials,03-Dec-2019,000006809732344,AMZNMKTPLACE AMAZON.CO,5999,Materials,2.34,0.39,1.95
Children and Young Peoples Services,Head of Education and Skills,054641,Curious Kids,Supplies and Services,304245,Equipment and Materials,03-Dec-2019,000006809732354,AMZNMKTPLACE AMAZON.CO,5999,Materials,2.34,0.39,1.95
Resources BK0010,Finance & Transactional Services,065180,Collections,Charges,720130,Fees and Charges,03-Dec-2019,000006809732368,WWW.HMCOURT-SERVIC,9222,Fees-legal,44.00,0.00,44.00
Transformation and Partnerships,Business Support,065474,Rechargeable Items,Supplies and Services,384199,Miscellaneous Expenses,03-Dec-2019,000006809732384,DISCLOSURE AND BARRING,9399,Other hired and contracted services,23.00,0.00,23.00
Children and Young Peoples Services,Head of Education and Skills,070264,EDC Premises,Supplies and Services,324117,Provisions E324,03-Dec-2019,000006809732434,FREEMAN CATERING BUTCH,5422,Catering costs - provisions,91.95,0.00,91.95
Children and Young Peoples Services,Head of Education and Skills,070264,EDC Premises,Supplies and Services,324117,Provisions E324,03-Dec-2019,000006809732442,FREEMAN CATERING BUTCH,5422,Catering costs - provisions,82.03,0.00,82.03
Regeneration and Local Services,Community Protection,010934,Works in Default Holding Code,Supplies and Services,338045,Services,03-Dec-2019,000006809732450,COMBINED COURT,9222,Legal expenses 338045,100.00,0.00,100.00
Regeneration and Local Services,Development and Housing,030773,CLLD North,Transport,235057,Public Transport,03-Dec-2019,000006809732462,GO NORTH EAST LIMITED,4131,Staff travelling,95.00,0.00,95.00
Regeneration and Local Services,Development and Housing,030773,CLLD North,Supplies and Services,304259,Equipment and Materials,03-Dec-2019,000006809732468,GEN REGISTER OFFICE,9399,Equipment-purchase and rental,14.00,0.00,14.00
Adult and Health Services,Head of Adults,055302,Durham Pathways,Supplies and Services,324117,Provisions E324,03-Dec-2019,000006809732554,SAINSBURYS SACAT 0776,5411,Catering costs - provisions,1.00,0.00,1.00
Adult and Health Services,Head of Adults,055302,Durham Pathways,Supplies and Services,324117,Provisions E324,03-Dec-2019,000006809732556,SAINSBURYS 0776,5411,Catering costs - provisions,30.19,0.00,30.19
Adult and Health Services,Head of Adults,055302,Durham Pathways,Supplies and Services,324117,Provisions E324,03-Dec-2019,000006809732560,ASDA STORES LTD 4313,5411,Catering costs - provisions,6.05,0.00,6.05
Children and Young Peoples Services,Head of Childrens Social Care,085332,Middlestone Moor CU,Supplies and Services,304083,Equipment and Materials,03-Dec-2019,000006809732570,JOHN MILLS LIMITED,5699,Catering equipment,12.94,0.00,12.94
Children and Young Peoples Services,Head of Childrens Social Care,085333,Coxhoe Satelite Home,Supplies and Services,384999,Miscellaneous Expenses,03-Dec-2019,000006809732622,MAKING FACES,7230,Other expenses,17.98,0.00,17.98
Regeneration and Local Services,Corporate Property and Land,021242,Catering - County Hall,Supplies and Services,324117,Provisions E324,03-Dec-2019,000006809732660,JR HOLLAND FOODSERVICE,5499,Catering costs - provisions,140.90,0.00,140.90
Regeneration and Local Services,Corporate Property and Land,021242,Catering - County Hall,Supplies and Services,324117,Provisions E324,03-Dec-2019,000006809732666,JR HOLLAND FOODSERVICE,5499,Catering costs - provisions,160.50,26.75,133.75
Regeneration and Local Services,Corporate Property and Land,021242,Catering - County Hall,Supplies and Services,324117,Provisions E324,03-Dec-2019,000006809732670,JR HOLLAND FOODSERVICE,5499,Catering costs - provisions,31.51,0.00,31.51
Regeneration and Local Services,Corporate Property and Land,021242,Catering - County Hall,Supplies and Services,324117,Provisions E324,03-Dec-2019,000006809732676,FREEMAN CATERING BUTCH,5422,Catering costs - provisions,267.48,0.00,267.48
Regeneration and Local Services,Corporate Property and Land,021242,Catering - County Hall,Supplies and Services,324117,Provisions E324,03-Dec-2019,000006809732680,FREEMAN CATERING BUTCH,5422,Catering costs - provisions,180.00,0.00,180.00
Resources BK0010,Digital and Customer Services,065481,Technical Services 065481,Supplies and Services,372009,Subscriptions E372,03-Dec-2019,000006809732702,WEB NETWORKSOLUTIONS,5968,Subscriptions 372009,180.91,0.00,180.91
Resources BK0010,Digital and Customer Services,065481,Technical Services 065481,Supplies and Services,372009,Subscriptions E372,03-Dec-2019,000006809732706,WEB NETWORKSOLUTIONS,5968,Subscriptions 372009,282.04,0.00,282.04
Regeneration and Local Services,Development and Housing,030544,Rural Employability - Client Engagement,Supplies and Services,384700,Miscellaneous Expenses,03-Dec-2019,000006809732732,GEN REGISTER OFFICE,9399,Miscellaneous grants,14.00,0.00,14.00
Regeneration and Local Services,Culture Sport and Tourism,054812,Gala Theatre - Catering etc,Supplies and Services,324117,Provisions E324,03-Dec-2019,000006809732752,FREEMAN CATERING BUTCH,5422,Catering costs - provisions,16.20,0.00,16.20
Regeneration and Local Services,Culture Sport and Tourism,054812,Gala Theatre - Catering etc,Supplies and Services,324117,Provisions E324,03-Dec-2019,000006809732754,FREEMAN CATERING BUTCH,5422,Catering costs - provisions,31.20,0.00,31.20
Regeneration and Local Services,Development and Housing,031576,B& B - Temp Accom,Supplies and Services,364320,Grants to Voluntary Organisations,03-Dec-2019,000006809732768,THE HONEST LAWYER,7011,Accommodation assistance,335.80,0.00,335.80
Regeneration and Local Services,Corporate Property and Land,021242,Catering - County Hall,Supplies and Services,324117,Provisions E324,03-Dec-2019,000006809732804,HERON FOODS LTD,5499,Catering costs - provisions,9.20,0.00,9.20
Children and Young Peoples Services,Head of Childrens Social Care,085361,LAC & Permanence Team 1,Supplies and Services,384999,Miscellaneous Expenses,03-Dec-2019,000006809732824,HM PASSPORT OFFICE,9399,Other expenses,49.00,0.00,49.00
Children and Young Peoples Services,Head of Early Help Inclusion & Vulnerable Children.,073998,TTF-Co-ordinator Grant,Transfer Payments,525033,Other,03-Dec-2019,000006809732846,ASDA GEORGE COM LEEDS,5411,Grants to individuals,12.96,2.16,10.80
Children and Young Peoples Services,Head of Early Help Inclusion & Vulnerable Children.,073998,TTF-Co-ordinator Grant,Transfer Payments,525033,Other,03-Dec-2019,000006809732846 - 1,ASDA GEORGE COM LEEDS,5411,Grants to individuals,23.74,,23.74
Regeneration and Local Services,Development and Housing,031576,B& B - Temp Accom,Supplies and Services,364320,Grants to Voluntary Organisations,03-Dec-2019,000006809732874,HOTEL 52,7011,Accommodation assistance,117.96,0.00,117.96
Children and Young Peoples Services,Head of Childrens Social Care,085342,9 Cedar Drive Aycliffe,Supplies and Services,304403,Equipment and Materials,03-Dec-2019,000006809732894,AMZNMktplace,5999,Other consumables,21.88,0.00,21.88
Children and Young Peoples Services,Head of Childrens Social Care,085342,9 Cedar Drive Aycliffe,Transport,235057,Public Transport,03-Dec-2019,000006809732900,DBC MSCP,7523,Staff travelling,1.00,0.00,1.00
Children and Young Peoples Services,Head of Childrens Social Care,085342,9 Cedar Drive Aycliffe,Supplies and Services,328041,Clothing uniforms and laundry E328,03-Dec-2019,000006809732906,ARGOS RETAIL GROUP,5310,Clothing uniforms and laundry,59.99,0.00,59.99
Children and Young Peoples Services,Head of Childrens Social Care,085342,9 Cedar Drive Aycliffe,Supplies and Services,328041,Clothing uniforms and laundry E328,03-Dec-2019,000006809732912,ARGOS RETAIL GROUP,5310,Clothing uniforms and laundry,15.00,0.00,15.00
Children and Young Peoples Services,Head of Childrens Social Care,085342,9 Cedar Drive Aycliffe,Supplies and Services,348037,Subsistence E348,03-Dec-2019,000006809732916,MCDONALDS,5812,Subsistence,4.76,0.00,4.76
Regeneration and Local Services,Development and Housing,031500,Housing Solutions - Core Team,Supplies and Services,352001,Conference Expenses,03-Dec-2019,000006809732992,GRAINGER HOTEL,7011,Conferencesseminars fees etc,50.00,8.33,41.67
Regeneration and Local Services,Development and Housing,030771,Durham Advance Flexible Fund,Transport,235057,Public Transport,03-Dec-2019,000006809733022,WALKERGATE CAR PAR,7523,Staff travelling,3.00,0.50,2.50
Regeneration and Local Services,Business Durham CL0850,030674,Business Services General,Supplies and Services,348037,Subsistence E348,03-Dec-2019,000006809733040,FINBARR`S,5812,Subsistence,65.50,0.00,65.50
Regeneration and Local Services,Development and Housing,030771,Durham Advance Flexible Fund,Supplies and Services,324117,Provisions E324,03-Dec-2019,000006809733044,SAINSBURYS 0776,5411,Catering costs - provisions,34.00,0.00,34.00
Children and Young Peoples Services,Head of Early Help Inclusion & Vulnerable Children.,071445,Chester le Street One Point Hub,Supplies and Services,304259,Equipment and Materials,03-Dec-2019,000006809733050,WWW.DURHAM.GOV.UK,9399,Equipment-purchase and rental,11.00,0.00,11.00
Children and Young Peoples Services,Head of Early Help Inclusion & Vulnerable Children.,071445,Chester le Street One Point Hub,Supplies and Services,304259,Equipment and Materials,03-Dec-2019,000006809733052,WWW.DURHAM.GOV.UK,9399,Equipment-purchase and rental,11.00,0.00,11.00
Children and Young Peoples Services,Head of Early Help Inclusion & Vulnerable Children.,071445,Chester le Street One Point Hub,Supplies and Services,304259,Equipment and Materials,03-Dec-2019,000006809733056,WWW.DURHAM.GOV.UK,9399,Equipment-purchase and rental,11.00,0.00,11.00
Children and Young Peoples Services,Head of Early Help Inclusion & Vulnerable Children.,085957,Secure Management,Supplies and Services,328041,Clothing uniforms and laundry E328,03-Dec-2019,000006809733060,FOOTASYLUM PLC,5691,Clothing uniforms and laundry,79.99,0.00,79.99
Children and Young Peoples Services,Head of Early Help Inclusion & Vulnerable Children.,085957,Secure Management,Supplies and Services,384999,Miscellaneous Expenses,03-Dec-2019,000006809733064,Amazon.co.uk J42U76ZM5,5969,Other expenses,4.49,0.75,3.74
Children and Young Peoples Services,Head of Early Help Inclusion & Vulnerable Children.,085957,Secure Management,Supplies and Services,384999,Miscellaneous Expenses,03-Dec-2019,000006809733068,Amazon.co.uk 3F05N7LY5,5969,Other expenses,14.49,2.42,12.07
Children and Young Peoples Services,Head of Early Help Inclusion & Vulnerable Children.,085957,Secure Management,Supplies and Services,304403,Equipment and Materials,03-Dec-2019,000006809733070,AMZNMktplace,5999,Other consumables,3.40,0.57,2.83
Children and Young Peoples Services,Head of Early Help Inclusion & Vulnerable Children.,085957,Secure Management,Supplies and Services,304403,Equipment and Materials,03-Dec-2019,000006809733072,AMZNMktplace,5999,Other consumables,98.04,16.35,81.69
Children and Young Peoples Services,Head of Early Help Inclusion & Vulnerable Children.,085957,Secure Management,Supplies and Services,304403,Equipment and Materials,03-Dec-2019,000006809733074,AMZNMktplace,5999,Other consumables,9.99,1.67,8.32
Children and Young Peoples Services,Head of Early Help Inclusion & Vulnerable Children.,085957,Secure Management,Supplies and Services,304259,Equipment and Materials,03-Dec-2019,000006809733076,M and M Direct Ltd,5941,Equipment-purchase and rental,8.99,0.00,8.99
Children and Young Peoples Services,Head of Early Help Inclusion & Vulnerable Children.,085957,Secure Management,Supplies and Services,328041,Clothing uniforms and laundry E328,03-Dec-2019,000006809733080,PRETTYLITTLETHING.COM,5691,Clothing uniforms and laundry,53.20,0.00,53.20
Children and Young Peoples Services,Head of Early Help Inclusion & Vulnerable Children.,085957,Secure Management,Supplies and Services,342033,Computers and Communications,03-Dec-2019,000006809733084,VERY,5964,Computer hardware,32.97,0.00,32.97
Children and Young Peoples Services,Head of Early Help Inclusion & Vulnerable Children.,085957,Secure Management,Supplies and Services,328041,Clothing uniforms and laundry E328,03-Dec-2019,000006809733088,ARGOS RETAIL GROUP,5310,Clothing uniforms and laundry,170.92,0.00,170.92
Children and Young Peoples Services,Head of Early Help Inclusion & Vulnerable Children.,085957,Secure Management,Supplies and Services,328041,Clothing uniforms and laundry E328,03-Dec-2019,000006809733092,WWW.ARGOS.CO.UK,5310,Clothing uniforms and laundry,28.94,0.00,28.94
Children and Young Peoples Services,Head of Early Help Inclusion & Vulnerable Children.,085957,Secure Management,Supplies and Services,304259,Equipment and Materials,03-Dec-2019,000006809733096,JD SPORTS INTERNET,5941,Equipment-purchase and rental,75.00,0.00,75.00
Transformation and Partnerships,Business Support,052986,CYPS - Locality and Operational Support,Supplies and Services,324117,Provisions E324,03-Dec-2019,000006809733104,ASDA GROCERIES ONLINE,5411,Catering costs - provisions,284.55,0.00,284.55
Transformation and Partnerships,Business Support,052986,CYPS - Locality and Operational Support,Supplies and Services,324117,Provisions E324,03-Dec-2019,000006809733106,ASDA GROCERIES ONLINE,5411,Catering costs - provisions,-9.00,0.00,-9.00
Regeneration and Local Services,Environmental Services,011060,C&G - Hardwick Park Catering,Supplies and Services,324117,Provisions E324,03-Dec-2019,000006809733110,JR HOLLAND FOODSERVICE,5499,Catering costs - provisions,12.61,0.00,12.61
Regeneration and Local Services,Environmental Services,011060,C&G - Hardwick Park Catering,Supplies and Services,324117,Provisions E324,03-Dec-2019,000006809733114,FREEMAN CATERING BUTCH,5422,Catering costs - provisions,46.25,0.00,46.25
Regeneration and Local Services,Environmental Services,011060,C&G - Hardwick Park Catering,Supplies and Services,324117,Provisions E324,03-Dec-2019,000006809733116,FREEMAN CATERING BUTCH,5422,Catering costs - provisions,52.30,0.00,52.30
Regeneration and Local Services,Environmental Services,011060,C&G - Hardwick Park Catering,Supplies and Services,324117,Provisions E324,03-Dec-2019,000006809733118,FREEMAN CATERING BUTCH,5422,Catering costs - provisions,38.00,0.00,38.00
Regeneration and Local Services,Environmental Services,011060,C&G - Hardwick Park Catering,Supplies and Services,324117,Provisions E324,03-Dec-2019,000006809733122,FREEMAN CATERING BUTCH,5422,Catering costs - provisions,41.85,0.00,41.85
Regeneration and Local Services,Corporate Property and Land,021234,Catering - Locomotion,Supplies and Services,324117,Provisions E324,03-Dec-2019,000006809733132,FREEMAN CATERING BUTCH,5422,Catering costs - provisions,69.60,0.00,69.60
Regeneration and Local Services,Corporate Property and Land,021234,Catering - Locomotion,Supplies and Services,324117,Provisions E324,03-Dec-2019,000006809733134,FREEMAN CATERING BUTCH,5422,Catering costs - provisions,95.13,0.00,95.13
Children and Young Peoples Services,Head of Early Help Inclusion & Vulnerable Children.,088101,CLS 0-19 Community Family Hub,Supplies and Services,304221,Equipment and Materials,03-Dec-2019,000006809733142,B&Q DIRECT,5200,Direct materials,17.06,0.00,17.06
Regeneration and Local Services,Corporate Property and Land,010525,Catering - Green Lane,Premises,145009,Cleaning and Domestic Supplies,03-Dec-2019,000006809733158,ALLIANCE DISPOSABLES L,2842,Other cleaning and domestic costs,161.38,26.90,134.48
Regeneration and Local Services,Corporate Property and Land,010525,Catering - Green Lane,Supplies and Services,324117,Provisions E324,03-Dec-2019,000006809733164,JR HOLLAND FOODSERVICE,5499,Catering costs - provisions,65.12,0.00,65.12
Regeneration and Local Services,Corporate Property and Land,010525,Catering - Green Lane,Supplies and Services,324117,Provisions E324,03-Dec-2019,000006809733168,JR HOLLAND FOODSERVICE,5499,Catering costs - provisions,6.01,0.00,6.01
Regeneration and Local Services,Corporate Property and Land,010525,Catering - Green Lane,Supplies and Services,324117,Provisions E324,03-Dec-2019,000006809733172,FREEMAN CATERING BUTCH,5422,Catering costs - provisions,21.00,0.00,21.00
Regeneration and Local Services,Corporate Property and Land,010525,Catering - Green Lane,Supplies and Services,324117,Provisions E324,03-Dec-2019,000006809733174,FREEMAN CATERING BUTCH,5422,Catering costs - provisions,103.97,0.00,103.97
Transformation and Partnerships,Transformation,060131,County Records,Supplies and Services,308011,Furniture,03-Dec-2019,000006809733176,PAYPAL DAINTY SUPP,5932,Furniture repair and replacement,30.52,5.09,25.43
Regeneration and Local Services,Development and Housing,030771,Durham Advance Flexible Fund,Supplies and Services,304259,Equipment and Materials,03-Dec-2019,000006809733180,DURHAM TEA ROOM,9399,Equipment-purchase and rental,2.50,0.42,2.08
Children and Young Peoples Services,Head of Childrens Social Care,085551,Short Break Services-Park Hse Sher,Supplies and Services,304999,Equipment and Materials,03-Dec-2019,000006809733186,HOME BARGAINS SPENNYMO,5251,Misc equipment tools and materials,6.96,1.16,5.80
Transformation and Partnerships,Business Support,052986,CYPS - Locality and Operational Support,Supplies and Services,304403,Equipment and Materials,03-Dec-2019,000006809733194,AMZNMktplace,5999,Other consumables,4.99,0.83,4.16
Transformation and Partnerships,Business Support,052986,CYPS - Locality and Operational Support,Supplies and Services,304259,Equipment and Materials,03-Dec-2019,000006809733198,Durham County CNCL,9399,Equipment-purchase and rental,11.00,0.00,11.00
Children and Young Peoples Services,Head of Childrens Social Care,085333,Coxhoe Satelite Home,Supplies and Services,324117,Provisions E324,03-Dec-2019,000006809733302,TESCO STORES 2371,5411,Catering costs - provisions,54.39,0.00,54.39
Children and Young Peoples Services,Head of Childrens Social Care,085333,Coxhoe Satelite Home,Supplies and Services,304999,Equipment and Materials,03-Dec-2019,000006809733304,BOOTS 6416,5912,Misc equipment tools and materials,10.56,0.00,10.56
Children and Young Peoples Services,Head of Childrens Social Care,085333,Coxhoe Satelite Home,Supplies and Services,324117,Provisions E324,03-Dec-2019,000006809733306,Coates Butchers,5422,Catering costs - provisions,21.15,0.00,21.15
Children and Young Peoples Services,Head of Childrens Social Care,085333,Coxhoe Satelite Home,Supplies and Services,324117,Provisions E324,03-Dec-2019,000006809733308,CO-OP GROUP 310016,5411,Catering costs - provisions,4.20,0.00,4.20
Children and Young Peoples Services,Head of Early Help Inclusion & Vulnerable Children.,071616,Seaham Childrens Centre,Supplies and Services,384999,Miscellaneous Expenses,03-Dec-2019,000006809733344,Amazon.co.uk HT7VD8RV5,5969,Other expenses,129.60,21.60,108.00
Children and Young Peoples Services,Head of Early Help Inclusion & Vulnerable Children.,071616,Seaham Childrens Centre,Supplies and Services,384999,Miscellaneous Expenses,03-Dec-2019,000006809733344 - 1,Amazon.co.uk HT7VD8RV5,5969,Other expenses,0.20,,0.20
Children and Young Peoples Services,Head of Early Help Inclusion & Vulnerable Children.,071616,Seaham Childrens Centre,Supplies and Services,304259,Equipment and Materials,03-Dec-2019,000006809733346,CURRYS ONLINE,5732,Equipment-purchase and rental,468.99,0.00,468.99
Children and Young Peoples Services,Head of Education and Skills,078554,Adult Skills-Main,Supplies and Services,384999,Miscellaneous Expenses,03-Dec-2019,000006809733350,WWW.BEAMISH.ORG.UK,7922,Other expenses,11.50,0.00,11.50
Children and Young Peoples Services,Head of Education and Skills,078554,Adult Skills-Main,Supplies and Services,384999,Miscellaneous Expenses,03-Dec-2019,000006809733354,WWW.BEAMISH.ORG.UK,7922,Other expenses,19.50,0.00,19.50
Children and Young Peoples Services,Head of Education and Skills,078554,Adult Skills-Main,Supplies and Services,384999,Miscellaneous Expenses,03-Dec-2019,000006809733356,WWW.BEAMISH.ORG.UK,7922,Other expenses,19.50,0.00,19.50
Children and Young Peoples Services,Head of Childrens Social Care,085352,Tow Law CU,Supplies and Services,324117,Provisions E324,03-Dec-2019,000006809733364,ASDA SUPERSTORE 4987,5411,Catering costs - provisions,48.51,0.00,48.51
Children and Young Peoples Services,Head of Childrens Social Care,085352,Tow Law CU,Supplies and Services,324117,Provisions E324,03-Dec-2019,000006809733370,ASDA SUPERSTORE 4987,5411,Catering costs - provisions,12.00,0.00,12.00
Regeneration and Local Services,Corporate Property and Land,030691,Catering - Durham Dales Centre,Supplies and Services,324117,Provisions E324,03-Dec-2019,000006809733392,FREEMAN CATERING BUTCH,5422,Catering costs - provisions,83.98,0.00,83.98
Regeneration and Local Services,Corporate Property and Land,030691,Catering - Durham Dales Centre,Supplies and Services,324117,Provisions E324,03-Dec-2019,000006809733394,FREEMAN CATERING BUTCH,5422,Catering costs - provisions,54.99,0.00,54.99
Regeneration and Local Services,Corporate Property and Land,030691,Catering - Durham Dales Centre,Supplies and Services,324117,Provisions E324,03-Dec-2019,000006809733398,FREEMAN CATERING BUTCH,5422,Catering costs - provisions,39.40,0.00,39.40
Regeneration and Local Services,Corporate Property and Land,030691,Catering - Durham Dales Centre,Supplies and Services,324117,Provisions E324,03-Dec-2019,000006809733400,FREEMAN CATERING BUTCH,5422,Catering costs - provisions,132.41,0.00,132.41
Regeneration and Local Services,Corporate Property and Land,030691,Catering - Durham Dales Centre,Supplies and Services,324117,Provisions E324,03-Dec-2019,000006809733404,FREEMAN CATERING BUTCH,5422,Catering costs - provisions,8.50,0.00,8.50
Regeneration and Local Services,Corporate Property and Land,030691,Catering - Durham Dales Centre,Supplies and Services,324117,Provisions E324,03-Dec-2019,000006809733406,FREEMAN CATERING BUTCH,5422,Catering costs - provisions,12.18,0.00,12.18
Regeneration and Local Services,Corporate Property and Land,030691,Catering - Durham Dales Centre,Supplies and Services,324117,Provisions E324,03-Dec-2019,000006809733410,FREEMAN CATERING BUTCH,5422,Catering costs - provisions,50.76,0.00,50.76
Regeneration and Local Services,Development and Housing,031576,B& B - Temp Accom,Supplies and Services,364320,Grants to Voluntary Organisations,03-Dec-2019,000006809733412,BANNATYNE.CO.UK,7011,Accommodation assistance,104.00,0.00,104.00
Adult and Health Services,Head of Adults,055643,Hawthorn House LD Respite Unit,Supplies and Services,324117,Provisions E324,03-Dec-2019,000006809733416,JR HOLLAND FOODSERVICE,5499,Catering costs - provisions,17.38,0.00,17.38
Adult and Health Services,Head of Adults,055643,Hawthorn House LD Respite Unit,Supplies and Services,324117,Provisions E324,03-Dec-2019,000006809733420,FREEMAN CATERING BUTCH,5422,Catering costs - provisions,31.25,0.00,31.25
Adult and Health Services,Head of Adults,055643,Hawthorn House LD Respite Unit,Supplies and Services,324117,Provisions E324,03-Dec-2019,000006809733426,FREEMAN CATERING BUTCH,5422,Catering costs - provisions,44.32,0.00,44.32
Resources BK0010,Digital and Customer Services,070110,School Services - Man Info System (MIS) Support Team,Supplies and Services,342033,Computers and Communications,03-Dec-2019,000006809733474,AMZNMKTPLACE AMAZON.CO,5999,Computer hardware,19.00,3.17,15.83
Resources BK0010,Digital and Customer Services,070110,School Services - Man Info System (MIS) Support Team,Supplies and Services,342033,Computers and Communications,03-Dec-2019,000006809733476,AMZNMKTPLACE AMAZON.CO,5999,Computer hardware,456.00,76.08,379.92
Regeneration and Local Services,Development and Housing,030771,Durham Advance Flexible Fund,Employees,040149,Recruitment Instruction and Training,03-Dec-2019,000006809733490,WWW.DISCLOSURE.CAPITAR,8999,Training-all costs,40.00,0.00,40.00
Regeneration and Local Services,Development and Housing,030771,Durham Advance Flexible Fund,Supplies and Services,348037,Subsistence E348,03-Dec-2019,000006809733494,COSTA COFFEE,5814,Subsistence,5.60,0.93,4.67
Regeneration and Local Services,Corporate Property and Land,021324,Catering - Meadowfield,Supplies and Services,324117,Provisions E324,03-Dec-2019,000006809733518,JR HOLLAND FOODSERVICE,5499,Catering costs - provisions,72.76,0.00,72.76
Regeneration and Local Services,Corporate Property and Land,021324,Catering - Meadowfield,Supplies and Services,324117,Provisions E324,03-Dec-2019,000006809733522,JR HOLLAND FOODSERVICE,5499,Catering costs - provisions,14.19,0.00,14.19
Regeneration and Local Services,Corporate Property and Land,021324,Catering - Meadowfield,Supplies and Services,324117,Provisions E324,03-Dec-2019,000006809733526,FREEMAN CATERING BUTCH,5422,Catering costs - provisions,43.71,0.00,43.71
Regeneration and Local Services,Corporate Property and Land,021324,Catering - Meadowfield,Supplies and Services,324117,Provisions E324,03-Dec-2019,000006809733528,FREEMAN CATERING BUTCH,5422,Catering costs - provisions,44.44,0.00,44.44
Regeneration and Local Services,Corporate Property and Land,021324,Catering - Meadowfield,Supplies and Services,324117,Provisions E324,03-Dec-2019,000006809733530,FREEMAN CATERING BUTCH,5422,Catering costs - provisions,105.24,0.00,105.24
Regeneration and Local Services,Corporate Property and Land,021324,Catering - Meadowfield,Supplies and Services,324117,Provisions E324,03-Dec-2019,000006809733536,FREEMAN CATERING BUTCH,5422,Catering costs - provisions,55.37,0.00,55.37
Adult and Health Services,Head of Adults,055301,Stanley Pathways,Supplies and Services,324117,Provisions E324,03-Dec-2019,000006809733546,WILKO RETAIL LIMITED,5399,Catering costs - provisions,10.00,0.00,10.00
Children and Young Peoples Services,Head of Childrens Social Care,085352,Tow Law CU,Supplies and Services,348037,Subsistence E348,03-Dec-2019,000006809733568,MCDONALDS,5812,Subsistence,17.76,0.00,17.76
Children and Young Peoples Services,Head of Education and Skills,071802,Louisa Cent Nursery,Supplies and Services,324117,Provisions E324,03-Dec-2019,000006809733576,ASDA SUPERSTORE,5411,Catering costs - provisions,118.15,0.00,118.15
Resources BK0010,Corporate Finance & Commercial Services,069800,Corporate Procurement 069800,Employees,040149,Recruitment Instruction and Training,03-Dec-2019,000006809733604,WWW.CIPS.ORG,8699,Training-all costs,78.00,0.00,78.00
Children and Young Peoples Services,Head of Childrens Social Care,085332,Middlestone Moor CU,Supplies and Services,324117,Provisions E324,03-Dec-2019,000006809733616,ASDA SUPERSTORE 4987,5411,Catering costs - provisions,21.38,0.00,21.38
Children and Young Peoples Services,Head of Early Help Inclusion & Vulnerable Children.,088107,Ferryhill & Newton Aycliffe 0-19 Community Family Hub,Supplies and Services,324117,Provisions E324,03-Dec-2019,000006809733620,ASDA GROCERIES ONLINE,5411,Catering costs - provisions,42.25,0.00,42.25
Children and Young Peoples Services,Head of Early Help Inclusion & Vulnerable Children.,088107,Ferryhill & Newton Aycliffe 0-19 Community Family Hub,Supplies and Services,324117,Provisions E324,03-Dec-2019,000006809733622,ASDA GROCERIES ONLINE,5411,Catering costs - provisions,-0.15,0.00,-0.15
Children and Young Peoples Services,Head of Education and Skills,076001,Music Service,Supplies and Services,304403,Equipment and Materials,03-Dec-2019,000006809733680,AMZNMktplace,5999,Other consumables,28.61,4.77,23.84
Regeneration and Local Services,Business Durham CL0850,030694,Plexus 2,Supplies and Services,324117,Provisions E324,03-Dec-2019,000006809733712,SAINSBURYS (2303),5411,Catering costs - provisions,6.00,0.00,6.00
Children and Young Peoples Services,Head of Childrens Social Care,085333,Coxhoe Satelite Home,Supplies and Services,328041,Clothing uniforms and laundry E328,03-Dec-2019,000006815049056,PRIMARK 670 GATESHEAD,5651,Clothing uniforms and laundry,65.60,0.00,65.60
Regeneration and Local Services,Corporate Property and Land,021242,Catering - County Hall,Supplies and Services,324117,Provisions E324,03-Dec-2019,000006815049102,BATLEYS PERTH,5300,Catering costs - provisions,237.42,39.57,197.85
Regeneration and Local Services,Corporate Property and Land,021242,Catering - County Hall,Supplies and Services,324117,Provisions E324,03-Dec-2019,000006815049102 - 1,BATLEYS PERTH,5300,Catering costs - provisions,129.81,,129.81
Children and Young Peoples Services,Head of Childrens Social Care,085342,9 Cedar Drive Aycliffe,Supplies and Services,328041,Clothing uniforms and laundry E328,03-Dec-2019,000006815049276,PRIMARK,5651,Clothing uniforms and laundry,25.50,0.00,25.50
Children and Young Peoples Services,Head of Childrens Social Care,085342,9 Cedar Drive Aycliffe,Supplies and Services,348037,Subsistence E348,03-Dec-2019,000006815049280,THE GATE DARLINGTON,5813,Subsistence,71.95,0.00,71.95
Regeneration and Local Services,Development and Housing,031500,Housing Solutions - Core Team,Employees,040149,Recruitment Instruction and Training,03-Dec-2019,000006815049352,PREMIER INN,3811,Training-all costs,95.00,15.83,79.17
Children and Young Peoples Services,Head of Early Help Inclusion & Vulnerable Children.,071746,Newton Aycliffe Childrens Centre,Supplies and Services,324117,Provisions E324,03-Dec-2019,000006815049368,BATLEYS PERTH,5300,Catering costs - provisions,4.26,0.71,3.55
Regeneration and Local Services,Environmental Services,011060,C&G - Hardwick Park Catering,Supplies and Services,324117,Provisions E324,03-Dec-2019,000006815049426,BATLEYS PERTH,5300,Catering costs - provisions,31.02,5.17,25.85
Regeneration and Local Services,Environmental Services,011060,C&G - Hardwick Park Catering,Supplies and Services,324117,Provisions E324,03-Dec-2019,000006815049426 - 1,BATLEYS PERTH,5300,Catering costs - provisions,216.82,,216.82
Regeneration and Local Services,Corporate Property and Land,021234,Catering - Locomotion,Supplies and Services,324117,Provisions E324,03-Dec-2019,000006815049458,BATLEYS PERTH,5300,Catering costs - provisions,177.84,29.64,148.20
Regeneration and Local Services,Corporate Property and Land,021234,Catering - Locomotion,Supplies and Services,324117,Provisions E324,03-Dec-2019,000006815049458 - 1,BATLEYS PERTH,5300,Catering costs - provisions,10.88,,10.88
Children and Young Peoples Services,Head of Childrens Social Care,085333,Coxhoe Satelite Home,Supplies and Services,328041,Clothing uniforms and laundry E328,03-Dec-2019,000006815049596,B & M RETAIL,5310,Clothing uniforms and laundry,7.99,0.00,7.99
Regeneration and Local Services,Corporate Property and Land,021324,Catering - Meadowfield,Supplies and Services,324117,Provisions E324,03-Dec-2019,000006815049798,BATLEYS PERTH,5300,Catering costs - provisions,106.68,17.78,88.90
Regeneration and Local Services,Corporate Property and Land,021324,Catering - Meadowfield,Supplies and Services,324117,Provisions E324,03-Dec-2019,000006815049798 - 1,BATLEYS PERTH,5300,Catering costs - provisions,103.49,,103.49
Children and Young Peoples Services,Head of Early Help Inclusion & Vulnerable Children.,071616,Seaham Childrens Centre,Supplies and Services,332047,Printing Stationery and Gen Off Exps,03-Dec-2019,000006821046142,WWW.POSTOFFICESHOP.CO.,5111,Stationery,87.30,0.00,87.30
Children and Young Peoples Services,Head of Childrens Social Care,085332,Middlestone Moor CU,Supplies and Services,304999,Equipment and Materials,03-Dec-2019,000006837162734,BOOTS.COM,5912,Misc equipment tools and materials,86.00,0.00,86.00
Children and Young Peoples Services,Head of Childrens Social Care,085342,9 Cedar Drive Aycliffe,Supplies and Services,304999,Equipment and Materials,03-Dec-2019,000006861422910,SUPERDRUG STORES PLC,5912,Misc equipment tools and materials,21.50,0.00,21.50
Resources BK0010,Digital and Customer Services,065481,Technical Services 065481,Supplies and Services,372009,Subscriptions E372,04-Dec-2019,000006809732712,WEB NETWORKSOLUTIONS,5968,Subscriptions 372009,4.98,0.00,4.98
Resources BK0010,Digital and Customer Services,065481,Technical Services 065481,Supplies and Services,372009,Subscriptions E372,04-Dec-2019,000006809732714,WEB NETWORKSOLUTIONS,5968,Subscriptions 372009,7.76,0.00,7.76
Children and Young Peoples Services,Head of Childrens Social Care,085341,High Etherley Satelite Home,Supplies and Services,324117,Provisions E324,04-Dec-2019,000006815048822,TESCO STORES 6329,5411,Catering costs - provisions,102.70,0.00,102.70
Children and Young Peoples Services,Head of Childrens Social Care,085341,High Etherley Satelite Home,Supplies and Services,308011,Furniture,04-Dec-2019,000006815048824,FRANKS THE FLOORING ST,5713,Furniture repair and replacement,350.00,0.00,350.00
Children and Young Peoples Services,Head of Childrens Social Care,085341,High Etherley Satelite Home,Supplies and Services,304999,Equipment and Materials,04-Dec-2019,000006815048830,SumUp Slimming world,7298,Misc equipment tools and materials,12.80,0.00,12.80
Children and Young Peoples Services,Head of Childrens Social Care,085341,High Etherley Satelite Home,Supplies and Services,324117,Provisions E324,04-Dec-2019,000006815048834,ICELAND,5411,Catering costs - provisions,14.75,0.00,14.75
Children and Young Peoples Services,Head of Childrens Social Care,085341,High Etherley Satelite Home,Transport,215995,Running Costs of Vehicles,04-Dec-2019,000006815048836,TESCO PFS 4214,5541,Vehicle running expenses,30.17,0.00,30.17
Children and Young Peoples Services,Head of Education and Skills,071801,Selby Cottage Childcare Centre,Supplies and Services,324117,Provisions E324,04-Dec-2019,000006815048858,JR HOLLAND FOODSERVICE,5499,Catering costs - provisions,359.02,0.00,359.02
Children and Young Peoples Services,Head of Education and Skills,071801,Selby Cottage Childcare Centre,Supplies and Services,324117,Provisions E324,04-Dec-2019,000006815048860,TESCO STORES 2278,5411,Catering costs - provisions,70.28,0.00,70.28
Children and Young Peoples Services,Head of Education and Skills,071801,Selby Cottage Childcare Centre,Supplies and Services,324117,Provisions E324,04-Dec-2019,000006815048866,WILKO RETAIL LIMITED,5399,Catering costs - provisions,40.57,0.00,40.57
Regeneration and Local Services,Development and Housing,031576,B& B - Temp Accom,Supplies and Services,364320,Grants to Voluntary Organisations,04-Dec-2019,000006815048870,THE HONEST LAWYER,7011,Accommodation assistance,157.95,0.00,157.95
Regeneration and Local Services,Development and Housing,031576,B& B - Temp Accom,Supplies and Services,364320,Grants to Voluntary Organisations,04-Dec-2019,000006815048872,THE HONEST LAWYER,7011,Accommodation assistance,137.90,0.00,137.90
Transformation and Partnerships,Partnerships & Community Engagement Div.,052707,Partnership Team,Supplies and Services,304403,Equipment and Materials,04-Dec-2019,000006815048880,AMZNMKTPLACE AMAZON.CO,5999,Other consumables,43.76,7.29,36.47
Resources BK0010,Legal & Democratic Services,069326,Practice Management,Supplies and Services,332047,Printing Stationery and Gen Off Exps,04-Dec-2019,000006815048886,EPL JINLIKEJICO,5699,Stationery,41.41,0.00,41.41
Children and Young Peoples Services,Head of Childrens Social Care,085501,Child Care Cases Legal Expenses,Supplies and Services,304403,Equipment and Materials,04-Dec-2019,000006815048914,DUNDEE CC T/T,9399,Other consumables,15.00,0.00,15.00
Children and Young Peoples Services,Head of Childrens Social Care,085501,Child Care Cases Legal Expenses,Supplies and Services,304403,Equipment and Materials,04-Dec-2019,000006815048918,SUNDERLAND CC,9399,Other consumables,44.00,0.00,44.00
Children and Young Peoples Services,Head of Childrens Social Care,085501,Child Care Cases Legal Expenses,Supplies and Services,304403,Equipment and Materials,04-Dec-2019,000006815048922,DARLINGTON BC INTERNET,9399,Other consumables,11.00,0.00,11.00
Children and Young Peoples Services,Head of Childrens Social Care,085501,Child Care Cases Legal Expenses,Supplies and Services,304403,Equipment and Materials,04-Dec-2019,000006815048924,DARLINGTON BC INTERNET,9399,Other consumables,11.00,0.00,11.00
Children and Young Peoples Services,Head of Childrens Social Care,085501,Child Care Cases Legal Expenses,Supplies and Services,304403,Equipment and Materials,04-Dec-2019,000006815048928,DARLINGTON BC INTERNET,9399,Other consumables,11.00,0.00,11.00
Regeneration and Local Services,Development and Housing,030773,CLLD North,Supplies and Services,304403,Equipment and Materials,04-Dec-2019,000006815048932,AMZNMktplace,5999,Other consumables,32.00,0.00,32.00
Regeneration and Local Services,Development and Housing,030773,CLLD North,Premises,120037,Energy Costs,04-Dec-2019,000006815048936,UTILITA ENERGY LTD,4900,Other fuels,20.00,0.00,20.00
Regeneration and Local Services,Development and Housing,030773,CLLD North,Premises,120037,Energy Costs,04-Dec-2019,000006815048938,UTILITA ENERGY LTD,4900,Other fuels,20.00,0.00,20.00
Adult and Health Services,Head of Adults,055302,Durham Pathways,Supplies and Services,324117,Provisions E324,04-Dec-2019,000006815048982,SAINSBURYS SACAT 0776,5411,Catering costs - provisions,2.80,0.00,2.80
Dedicated Schools Grant BG0015,DSG High Needs Block,079050,SENSS-Sensory,Supplies and Services,304403,Equipment and Materials,04-Dec-2019,000006815048986,AMZNMktplace,5999,Other consumables,33.60,5.60,28.00
Dedicated Schools Grant BG0015,DSG High Needs Block,079050,SENSS-Sensory,Supplies and Services,304403,Equipment and Materials,04-Dec-2019,000006815048990,AMZNMktplace,5999,Other consumables,11.85,1.98,9.87
Dedicated Schools Grant BG0015,DSG High Needs Block,079050,SENSS-Sensory,Supplies and Services,304403,Equipment and Materials,04-Dec-2019,000006815048992,AMZNMktplace,5999,Other consumables,16.59,2.80,13.79
Regeneration and Local Services,Corporate Property and Land,021242,Catering - County Hall,Premises,145009,Cleaning and Domestic Supplies,04-Dec-2019,000006815049108,ALLIANCE DISPOSABLES L,2842,Other cleaning and domestic costs,288.58,48.10,240.48
Regeneration and Local Services,Corporate Property and Land,021242,Catering - County Hall,Premises,145009,Cleaning and Domestic Supplies,04-Dec-2019,000006815049112,ALLIANCE DISPOSABLES L,2842,Other cleaning and domestic costs,38.89,6.48,32.41
Regeneration and Local Services,Corporate Property and Land,021242,Catering - County Hall,Supplies and Services,324117,Provisions E324,04-Dec-2019,000006815049116,JR HOLLAND FOODSERVICE,5499,Catering costs - provisions,167.25,0.00,167.25
Regeneration and Local Services,Corporate Property and Land,021242,Catering - County Hall,Supplies and Services,324117,Provisions E324,04-Dec-2019,000006815049120,JR HOLLAND FOODSERVICE,5499,Catering costs - provisions,13.80,0.00,13.80
Regeneration and Local Services,Corporate Property and Land,021242,Catering - County Hall,Supplies and Services,324117,Provisions E324,04-Dec-2019,000006815049124,JR HOLLAND FOODSERVICE,5499,Catering costs - provisions,77.00,0.00,77.00
Regeneration and Local Services,Development and Housing,030770,Durham Advance,Supplies and Services,304259,Equipment and Materials,04-Dec-2019,000006815049128,WWW.FCO.GOV.UK,9399,Equipment-purchase and rental,55.00,0.00,55.00
Regeneration and Local Services,Environmental Services,010367,C&G - South Grounds Maintenance,Supplies and Services,304999,Equipment and Materials,04-Dec-2019,000006815049154,Snowballs,5251,Misc equipment tools and materials,5.40,0.90,4.50
Regeneration and Local Services,Development and Housing,030544,Rural Employability - Client Engagement,Supplies and Services,324117,Provisions E324,04-Dec-2019,000006815049158,COSTA COFFEE 43035195,5814,Catering costs - provisions,5.10,0.85,4.25
Regeneration and Local Services,Culture Sport and Tourism,054812,Gala Theatre - Catering etc,Supplies and Services,324117,Provisions E324,04-Dec-2019,000006815049162,JR HOLLAND FOODSERVICE,5499,Catering costs - provisions,55.12,0.00,55.12
Regeneration and Local Services,Development and Housing,031576,B& B - Temp Accom,Supplies and Services,364320,Grants to Voluntary Organisations,04-Dec-2019,000006815049232,HOTEL 52,7011,Accommodation assistance,235.92,0.00,235.92
Children and Young Peoples Services,Head of Childrens Social Care,085334,West Rainton Satelite Home,Supplies and Services,324117,Provisions E324,04-Dec-2019,000006815049250,LIDL GB DURHAM,5411,Catering costs - provisions,78.00,0.00,78.00
Children and Young Peoples Services,Head of Childrens Social Care,085334,West Rainton Satelite Home,Supplies and Services,324117,Provisions E324,04-Dec-2019,000006815049254,LIDL GB DURHAM,5411,Catering costs - provisions,4.82,0.00,4.82
Regeneration and Local Services,Environmental Services,010900,Fleet - Meadowfield Fleet,Transport,215013,Running Costs of Vehicles,04-Dec-2019,000006815049258,DVLA VEHICLE TAX,9399,Vehicle Excise Duty (VED),262.50,0.00,262.50
Children and Young Peoples Services,Head of Childrens Social Care,085352,Tow Law CU,Supplies and Services,348037,Subsistence E348,04-Dec-2019,000006815049262,MCDONALD`S,5812,Subsistence,2.80,0.00,2.80
Transformation and Partnerships,Business Support,052986,CYPS - Locality and Operational Support,Supplies and Services,328041,Clothing uniforms and laundry E328,04-Dec-2019,000006815049268,ARGOS LTD,5310,Clothing uniforms and laundry,67.00,0.00,67.00
Children and Young Peoples Services,Head of Education and Skills,071732,Dean Bank Childcare,Supplies and Services,304403,Equipment and Materials,04-Dec-2019,000006815049294,AMZNMktplace,5999,Other consumables,24.75,4.14,20.61
Children and Young Peoples Services,Head of Education and Skills,071732,Dean Bank Childcare,Supplies and Services,304403,Equipment and Materials,04-Dec-2019,000006815049298,AMZNMktplace,5999,Other consumables,24.75,4.14,20.61
Regeneration and Local Services,Development and Housing,030771,Durham Advance Flexible Fund,Supplies and Services,324117,Provisions E324,04-Dec-2019,000006815049308,ASDA STORES LTD 4313,5411,Catering costs - provisions,20.00,0.00,20.00
Regeneration and Local Services,Environmental Services,010314,Nei.Prot - Bereavement Services,Supplies and Services,304259,Equipment and Materials,04-Dec-2019,000006815049314,Durham County CNCL,9399,Equipment-purchase and rental,11.00,0.00,11.00
Children and Young Peoples Services,Head of Childrens Social Care,085332,Middlestone Moor CU,Supplies and Services,324117,Provisions E324,04-Dec-2019,000006815049326,ALDI 59 774,5411,Catering costs - provisions,3.75,0.00,3.75
Regeneration and Local Services,Environmental Services,010301,C&G - North Grounds Maintenance,Supplies and Services,304403,Equipment and Materials,04-Dec-2019,000006815049348,BESCOL,5231,Other consumables,75.17,12.53,62.64
Regeneration and Local Services,Development and Housing,031500,Housing Solutions - Core Team,Supplies and Services,352001,Conference Expenses,04-Dec-2019,000006815049356,HAYAT HOTEL,7011,Conferencesseminars fees etc,371.00,0.00,371.00
Regeneration and Local Services,Business Durham CL0850,030674,Business Services General,Supplies and Services,342033,Computers and Communications,04-Dec-2019,000006815049360,STK Shutterstock,7333,Computer hardware,19.00,0.00,19.00
Regeneration and Local Services,Business Durham CL0850,030674,Business Services General,Supplies and Services,342222,Computers and Communications,04-Dec-2019,000006815049364,FASTHOSTS INTERNET,4816,Comp hardware purch-network servers,6.34,1.06,5.28
Children and Young Peoples Services,Head of Early Help Inclusion & Vulnerable Children.,071445,Chester le Street One Point Hub,Transport,235057,Public Transport,04-Dec-2019,000006815049378,GO NORTH EAST - V/T,4131,Staff travelling,75.00,0.00,75.00
Children and Young Peoples Services,Head of Early Help Inclusion & Vulnerable Children.,085957,Secure Management,Supplies and Services,304403,Equipment and Materials,04-Dec-2019,000006815049382,AMZNMktplace,5999,Other consumables,6.58,0.00,6.58
Children and Young Peoples Services,Head of Early Help Inclusion & Vulnerable Children.,085957,Secure Management,Supplies and Services,328041,Clothing uniforms and laundry E328,04-Dec-2019,000006815049386,BOOHOO.COM,5691,Clothing uniforms and laundry,12.00,0.00,12.00
Children and Young Peoples Services,Head of Early Help Inclusion & Vulnerable Children.,085957,Secure Management,Supplies and Services,324117,Provisions E324,04-Dec-2019,000006815049390,TESCO STORES 6329,5411,Catering costs - provisions,80.36,0.00,80.36
Children and Young Peoples Services,Head of Early Help Inclusion & Vulnerable Children.,085957,Secure Management,Supplies and Services,384999,Miscellaneous Expenses,04-Dec-2019,000006815049394,Amazon.co.uk PU3416515,5969,Other expenses,117.73,19.62,98.11
Children and Young Peoples Services,Head of Early Help Inclusion & Vulnerable Children.,085957,Secure Management,Employees,040149,Recruitment Instruction and Training,04-Dec-2019,000006815049398,WWW.BKSB.co.uk cur,8299,Training-all costs,198.00,0.00,198.00
Children and Young Peoples Services,Head of Early Help Inclusion & Vulnerable Children.,085957,Secure Management,Supplies and Services,304403,Equipment and Materials,04-Dec-2019,000006815049402,AMZNMKTPLACE AMAZON.CO,5999,Other consumables,23.96,0.00,23.96
Transformation and Partnerships,Business Support,052986,CYPS - Locality and Operational Support,Supplies and Services,304403,Equipment and Materials,04-Dec-2019,000006815049404,CITY TAXIS,5734,Other consumables,25.00,0.00,25.00
Transformation and Partnerships,Business Support,052986,CYPS - Locality and Operational Support,Supplies and Services,304403,Equipment and Materials,04-Dec-2019,000006815049408,CITY TAXIS,5734,Other consumables,25.00,0.00,25.00
Regeneration and Local Services,Environmental Services,010367,C&G - South Grounds Maintenance,Supplies and Services,384999,Miscellaneous Expenses,04-Dec-2019,000006815049420,GUSTHARTS.COM,5046,Other expenses,370.01,61.67,308.34
Regeneration and Local Services,Environmental Services,011060,C&G - Hardwick Park Catering,Premises,145009,Cleaning and Domestic Supplies,04-Dec-2019,000006815049432,ALLIANCE DISPOSABLES L,2842,Other cleaning and domestic costs,307.74,51.29,256.45
Regeneration and Local Services,Environmental Services,011060,C&G - Hardwick Park Catering,Supplies and Services,324117,Provisions E324,04-Dec-2019,000006815049440,JR HOLLAND FOODSERVICE,5499,Catering costs - provisions,10.40,0.00,10.40
Children and Young Peoples Services,Head of Early Help Inclusion & Vulnerable Children.,088101,CLS 0-19 Community Family Hub,Supplies and Services,324117,Provisions E324,04-Dec-2019,000006815049466,CO-OP GROUP 010460,5411,Catering costs - provisions,16.16,0.00,16.16
Children and Young Peoples Services,Head of Early Help Inclusion & Vulnerable Children.,071443,Stanley One Point Hub,Supplies and Services,384999,Miscellaneous Expenses,04-Dec-2019,000006815049530,Amazon.co.uk KN9H84995,5969,Other expenses,54.00,9.00,45.00
Regeneration and Local Services,Development and Housing,030735,Economic Development - Employability,Supplies and Services,324117,Provisions E324,04-Dec-2019,000006815049580,ASDA GROCERIES ONLINE,5411,Catering costs - provisions,95.72,0.00,95.72
Regeneration and Local Services,Development and Housing,030735,Economic Development - Employability,Supplies and Services,324117,Provisions E324,04-Dec-2019,000006815049584,ASDA GROCERIES ONLINE,5411,Catering costs - provisions,-8.76,0.00,-8.76
Regeneration and Local Services,Corporate Property and Land,020082,Bldg Serv - R&M Div 82- Lifts,Supplies and Services,384999,Miscellaneous Expenses,04-Dec-2019,000006815049588,TT2,4784,Other expenses,5.00,0.00,5.00
Children and Young Peoples Services,Head of Childrens Social Care,085342,9 Cedar Drive Aycliffe,Supplies and Services,304259,Equipment and Materials,04-Dec-2019,000006815049616,CURRYS ONLINE,5732,Equipment-purchase and rental,26.00,0.00,26.00
Regeneration and Local Services,Environmental Services,010367,C&G - South Grounds Maintenance,Supplies and Services,304221,Equipment and Materials,04-Dec-2019,000006815049630,THINFORD NURSERIES,5261,Direct materials,60.00,10.00,50.00
Children and Young Peoples Services,Head of Childrens Social Care,085352,Tow Law CU,Supplies and Services,324117,Provisions E324,04-Dec-2019,000006815049652,ASDA SUPERSTORE 4987,5411,Catering costs - provisions,140.23,0.00,140.23
Regeneration and Local Services,Corporate Property and Land,030691,Catering - Durham Dales Centre,Premises,145009,Cleaning and Domestic Supplies,04-Dec-2019,000006815049656,ALLIANCE DISPOSABLES L,2842,Other cleaning and domestic costs,85.26,14.21,71.05
Regeneration and Local Services,Corporate Property and Land,030691,Catering - Durham Dales Centre,Premises,145009,Cleaning and Domestic Supplies,04-Dec-2019,000006815049656 - 1,ALLIANCE DISPOSABLES L,2842,Other cleaning and domestic costs,12.71,,12.71
Regeneration and Local Services,Development and Housing,031576,B& B - Temp Accom,Supplies and Services,364320,Grants to Voluntary Organisations,04-Dec-2019,000006815049676,AYCLIFFE BIZ,7011,Accommodation assistance,76.00,0.00,76.00
Children and Young Peoples Services,Head of Early Help Inclusion & Vulnerable Children.,071593,Bullion Childrens Centre,Supplies and Services,324117,Provisions E324,04-Dec-2019,000006815049700,TESCO STORES 2371,5411,Catering costs - provisions,22.20,0.00,22.20
Regeneration and Local Services,Development and Housing,030771,Durham Advance Flexible Fund,Transport,235057,Public Transport,04-Dec-2019,000006815049746,GO NORTH EAST - V/T,4131,Staff travelling,5.30,0.00,5.30
Regeneration and Local Services,Development and Housing,030771,Durham Advance Flexible Fund,Supplies and Services,348037,Subsistence E348,04-Dec-2019,000006815049750,COSTA COFFEE,5814,Subsistence,5.10,0.85,4.25
Transformation and Partnerships,Partnerships & Community Engagement Div.,052707,Partnership Team,Supplies and Services,384199,Miscellaneous Expenses,04-Dec-2019,000006815049760,WILKO.COM,5399,Other hired and contracted services,46.00,7.67,38.33
Transformation and Partnerships,Business Support,069010,Administration 069010,Supplies and Services,384199,Miscellaneous Expenses,04-Dec-2019,000006815049764,WWW.ARGOS.CO.UK,5310,Other hired and contracted services,33.94,0.00,33.94
Transformation and Partnerships,Business Support,052986,CYPS - Locality and Operational Support,Supplies and Services,304259,Equipment and Materials,04-Dec-2019,000006815049770,SUNDERLAND CC,9399,Equipment-purchase and rental,11.00,0.00,11.00
Transformation and Partnerships,Business Support,052986,CYPS - Locality and Operational Support,Supplies and Services,304259,Equipment and Materials,04-Dec-2019,000006815049774,SHEFFIELD CITY CNC,9399,Equipment-purchase and rental,12.00,0.00,12.00
Transformation and Partnerships,Business Support,052986,CYPS - Locality and Operational Support,Supplies and Services,304403,Equipment and Materials,04-Dec-2019,000006815049780,AMZNMktplace,5999,Other consumables,5.85,0.98,4.87
Transformation and Partnerships,Business Support,052986,CYPS - Locality and Operational Support,Supplies and Services,304403,Equipment and Materials,04-Dec-2019,000006815049784,AMZNMktplace,5999,Other consumables,42.34,7.07,35.27
Adult and Health Services,Head of Adults,055301,Stanley Pathways,Supplies and Services,328041,Clothing uniforms and laundry E328,04-Dec-2019,000006815049812,POUNDSTRETCHER 255,5331,Clothing uniforms and laundry,18.96,0.00,18.96
Adult and Health Services,Head of Adults,055301,Stanley Pathways,Supplies and Services,324117,Provisions E324,04-Dec-2019,000006815049816,ASDA STORES LTD 4313,5411,Catering costs - provisions,1.00,0.00,1.00
Adult and Health Services,Head of Adults,055301,Stanley Pathways,Supplies and Services,328041,Clothing uniforms and laundry E328,04-Dec-2019,000006815049818,B&M RETAIL,5310,Clothing uniforms and laundry,31.96,0.00,31.96
Regeneration and Local Services,Development and Housing,031576,B& B - Temp Accom,Supplies and Services,364320,Grants to Voluntary Organisations,04-Dec-2019,000006815049822,HAYAT HOTEL,7011,Accommodation assistance,178.00,0.00,178.00
Regeneration and Local Services,Business Durham CL0850,030608,Tanfield Lea Business Centre,Supplies and Services,304259,Equipment and Materials,04-Dec-2019,000006815049828,POUNDSTRETCHER 354,5331,Equipment-purchase and rental,4.74,0.00,4.74
Children and Young Peoples Services,Head of Childrens Social Care,085342,9 Cedar Drive Aycliffe,Supplies and Services,324117,Provisions E324,04-Dec-2019,000006815049842,TESCO STORES 2916,5411,Catering costs - provisions,10.88,0.00,10.88
Children and Young Peoples Services,Head of Childrens Social Care,085342,9 Cedar Drive Aycliffe,Supplies and Services,324117,Provisions E324,04-Dec-2019,000006815049846,WALKERS BUTCHERS & BAK,5499,Catering costs - provisions,31.39,0.00,31.39
Children and Young Peoples Services,Head of Education and Skills,071802,Louisa Cent Nursery,Supplies and Services,324117,Provisions E324,04-Dec-2019,000006815049852,ASDA SUPERSTORE,5411,Catering costs - provisions,2.25,0.00,2.25
Resources BK0010,People & Talent Management,010984,Training and Development,Supplies and Services,304259,Equipment and Materials,04-Dec-2019,000006815049904,WWW.CHAS.CO.UK,9399,Equipment-purchase and rental,376.80,62.80,314.00
Adult and Health Services,Head of Adults,055310,Positive Journeys (Tudhoe),Supplies and Services,324117,Provisions E324,04-Dec-2019,000006815049974,ASDA SUPERSTORE 4987,5411,Catering costs - provisions,2.48,0.00,2.48
Adult and Health Services,Head of Adults,055309,Peterlee Pathways,Supplies and Services,324117,Provisions E324,04-Dec-2019,000006815050010,ASDA SUPERSTORE 4987,5411,Catering costs - provisions,2.00,0.00,2.00
Children and Young Peoples Services,Head of Childrens Social Care,085332,Middlestone Moor CU,Supplies and Services,324117,Provisions E324,04-Dec-2019,000006815050054,ASDA GROCERIES ONLINE,5411,Catering costs - provisions,144.16,0.00,144.16
Children and Young Peoples Services,Head of Childrens Social Care,085332,Middlestone Moor CU,Supplies and Services,324117,Provisions E324,04-Dec-2019,000006815050060,ASDA GROCERIES ONLINE,5411,Catering costs - provisions,-0.14,0.00,-0.14
Regeneration and Local Services,Development and Housing,030771,Durham Advance Flexible Fund,Supplies and Services,328041,Clothing uniforms and laundry E328,04-Dec-2019,000006815050074,MATALAN,5691,Clothing uniforms and laundry,87.10,14.52,72.58
Transformation and Partnerships,Business Support,052986,CYPS - Locality and Operational Support,Supplies and Services,384999,Miscellaneous Expenses,04-Dec-2019,000006815050110,Amazon.co.uk PO4UB4WU5,5969,Other expenses,33.12,5.52,27.60
Transformation and Partnerships,Business Support,052986,CYPS - Locality and Operational Support,Supplies and Services,384999,Miscellaneous Expenses,04-Dec-2019,000006815050116,Amazon.co.uk V25SQ46O5,5969,Other expenses,9.99,1.67,8.32
Transformation and Partnerships,Business Support,052986,CYPS - Locality and Operational Support,Supplies and Services,304403,Equipment and Materials,04-Dec-2019,000006815050122,AMZNMktplace,5999,Other consumables,3.74,0.62,3.12
Regeneration and Local Services,Development and Housing,031576,B& B - Temp Accom,Supplies and Services,364320,Grants to Voluntary Organisations,04-Dec-2019,000006821045178,PREMIER INN,3811,Accommodation assistance,91.50,0.00,91.50
Transformation and Partnerships,Partnerships & Community Engagement Div.,052707,Partnership Team,Supplies and Services,304403,Equipment and Materials,04-Dec-2019,000006821045194,AMZNMKTPLACE AMAZON.CO,5999,Other consumables,19.98,3.34,16.64
Regeneration and Local Services,Development and Housing,031500,Housing Solutions - Core Team,Employees,040149,Recruitment Instruction and Training,04-Dec-2019,000006821045760,PREMIER INN,3811,Training-all costs,91.00,15.17,75.83
Regeneration and Local Services,Development and Housing,031576,B& B - Temp Accom,Supplies and Services,364320,Grants to Voluntary Organisations,04-Dec-2019,000006821046204,PREMIER INN,3811,Accommodation assistance,91.00,0.00,91.00
Resources BK0010,Digital and Customer Services,065335,School Services - Implementations,Supplies and Services,304639,Equipment and Materials,04-Dec-2019,000006821046252,ALIEXPRESS,5311,Technicians-supplies,15.15,0.00,15.15
Regeneration and Local Services,Development and Housing,031030,Development Management 031030,Supplies and Services,304403,Equipment and Materials,04-Dec-2019,000006821046334,WWW.LASER-MEASURE.CO.U,5999,Other consumables,322.80,53.80,269.00
Children and Young Peoples Services,Head of Early Help Inclusion & Vulnerable Children.,085957,Secure Management,Supplies and Services,304259,Equipment and Materials,04-Dec-2019,000006828337188,SPORTSDIRECT.COM,5941,Equipment-purchase and rental,80.98,0.00,80.98
Resources BK0010,Legal & Democratic Services,069326,Practice Management,Supplies and Services,332047,Printing Stationery and Gen Off Exps,05-Dec-2019,000006815048890,EPL JINLIKEJICO,5699,Stationery,1.14,0.00,1.14
Children and Young Peoples Services,Head of Education and Skills,071801,Selby Cottage Childcare Centre,Supplies and Services,324117,Provisions E324,05-Dec-2019,000006821045138,TESCO STORES 2278,5411,Catering costs - provisions,31.94,0.00,31.94
Children and Young Peoples Services,Head of Education and Skills,071801,Selby Cottage Childcare Centre,Supplies and Services,324117,Provisions E324,05-Dec-2019,000006821045146,TESCO STORES 2278,5411,Catering costs - provisions,28.69,0.00,28.69
Transformation and Partnerships,Partnerships & Community Engagement Div.,052707,Partnership Team,Supplies and Services,304403,Equipment and Materials,05-Dec-2019,000006821045186,AMZNMKTPLACE AMAZON.CO,5999,Other consumables,11.95,1.99,9.96
Transformation and Partnerships,Partnerships & Community Engagement Div.,052707,Partnership Team,Supplies and Services,304403,Equipment and Materials,05-Dec-2019,000006821045190,AMZNMKTPLACE AMAZON.CO,5999,Other consumables,7.50,0.00,7.50
Resources BK0010,Digital and Customer Services,065487,ICT Telephony Recharges,Supplies and Services,344033,Telephones,05-Dec-2019,000006821045200,AMZNMktplace,5999,Telephones general-all costs,284.50,47.50,237.00
Resources BK0010,Digital and Customer Services,065351,Microsoft Office 365,Supplies and Services,304335,Equipment and Materials,05-Dec-2019,000006821045206,AMZNMktplace,5999,ICT supplies etc,10.99,1.83,9.16
Children and Young Peoples Services,Head of Childrens Social Care,085501,Child Care Cases Legal Expenses,Supplies and Services,304403,Equipment and Materials,05-Dec-2019,000006821045216,SUNDERLAND CC,7523,Other consumables,-11.00,0.00,-11.00
Children and Young Peoples Services,Head of Education and Skills,075021,Youth Employment Initiative,Supplies and Services,384199,Miscellaneous Expenses,05-Dec-2019,000006821045230,ESSEX COUNTY COUNCIL,9399,Other hired and contracted services,11.00,0.00,11.00
Dedicated Schools Grant BG0015,DSG High Needs Block,079050,SENSS-Sensory,Supplies and Services,304403,Equipment and Materials,05-Dec-2019,000006821045312,AMZNMktplace,5999,Other consumables,53.16,0.00,53.16
Children and Young Peoples Services,Head of Childrens Social Care,085332,Middlestone Moor CU,Supplies and Services,324117,Provisions E324,05-Dec-2019,000006821045326,TESCO STORES 2916,5411,Catering costs - provisions,39.33,0.00,39.33
Children and Young Peoples Services,Head of Childrens Social Care,085332,Middlestone Moor CU,Supplies and Services,324117,Provisions E324,05-Dec-2019,000006821045332,WILKO RETAIL LIMITED,5399,Catering costs - provisions,11.00,0.00,11.00
Regeneration and Local Services,Culture Sport and Tourism,011263,Louisa Centre 011263,Supplies and Services,324117,Provisions E324,05-Dec-2019,000006821045338,JR HOLLAND FOODSERVICE,5499,Catering costs - provisions,30.03,0.00,30.03
Regeneration and Local Services,Corporate Property and Land,021242,Catering - County Hall,Supplies and Services,324117,Provisions E324,05-Dec-2019,000006821045452,JR HOLLAND FOODSERVICE,5499,Catering costs - provisions,66.70,0.00,66.70
Regeneration and Local Services,Corporate Property and Land,021242,Catering - County Hall,Supplies and Services,324117,Provisions E324,05-Dec-2019,000006821045456,JR HOLLAND FOODSERVICE,5499,Catering costs - provisions,13.80,0.00,13.80
Regeneration and Local Services,Corporate Property and Land,021242,Catering - County Hall,Supplies and Services,324117,Provisions E324,05-Dec-2019,000006821045462,JR HOLLAND FOODSERVICE,5499,Catering costs - provisions,107.66,0.00,107.66
Regeneration and Local Services,Corporate Property and Land,021242,Catering - County Hall,Supplies and Services,324117,Provisions E324,05-Dec-2019,000006821045464,JR HOLLAND FOODSERVICE,5499,Catering costs - provisions,1.93,0.00,1.93
Regeneration and Local Services,Corporate Property and Land,021242,Catering - County Hall,Supplies and Services,324117,Provisions E324,05-Dec-2019,000006821045468,WWW.ADELIEFOODS.CO.UK,5499,Catering costs - provisions,30.80,0.00,30.80
Regeneration and Local Services,Corporate Property and Land,021242,Catering - County Hall,Supplies and Services,324117,Provisions E324,05-Dec-2019,000006821045474,WWW.ADELIEFOODS.CO.UK,5499,Catering costs - provisions,46.24,0.00,46.24
Children and Young Peoples Services,Head of Childrens Social Care,085332,Middlestone Moor CU,Supplies and Services,328041,Clothing uniforms and laundry E328,05-Dec-2019,000006821045480,TK MAXX,5331,Clothing uniforms and laundry,2.00,0.00,2.00
Children and Young Peoples Services,Head of Childrens Social Care,085332,Middlestone Moor CU,Supplies and Services,324117,Provisions E324,05-Dec-2019,000006821045486,ASDA SUPERSTORE 4987,5411,Catering costs - provisions,11.40,0.00,11.40
Children and Young Peoples Services,Head of Childrens Social Care,085361,LAC & Permanence Team 1,Supplies and Services,384999,Miscellaneous Expenses,05-Dec-2019,000006821045546,HM PASSPORT OFFICE,9399,Other expenses,75.50,0.00,75.50
Children and Young Peoples Services,Head of Childrens Social Care,085361,LAC & Permanence Team 1,Supplies and Services,384999,Miscellaneous Expenses,05-Dec-2019,000006821045552,HM PASSPORT OFFICE,9399,Other expenses,49.00,0.00,49.00
Children and Young Peoples Services,Head of Early Help Inclusion & Vulnerable Children.,073998,TTF-Co-ordinator Grant,Transfer Payments,525033,Other,05-Dec-2019,000006821045556,Amazon.co.uk EB71P68Q5,5969,Grants to individuals,109.90,0.00,109.90
Children and Young Peoples Services,Head of Early Help Inclusion & Vulnerable Children.,073998,TTF-Co-ordinator Grant,Transfer Payments,525033,Other,05-Dec-2019,000006821045562,FRANKS THE FLOORING ST,5713,Grants to individuals,150.00,25.00,125.00
Children and Young Peoples Services,Head of Childrens Social Care,085334,West Rainton Satelite Home,Supplies and Services,304403,Equipment and Materials,05-Dec-2019,000006821045578,AMZNMktplace,5999,Other consumables,10.58,1.76,8.82
Children and Young Peoples Services,Head of Childrens Social Care,085334,West Rainton Satelite Home,Supplies and Services,324117,Provisions E324,05-Dec-2019,000006821045582,SAINSBURYS 0776,5411,Catering costs - provisions,3.50,0.00,3.50
Children and Young Peoples Services,Head of Childrens Social Care,085334,West Rainton Satelite Home,Supplies and Services,384999,Miscellaneous Expenses,05-Dec-2019,000006821045588,SMYTHS TOYS DURHAM,5945,Other expenses,67.95,0.00,67.95
Children and Young Peoples Services,Head of Education and Skills,071732,Dean Bank Childcare,Supplies and Services,304403,Equipment and Materials,05-Dec-2019,000006821045628,AMZNMktplace,5999,Other consumables,69.30,11.55,57.75
Children and Young Peoples Services,Head of Education and Skills,071732,Dean Bank Childcare,Supplies and Services,304403,Equipment and Materials,05-Dec-2019,000006821045628 - 1,AMZNMktplace,5999,Other consumables,8.92,,8.92
Regeneration and Local Services,Development and Housing,030771,Durham Advance Flexible Fund,Supplies and Services,324117,Provisions E324,05-Dec-2019,000006821045742,TESCO STORES 2371,5411,Catering costs - provisions,4.95,0.83,4.12
Regeneration and Local Services,Development and Housing,030771,Durham Advance Flexible Fund,Supplies and Services,324117,Provisions E324,05-Dec-2019,000006821045746,TESCO STORES 2371,5411,Catering costs - provisions,2.30,0.38,1.92
Children and Young Peoples Services,Head of Childrens Social Care,085334,West Rainton Satelite Home,Supplies and Services,328041,Clothing uniforms and laundry E328,05-Dec-2019,000006821045776,Nike Store 00802,5655,Clothing uniforms and laundry,35.40,0.00,35.40
Children and Young Peoples Services,Head of Childrens Social Care,085334,West Rainton Satelite Home,Supplies and Services,324117,Provisions E324,05-Dec-2019,000006821045784,ASDA STORES LTD 4313,5411,Catering costs - provisions,103.47,0.00,103.47
Children and Young Peoples Services,Head of Childrens Social Care,085334,West Rainton Satelite Home,Supplies and Services,324117,Provisions E324,05-Dec-2019,000006821045788,ASDA STORES LTD 4313,5411,Catering costs - provisions,33.75,0.00,33.75
Children and Young Peoples Services,Head of Early Help Inclusion & Vulnerable Children.,085957,Secure Management,Supplies and Services,324117,Provisions E324,05-Dec-2019,000006821045804,TESCO STORES 6329,5411,Catering costs - provisions,90.43,0.00,90.43
Children and Young Peoples Services,Head of Early Help Inclusion & Vulnerable Children.,085957,Secure Management,Supplies and Services,304403,Equipment and Materials,05-Dec-2019,000006821045814,AMZNMKTPLACE AMAZON.CO,5999,Other consumables,3.99,0.67,3.32
Children and Young Peoples Services,Head of Early Help Inclusion & Vulnerable Children.,085957,Secure Management,Supplies and Services,304403,Equipment and Materials,05-Dec-2019,000006821045818,AMZNMKTPLACE AMAZON.CO,5999,Other consumables,3.98,0.67,3.31
Children and Young Peoples Services,Head of Early Help Inclusion & Vulnerable Children.,085957,Secure Management,Supplies and Services,304403,Equipment and Materials,05-Dec-2019,000006821045820,AMZNMKTPLACE AMAZON.CO,5999,Other consumables,1.94,0.32,1.62
Children and Young Peoples Services,Head of Early Help Inclusion & Vulnerable Children.,085957,Secure Management,Supplies and Services,304403,Equipment and Materials,05-Dec-2019,000006821045826,AMZNMKTPLACE AMAZON.CO,5999,Other consumables,2.99,0.00,2.99
Children and Young Peoples Services,Head of Early Help Inclusion & Vulnerable Children.,085957,Secure Management,Supplies and Services,312009,Newspapers books and periodicals E312,05-Dec-2019,000006821045830,AMZN Mktp UK 100G60075,5942,Newspapers books and periodicals,1.99,0.33,1.66
Children and Young Peoples Services,Head of Early Help Inclusion & Vulnerable Children.,085957,Secure Management,Supplies and Services,384999,Miscellaneous Expenses,05-Dec-2019,000006821045840,AMZ Amazon.co.uk,5969,Other expenses,-117.73,0.00,-117.73
Transformation and Partnerships,Business Support,052986,CYPS - Locality and Operational Support,Supplies and Services,324117,Provisions E324,05-Dec-2019,000006821045870,ASDA GROCERIES ONLINE,5411,Catering costs - provisions,72.00,0.00,72.00
Transformation and Partnerships,Business Support,052986,CYPS - Locality and Operational Support,Supplies and Services,324117,Provisions E324,05-Dec-2019,000006821045874,ASDA GROCERIES ONLINE,5411,Catering costs - provisions,-3.00,0.00,-3.00
Regeneration and Local Services,Environmental Services,026591,C&G - Hardwick Park,Supplies and Services,304083,Equipment and Materials,05-Dec-2019,000006821045890,AMZNMktplace,5999,Catering equipment,16.14,2.69,13.45
Regeneration and Local Services,Corporate Property and Land,021234,Catering - Locomotion,Supplies and Services,324117,Provisions E324,05-Dec-2019,000006821045914,WWW.ADELIEFOODS.CO.UK,5499,Catering costs - provisions,103.53,0.00,103.53
Regeneration and Local Services,Corporate Property and Land,021234,Catering - Locomotion,Supplies and Services,324117,Provisions E324,05-Dec-2019,000006821045918,WWW.ADELIEFOODS.CO.UK,5499,Catering costs - provisions,141.46,0.00,141.46
Regeneration and Local Services,Corporate Property and Land,021234,Catering - Locomotion,Supplies and Services,324117,Provisions E324,05-Dec-2019,000006821045920,WWW.ADELIEFOODS.CO.UK,5499,Catering costs - provisions,170.78,0.00,170.78
Regeneration and Local Services,Corporate Property and Land,021234,Catering - Locomotion,Supplies and Services,324117,Provisions E324,05-Dec-2019,000006821045926,WWW.ADELIEFOODS.CO.UK,5499,Catering costs - provisions,107.54,0.00,107.54
Regeneration and Local Services,Corporate Property and Land,010525,Catering - Green Lane,Supplies and Services,324117,Provisions E324,05-Dec-2019,000006821045960,JR HOLLAND FOODSERVICE,5499,Catering costs - provisions,6.80,0.00,6.80
Regeneration and Local Services,Corporate Property and Land,010525,Catering - Green Lane,Supplies and Services,324117,Provisions E324,05-Dec-2019,000006821045964,JR HOLLAND FOODSERVICE,5499,Catering costs - provisions,60.08,0.00,60.08
Regeneration and Local Services,Corporate Property and Land,010525,Catering - Green Lane,Supplies and Services,324117,Provisions E324,05-Dec-2019,000006821045968,WWW.ADELIEFOODS.CO.UK,5499,Catering costs - provisions,56.46,0.00,56.46
Transformation and Partnerships,Transformation,060131,County Records,Supplies and Services,304403,Equipment and Materials,05-Dec-2019,000006821045972,Seasons Gallery & Fram,5999,Other consumables,93.00,15.50,77.50
Regeneration and Local Services,Development and Housing,030771,Durham Advance Flexible Fund,Supplies and Services,348037,Subsistence E348,05-Dec-2019,000006821045976,IZ THE WELL,5812,Subsistence,3.60,0.60,3.00
Children and Young Peoples Services,Head of Childrens Social Care,085551,Short Break Services-Park Hse Sher,Supplies and Services,304999,Equipment and Materials,05-Dec-2019,000006821045980,HOME BARGAINS,5251,Misc equipment tools and materials,4.02,0.67,3.35
Children and Young Peoples Services,Head of Childrens Social Care,085551,Short Break Services-Park Hse Sher,Supplies and Services,304999,Equipment and Materials,05-Dec-2019,000006821045980 - 1,HOME BARGAINS,5251,Misc equipment tools and materials,15.94,,15.94
Transformation and Partnerships,Business Support,052986,CYPS - Locality and Operational Support,Supplies and Services,324117,Provisions E324,05-Dec-2019,000006821045998,ASDA STORES,5411,Catering costs - provisions,80.00,0.00,80.00
Children and Young Peoples Services,Head of Early Help Inclusion & Vulnerable Children.,071443,Stanley One Point Hub,Supplies and Services,304403,Equipment and Materials,05-Dec-2019,000006821046004,AMZNMKTPLACE AMAZON.CO,5999,Other consumables,99.60,16.60,83.00
Children and Young Peoples Services,Head of Early Help Inclusion & Vulnerable Children.,071443,Stanley One Point Hub,Supplies and Services,304403,Equipment and Materials,05-Dec-2019,000006821046004 - 1,AMZNMKTPLACE AMAZON.CO,5999,Other consumables,0.20,,0.20
Children and Young Peoples Services,Head of Early Help Inclusion & Vulnerable Children.,071443,Stanley One Point Hub,Supplies and Services,304403,Equipment and Materials,05-Dec-2019,000006821046006,AMZNMKTPLACE AMAZON.CO,5999,Other consumables,17.45,2.92,14.53
Children and Young Peoples Services,Head of Early Help Inclusion & Vulnerable Children.,071443,Stanley One Point Hub,Supplies and Services,384999,Miscellaneous Expenses,05-Dec-2019,000006821046010,Amazon.co.uk F16N31CW5,5969,Other expenses,15.95,0.00,15.95
Children and Young Peoples Services,Head of Early Help Inclusion & Vulnerable Children.,071443,Stanley One Point Hub,Supplies and Services,384999,Miscellaneous Expenses,05-Dec-2019,000006821046014,Amazon.co.uk 9B89O5995,5969,Other expenses,35.18,5.86,29.32
Regeneration and Local Services,Environmental Services,010367,C&G - South Grounds Maintenance,Supplies and Services,304221,Equipment and Materials,05-Dec-2019,000006821046082,CARRS BILLINGTON SPENN,5599,Direct materials,360.72,60.12,300.60
Regeneration and Local Services,Environmental Services,010367,C&G - South Grounds Maintenance,Supplies and Services,304221,Equipment and Materials,05-Dec-2019,000006821046086,TUDOR ENVIRONMENTAL,5261,Direct materials,171.36,28.56,142.80
Children and Young Peoples Services,Head of Education and Skills,071802,Louisa Cent Nursery,Supplies and Services,324117,Provisions E324,05-Dec-2019,000006821046120,ASDA SUPERSTORE,5411,Catering costs - provisions,28.80,0.00,28.80
Regeneration and Local Services,Development and Housing,031500,Housing Solutions - Core Team,Supplies and Services,352001,Conference Expenses,05-Dec-2019,000006821046128,GRAINGER HOTEL,7011,Conferencesseminars fees etc,100.00,0.00,100.00
Children and Young Peoples Services,Head of Early Help Inclusion & Vulnerable Children.,085957,Secure Management,Supplies and Services,384999,Miscellaneous Expenses,05-Dec-2019,000006821046154,Amazon.co.uk 2I7BN76B5,5969,Other expenses,68.99,11.50,57.49
Regeneration and Local Services,Corporate Property and Land,030691,Catering - Durham Dales Centre,Supplies and Services,324117,Provisions E324,05-Dec-2019,000006821046162,JR HOLLAND FOODSERVICE,5499,Catering costs - provisions,126.95,0.00,126.95
Regeneration and Local Services,Development and Housing,031576,B& B - Temp Accom,Supplies and Services,364320,Grants to Voluntary Organisations,05-Dec-2019,000006821046208,PREMIER INN,3811,Accommodation assistance,-9.50,0.00,-9.50
Adult and Health Services,Head of Adults,055643,Hawthorn House LD Respite Unit,Supplies and Services,324117,Provisions E324,05-Dec-2019,000006821046214,JR HOLLAND FOODSERVICE,5499,Catering costs - provisions,7.48,0.00,7.48
Adult and Health Services,Head of Adults,055643,Hawthorn House LD Respite Unit,Supplies and Services,324117,Provisions E324,05-Dec-2019,000006821046218,JR HOLLAND FOODSERVICE,5499,Catering costs - provisions,10.55,0.00,10.55
Regeneration and Local Services,Culture Sport and Tourism,054399,Local Delivery-Libraries,Supplies and Services,312009,Newspapers books and periodicals E312,05-Dec-2019,000006821046226,Amazon.co.uk,5969,Newspapers books and periodicals,-15.98,0.00,-15.98
Regeneration and Local Services,Environmental Services,010301,C&G - North Grounds Maintenance,Supplies and Services,304221,Equipment and Materials,05-Dec-2019,000006821046234,AZTEC CHEMICALS LTD,5169,Direct materials,465.00,77.50,387.50
Resources BK0010,Digital and Customer Services,065335,School Services - Implementations,Supplies and Services,304639,Equipment and Materials,05-Dec-2019,000006821046258,AMZNMKTPLACE AMAZON.CO,5999,Technicians-supplies,5.57,0.93,4.64
Regeneration and Local Services,Development and Housing,030771,Durham Advance Flexible Fund,Supplies and Services,348037,Subsistence E348,05-Dec-2019,000006821046304,COSTA COFFEE,5814,Subsistence,5.10,0.85,4.25
Regeneration and Local Services,Development and Housing,030771,Durham Advance Flexible Fund,Supplies and Services,328041,Clothing uniforms and laundry E328,05-Dec-2019,000006821046310,PEACOCK STORES LTD,5331,Clothing uniforms and laundry,53.05,8.84,44.21
Transformation and Partnerships,Business Support,069010,Administration 069010,Supplies and Services,340001,Postages E340,05-Dec-2019,000006821046324,ROYAL MAIL ONLINE SHOP,9402,Postages,176.00,0.00,176.00
Resources BK0010,Legal & Democratic Services,067953,Coroner County Durham & Darlington,Supplies and Services,340001,Postages E340,05-Dec-2019,000006821046328,ROYAL MAIL ONLINE SHOP,9402,Postages,131.00,0.00,131.00
Transformation and Partnerships,Business Support,052986,CYPS - Locality and Operational Support,Supplies and Services,328041,Clothing uniforms and laundry E328,05-Dec-2019,000006821046340,BOOHOO.COM,5691,Clothing uniforms and laundry,56.99,0.00,56.99
Regeneration and Local Services,Corporate Property and Land,021324,Catering - Meadowfield,Supplies and Services,324117,Provisions E324,05-Dec-2019,000006821046346,JR HOLLAND FOODSERVICE,5499,Catering costs - provisions,30.70,0.00,30.70
Regeneration and Local Services,Corporate Property and Land,021324,Catering - Meadowfield,Supplies and Services,324117,Provisions E324,05-Dec-2019,000006821046352,JR HOLLAND FOODSERVICE,5499,Catering costs - provisions,10.35,0.00,10.35
Adult and Health Services,Head of Adults,055301,Stanley Pathways,Supplies and Services,324117,Provisions E324,05-Dec-2019,000006821046364,SAINSBURYS SACAT 0776,5411,Catering costs - provisions,10.90,0.00,10.90
Children and Young Peoples Services,Head of Childrens Social Care,085342,9 Cedar Drive Aycliffe,Supplies and Services,324117,Provisions E324,05-Dec-2019,000006821046396,TESCO STORES 2916,5411,Catering costs - provisions,146.02,0.00,146.02
Children and Young Peoples Services,Head of Childrens Social Care,085342,9 Cedar Drive Aycliffe,Supplies and Services,324117,Provisions E324,05-Dec-2019,000006821046400,TESCO STORES 2916,5411,Catering costs - provisions,18.00,0.00,18.00
Children and Young Peoples Services,Head of Education and Skills,071802,Louisa Cent Nursery,Supplies and Services,324117,Provisions E324,05-Dec-2019,000006821046404,ASDA SUPERSTORE,5411,Catering costs - provisions,3.02,0.00,3.02
Regeneration and Local Services,Development and Housing,031500,Housing Solutions - Core Team,Supplies and Services,352001,Conference Expenses,05-Dec-2019,000006821046464,Park Head Hotel,7011,Conferencesseminars fees etc,360.00,0.00,360.00
Regeneration and Local Services,Development and Housing,031500,Housing Solutions - Core Team,Supplies and Services,352001,Conference Expenses,05-Dec-2019,000006821046468,Park Head Hotel,7011,Conferencesseminars fees etc,340.00,0.00,340.00
Regeneration and Local Services,Development and Housing,030771,Durham Advance Flexible Fund,Transport,235057,Public Transport,05-Dec-2019,000006821046482,GO NORTH EAST LIMITED,4131,Staff travelling,25.00,0.00,25.00
Regeneration and Local Services,Corporate Property and Land,021242,Catering - County Hall,Supplies and Services,324117,Provisions E324,05-Dec-2019,000006828336676,BATLEYS PERTH,5300,Catering costs - provisions,317.40,52.90,264.50
Regeneration and Local Services,Corporate Property and Land,021242,Catering - County Hall,Supplies and Services,324117,Provisions E324,05-Dec-2019,000006828336676 - 1,BATLEYS PERTH,5300,Catering costs - provisions,141.91,,141.91
Regeneration and Local Services,Corporate Property and Land,021242,Catering - County Hall,Supplies and Services,324117,Provisions E324,05-Dec-2019,000006828336688,BATLEYS PERTH,5300,Catering costs - provisions,18.30,0.00,18.30
Regeneration and Local Services,Environmental Services,010301,C&G - North Grounds Maintenance,Supplies and Services,304221,Equipment and Materials,05-Dec-2019,000006828337072,HARELAW SAWMILL,5211,Direct materials,63.36,10.56,52.80
Regeneration and Local Services,Development and Housing,031500,Housing Solutions - Core Team,Employees,040149,Recruitment Instruction and Training,05-Dec-2019,000006828337098,PREMIER INN,3811,Training-all costs,79.50,13.25,66.25
Children and Young Peoples Services,Head of Childrens Social Care,085334,West Rainton Satelite Home,Supplies and Services,328041,Clothing uniforms and laundry E328,05-Dec-2019,000006828337140,Argos Durham Arnis,5310,Clothing uniforms and laundry,49.99,0.00,49.99
Children and Young Peoples Services,Head of Childrens Social Care,085334,West Rainton Satelite Home,Supplies and Services,304259,Equipment and Materials,05-Dec-2019,000006828337144,J D SPORTS,5941,Equipment-purchase and rental,35.05,0.00,35.05
Children and Young Peoples Services,Head of Early Help Inclusion & Vulnerable Children.,085957,Secure Management,Supplies and Services,304403,Equipment and Materials,05-Dec-2019,000006828337180,AMZNMKTPLACE AMAZON.CO,5999,Other consumables,24.96,4.16,20.80
Children and Young Peoples Services,Head of Early Help Inclusion & Vulnerable Children.,085957,Secure Management,Supplies and Services,304403,Equipment and Materials,05-Dec-2019,000006828337180 - 1,AMZNMKTPLACE AMAZON.CO,5999,Other consumables,6.91,,6.91
Regeneration and Local Services,Environmental Services,026591,C&G - Hardwick Park,Supplies and Services,304083,Equipment and Materials,05-Dec-2019,000006828337228,WWW.NISBETS.COM,5964,Catering equipment,42.45,7.08,35.37
Regeneration and Local Services,Environmental Services,011060,C&G - Hardwick Park Catering,Supplies and Services,324117,Provisions E324,05-Dec-2019,000006828337240,BATLEYS PERTH,5300,Catering costs - provisions,87.60,14.60,73.00
Regeneration and Local Services,Environmental Services,011060,C&G - Hardwick Park Catering,Supplies and Services,324117,Provisions E324,05-Dec-2019,000006828337240 - 1,BATLEYS PERTH,5300,Catering costs - provisions,146.96,,146.96
Regeneration and Local Services,Environmental Services,010919,C&G - Countryside Site Management,Supplies and Services,304221,Equipment and Materials,05-Dec-2019,000006828337270,SCREWFIX DIRECT,5200,Direct materials,48.97,8.16,40.81
Children and Young Peoples Services,Head of Early Help Inclusion & Vulnerable Children.,088101,CLS 0-19 Community Family Hub,Supplies and Services,328041,Clothing uniforms and laundry E328,05-Dec-2019,000006828337310,THE WORKS,5310,Clothing uniforms and laundry,9.00,0.00,9.00
Regeneration and Local Services,Development and Housing,031576,B& B - Temp Accom,Supplies and Services,364320,Grants to Voluntary Organisations,05-Dec-2019,000006828337346,PREMIER INN,3811,Accommodation assistance,325.00,0.00,325.00
Children and Young Peoples Services,Head of Childrens Social Care,085352,Tow Law CU,Supplies and Services,328041,Clothing uniforms and laundry E328,05-Dec-2019,000006828337376,The Range,5311,Clothing uniforms and laundry,72.06,0.00,72.06
Transformation and Partnerships,Business Support,052986,CYPS - Locality and Operational Support,Supplies and Services,304259,Equipment and Materials,05-Dec-2019,000006828337422,Durham County CNCL,9399,Equipment-purchase and rental,11.00,0.00,11.00
Children and Young Peoples Services,Head of Early Help Inclusion & Vulnerable Children.,071443,Stanley One Point Hub,Supplies and Services,304403,Equipment and Materials,05-Dec-2019,000006828337430,BEAMISH MUSEUM LTD,5947,Other consumables,193.10,0.00,193.10
Children and Young Peoples Services,Head of Education and Skills,071802,Louisa Cent Nursery,Supplies and Services,304403,Equipment and Materials,05-Dec-2019,000006828337670,AMZNMKTPLACE AMAZON.CO,5999,Other consumables,24.98,0.00,24.98
Regeneration and Local Services,Development and Housing,031500,Housing Solutions - Core Team,Employees,040149,Recruitment Instruction and Training,05-Dec-2019,000006828337710,PREMIER INN,3811,Training-all costs,70.00,0.00,70.00
Regeneration and Local Services,Corporate Property and Land,030691,Catering - Durham Dales Centre,Supplies and Services,324117,Provisions E324,05-Dec-2019,000006828337836,BATLEYS PERTH,5300,Catering costs - provisions,8.76,1.46,7.30
Regeneration and Local Services,Corporate Property and Land,030691,Catering - Durham Dales Centre,Supplies and Services,324117,Provisions E324,05-Dec-2019,000006828337836 - 1,BATLEYS PERTH,5300,Catering costs - provisions,87.88,,87.88
Regeneration and Local Services,Development and Housing,031576,B& B - Temp Accom,Supplies and Services,364320,Grants to Voluntary Organisations,05-Dec-2019,000006828337942,PREMIER INN,3811,Accommodation assistance,249.00,0.00,249.00
Resources BK0010,Digital and Customer Services,070110,School Services - Man Info System (MIS) Support Team,Supplies and Services,342033,Computers and Communications,05-Dec-2019,000006828338028,AMZNMKTPLACE AMAZON.CO,5999,Computer hardware,475.00,79.25,395.75
Regeneration and Local Services,Environmental Services,010301,C&G - North Grounds Maintenance,Supplies and Services,304403,Equipment and Materials,05-Dec-2019,000006828338110,AMZNMKTPLACE AMAZON.CO,5999,Other consumables,14.29,2.38,11.91
Transformation and Partnerships,Business Support,052986,CYPS - Locality and Operational Support,Supplies and Services,304259,Equipment and Materials,05-Dec-2019,000006828338116,Durham County CNCL,9399,Equipment-purchase and rental,11.00,0.00,11.00
Regeneration and Local Services,Corporate Property and Land,021235,Catering - Wharton Park,Supplies and Services,324117,Provisions E324,05-Dec-2019,000006828338538,BATLEYS PERTH,5300,Catering costs - provisions,31.98,5.33,26.65
Regeneration and Local Services,Corporate Property and Land,021235,Catering - Wharton Park,Supplies and Services,324117,Provisions E324,05-Dec-2019,000006828338538 - 1,BATLEYS PERTH,5300,Catering costs - provisions,15.17,,15.17
Children and Young Peoples Services,Head of Childrens Social Care,085650,Pre Birth Team,Supplies and Services,328041,Clothing uniforms and laundry E328,05-Dec-2019,000006828338592,WWW.ARGOS.CO.UK,5310,Clothing uniforms and laundry,213.92,0.00,213.92
Children and Young Peoples Services,Head of Early Help Inclusion & Vulnerable Children.,085957,Secure Management,Supplies and Services,304999,Equipment and Materials,06-Dec-2019,000006821045834,TESCO SUBSCRIPTION,5968,Misc equipment tools and materials,6.99,0.00,6.99
Children and Young Peoples Services,Head of Education and Skills,071801,Selby Cottage Childcare Centre,Supplies and Services,324117,Provisions E324,06-Dec-2019,000006828336276,TESCO STORES 2278,5411,Catering costs - provisions,10.00,0.00,10.00
Regeneration and Local Services,Development and Housing,031576,B& B - Temp Accom,Supplies and Services,364320,Grants to Voluntary Organisations,06-Dec-2019,000006828336288,WWW.HOTEL52.CO.UK,7011,Accommodation assistance,173.97,0.00,173.97
Regeneration and Local Services,Development and Housing,031576,B& B - Temp Accom,Supplies and Services,364320,Grants to Voluntary Organisations,06-Dec-2019,000006828336294,BANNATYNE.CO.UK,7011,Accommodation assistance,8.45,0.00,8.45
Children and Young Peoples Services,Head of Childrens Social Care,085513,Supporting Family Time Team,Supplies and Services,304335,Equipment and Materials,06-Dec-2019,000006828336310,Amazon.co.uk Y30WG8M45,5969,ICT supplies etc,127.92,21.36,106.56
Regeneration and Local Services,Development and Housing,030773,CLLD North,Supplies and Services,328041,Clothing uniforms and laundry E328,06-Dec-2019,000006828336356,NEW LOOK,5621,Clothing uniforms and laundry,75.01,0.00,75.01
Children and Young Peoples Services,Head of Education and Skills,075021,Youth Employment Initiative,Supplies and Services,384999,Miscellaneous Expenses,06-Dec-2019,000006828336358,THE POST OFFICE,9402,Other expenses,50.00,0.00,50.00
Adult and Health Services,Head of Adults,055302,Durham Pathways,Supplies and Services,324117,Provisions E324,06-Dec-2019,000006828336412,WILKO RETAIL LIMITED,5399,Catering costs - provisions,10.57,1.76,8.81
Adult and Health Services,Head of Adults,055302,Durham Pathways,Supplies and Services,324117,Provisions E324,06-Dec-2019,000006828336416,ASDA STORES LTD 4313,5411,Catering costs - provisions,6.00,0.00,6.00
Transformation and Partnerships,Business Support,052986,CYPS - Locality and Operational Support,Supplies and Services,304999,Equipment and Materials,06-Dec-2019,000006828336640,HOME BARGAINS SPENNYMO,5251,Misc equipment tools and materials,38.70,0.00,38.70
Regeneration and Local Services,Culture Sport and Tourism,054812,Gala Theatre - Catering etc,Premises,145009,Cleaning and Domestic Supplies,06-Dec-2019,000006828336708,ALLIANCE DISPOSABLES L,2842,Other cleaning and domestic costs,225.99,37.67,188.32
Regeneration and Local Services,Corporate Property and Land,021242,Catering - County Hall,Supplies and Services,324117,Provisions E324,06-Dec-2019,000006828336770,LIDL GB DURHAM,5411,Catering costs - provisions,9.97,0.00,9.97
Regeneration and Local Services,Development and Housing,030773,CLLD North,Transport,215995,Running Costs of Vehicles,06-Dec-2019,000006828336814,TESCO PFS 4088,5541,Vehicle running expenses,30.00,5.00,25.00
Children and Young Peoples Services,Head of Childrens Social Care,085352,Tow Law CU,Supplies and Services,304403,Equipment and Materials,06-Dec-2019,000006828336886,LICKETY SPLIT,5999,Other consumables,23.55,0.00,23.55
Transformation and Partnerships,Business Support,052986,CYPS - Locality and Operational Support,Supplies and Services,324117,Provisions E324,06-Dec-2019,000006828336896,TESCO STORES 2916,5411,Catering costs - provisions,31.00,0.00,31.00
Transformation and Partnerships,Business Support,052986,CYPS - Locality and Operational Support,Supplies and Services,328041,Clothing uniforms and laundry E328,06-Dec-2019,000006828336900,B & M RETAIL,5310,Clothing uniforms and laundry,26.44,0.00,26.44
Regeneration and Local Services,Business Durham CL0850,030674,Business Services General,Supplies and Services,304999,Equipment and Materials,06-Dec-2019,000006828337104,WWW.PARAGON.NET.UK RT,5968,Misc equipment tools and materials,39.56,6.59,32.97
Children and Young Peoples Services,Head of Early Help Inclusion & Vulnerable Children.,085957,Secure Management,Supplies and Services,304403,Equipment and Materials,06-Dec-2019,000006828337166,AMZNMktplace,5999,Other consumables,97.60,0.00,97.60
Children and Young Peoples Services,Head of Early Help Inclusion & Vulnerable Children.,085957,Secure Management,Supplies and Services,324117,Provisions E324,06-Dec-2019,000006828337176,TESCO STORES 6329,5411,Catering costs - provisions,113.59,0.00,113.59
Children and Young Peoples Services,Head of Early Help Inclusion & Vulnerable Children.,085957,Secure Management,Supplies and Services,304403,Equipment and Materials,06-Dec-2019,000006828337184,AMZNMKTPLACE AMAZON.CO,5999,Other consumables,9.16,1.53,7.63
Transformation and Partnerships,Business Support,052986,CYPS - Locality and Operational Support,Supplies and Services,304221,Equipment and Materials,06-Dec-2019,000006828337204,LANCHESTER GARDEN CENT,5261,Direct materials,271.50,0.00,271.50
Regeneration and Local Services,Environmental Services,010919,C&G - Countryside Site Management,Supplies and Services,304259,Equipment and Materials,06-Dec-2019,000006828337220,B&Q DIRECT,5200,Equipment-purchase and rental,60.00,0.00,60.00
Regeneration and Local Services,Environmental Services,011058,C&G - Wharton Park,Supplies and Services,332047,Printing Stationery and Gen Off Exps,06-Dec-2019,000006828337232,Amazon.co.uk CY42L1WC5,5969,Stationery,5.24,0.00,5.24
Children and Young Peoples Services,Head of Early Help Inclusion & Vulnerable Children.,088101,CLS 0-19 Community Family Hub,Supplies and Services,304403,Equipment and Materials,06-Dec-2019,000006828337316,AMZNMKTPLACE AMAZON.CO,5999,Other consumables,2.55,0.00,2.55
Children and Young Peoples Services,Head of Early Help Inclusion & Vulnerable Children.,071443,Stanley One Point Hub,Supplies and Services,304403,Equipment and Materials,06-Dec-2019,000006828337436,AMZNMKTPLACE AMAZON.CO,5999,Other consumables,14.16,0.00,14.16
Children and Young Peoples Services,Head of Early Help Inclusion & Vulnerable Children.,071443,Stanley One Point Hub,Supplies and Services,304403,Equipment and Materials,06-Dec-2019,000006828337444,AMZNMKTPLACE AMAZON.CO,5999,Other consumables,14.16,0.00,14.16
Children and Young Peoples Services,Head of Early Help Inclusion & Vulnerable Children.,071443,Stanley One Point Hub,Supplies and Services,304403,Equipment and Materials,06-Dec-2019,000006828337450,AMZNMKTPLACE AMAZON.CO,5999,Other consumables,14.16,0.00,14.16
Children and Young Peoples Services,Head of Early Help Inclusion & Vulnerable Children.,071443,Stanley One Point Hub,Supplies and Services,304403,Equipment and Materials,06-Dec-2019,000006828337452,AMZNMKTPLACE AMAZON.CO,5999,Other consumables,14.16,0.00,14.16
Children and Young Peoples Services,Head of Early Help Inclusion & Vulnerable Children.,071443,Stanley One Point Hub,Supplies and Services,304403,Equipment and Materials,06-Dec-2019,000006828337458,AMZNMKTPLACE AMAZON.CO,5999,Other consumables,14.16,0.00,14.16
Children and Young Peoples Services,Head of Early Help Inclusion & Vulnerable Children.,071443,Stanley One Point Hub,Supplies and Services,324117,Provisions E324,06-Dec-2019,000006828337462,ASDA GEORGE COM LEEDS,5411,Catering costs - provisions,-16.00,0.00,-16.00
Children and Young Peoples Services,Head of Education and Skills,071802,Louisa Cent Nursery,Supplies and Services,324117,Provisions E324,06-Dec-2019,000006828337678,ASDA SUPERSTORE,5411,Catering costs - provisions,31.55,0.00,31.55
Regeneration and Local Services,Development and Housing,031500,Housing Solutions - Core Team,Supplies and Services,352001,Conference Expenses,06-Dec-2019,000006828337716,THE HONEST LAWYER,7011,Conferencesseminars fees etc,295.80,0.00,295.80
Regeneration and Local Services,Development and Housing,031500,Housing Solutions - Core Team,Supplies and Services,352001,Conference Expenses,06-Dec-2019,000006828337720,HAYAT HOTEL,7011,Conferencesseminars fees etc,124.00,0.00,124.00
Children and Young Peoples Services,Head of Childrens Social Care,085342,9 Cedar Drive Aycliffe,Supplies and Services,324117,Provisions E324,06-Dec-2019,000006828337738,WM MORRISONS STORE,5411,Catering costs - provisions,10.00,0.00,10.00
Children and Young Peoples Services,Head of Childrens Social Care,085352,Tow Law CU,Supplies and Services,304403,Equipment and Materials,06-Dec-2019,000006828337798,AMZNMKTPLACE AMAZON.CO,5999,Other consumables,159.96,26.66,133.30
Children and Young Peoples Services,Head of Early Help Inclusion & Vulnerable Children.,085957,Secure Management,Supplies and Services,328041,Clothing uniforms and laundry E328,06-Dec-2019,000006828337826,Etsy.com - HotPeachPar,5699,Clothing uniforms and laundry,30.46,0.00,30.46
Regeneration and Local Services,Culture Sport and Tourism,054399,Local Delivery-Libraries,Supplies and Services,312009,Newspapers books and periodicals E312,06-Dec-2019,000006828337958,Amazon Prime Z69213WM5,5968,Newspapers books and periodicals,7.99,0.00,7.99
Regeneration and Local Services,Development and Housing,030771,Durham Advance Flexible Fund,Transport,235057,Public Transport,06-Dec-2019,000006828338092,GO NORTH EAST - V/T,4131,Staff travelling,5.30,0.00,5.30
Children and Young Peoples Services,Head of Childrens Social Care,085332,Middlestone Moor CU,Supplies and Services,324117,Provisions E324,06-Dec-2019,000006828338152,BARRYS BARGAIN STORE,5499,Catering costs - provisions,34.24,0.00,34.24
Children and Young Peoples Services,Head of Childrens Social Care,085332,Middlestone Moor CU,Supplies and Services,324117,Provisions E324,06-Dec-2019,000006828338156,ASDA SUPERSTORE 4987,5411,Catering costs - provisions,9.44,0.00,9.44
Adult and Health Services,Head of Adults,055301,Stanley Pathways,Supplies and Services,324117,Provisions E324,06-Dec-2019,000006828338174,LIDL GB DURHAM,5411,Catering costs - provisions,2.48,0.00,2.48
Regeneration and Local Services,Development and Housing,031576,B& B - Temp Accom,Supplies and Services,364320,Grants to Voluntary Organisations,06-Dec-2019,000006828338186,HAYAT HOTEL,7011,Accommodation assistance,267.00,0.00,267.00
Children and Young Peoples Services,Head of Childrens Social Care,085380,Operations Manager LAC Resources,Supplies and Services,324117,Provisions E324,06-Dec-2019,000006828338380,TESCO STORES 2278,5411,Catering costs - provisions,100.00,0.00,100.00
Children and Young Peoples Services,Head of Childrens Social Care,085380,Operations Manager LAC Resources,Supplies and Services,328041,Clothing uniforms and laundry E328,06-Dec-2019,000006828338384,B & M RETAIL,5310,Clothing uniforms and laundry,4.29,0.00,4.29
Regeneration and Local Services,Development and Housing,031500,Housing Solutions - Core Team,Supplies and Services,352001,Conference Expenses,06-Dec-2019,000006828338390,GRAINGER HOTEL,7011,Conferencesseminars fees etc,270.00,0.00,270.00
Regeneration and Local Services,Development and Housing,031500,Housing Solutions - Core Team,Supplies and Services,352001,Conference Expenses,06-Dec-2019,000006828338396,Park Head Hotel,7011,Conferencesseminars fees etc,270.00,0.00,270.00
Regeneration and Local Services,Development and Housing,031500,Housing Solutions - Core Team,Supplies and Services,352001,Conference Expenses,06-Dec-2019,000006828338400,Park Head Hotel,7011,Conferencesseminars fees etc,255.00,0.00,255.00
Regeneration and Local Services,Development and Housing,030776,LINKCD Flexible Fund,Transport,235057,Public Transport,06-Dec-2019,000006828338448,ARRIVA NORTH EAST,4131,Staff travelling,29.70,0.00,29.70
Transformation and Partnerships,Business Support,069010,Administration 069010,Supplies and Services,304403,Equipment and Materials,06-Dec-2019,000006828338488,AMZNMKTPLACE AMAZON.CO,5999,Other consumables,59.99,0.00,59.99
Regeneration and Local Services,Development and Housing,030771,Durham Advance Flexible Fund,Supplies and Services,328041,Clothing uniforms and laundry E328,06-Dec-2019,000006828338744,MATALAN,5691,Clothing uniforms and laundry,76.10,12.68,63.42
Regeneration and Local Services,Development and Housing,030771,Durham Advance Flexible Fund,Employees,040149,Recruitment Instruction and Training,06-Dec-2019,000006828338752,TYNE & WEAR LGV DRIVER,8299,Training-all costs,384.00,64.00,320.00
Regeneration and Local Services,Development and Housing,030771,Durham Advance Flexible Fund,Employees,040149,Recruitment Instruction and Training,06-Dec-2019,000006828338752 - 1,TYNE & WEAR LGV DRIVER,8299,Training-all costs,115.00,,115.00
Regeneration and Local Services,Corporate Property and Land,030691,Catering - Durham Dales Centre,Supplies and Services,304259,Equipment and Materials,06-Dec-2019,000006828338806,Amazon Music 7A6430645,5735,Equipment-purchase and rental,7.99,0.00,7.99
Regeneration and Local Services,Environmental Services,011060,C&G - Hardwick Park Catering,Supplies and Services,324117,Provisions E324,06-Dec-2019,000006837162078,BATLEYS PERTH,5300,Catering costs - provisions,100.92,16.82,84.10
Regeneration and Local Services,Environmental Services,011060,C&G - Hardwick Park Catering,Supplies and Services,324117,Provisions E324,06-Dec-2019,000006837162078 - 1,BATLEYS PERTH,5300,Catering costs - provisions,88.06,,88.06
Regeneration and Local Services,Environmental Services,011060,C&G - Hardwick Park Catering,Supplies and Services,324117,Provisions E324,06-Dec-2019,000006837162094,BATLEYS PERTH,5300,Catering costs - provisions,3.15,0.00,3.15
Regeneration and Local Services,Corporate Property and Land,010525,Catering - Green Lane,Supplies and Services,324117,Provisions E324,06-Dec-2019,000006837162256,BATLEYS PERTH,5300,Catering costs - provisions,215.70,35.95,179.75
Regeneration and Local Services,Corporate Property and Land,010525,Catering - Green Lane,Supplies and Services,324117,Provisions E324,06-Dec-2019,000006837162256 - 1,BATLEYS PERTH,5300,Catering costs - provisions,76.59,,76.59
Regeneration and Local Services,Development and Housing,030771,Durham Advance Flexible Fund,Employees,040149,Recruitment Instruction and Training,06-Dec-2019,000006837162298,THE BLUE LAMP TRUS-DOM,8398,Training-all costs,87.00,0.00,87.00
Adult and Health Services,Head of Adults,055643,Hawthorn House LD Respite Unit,Supplies and Services,324117,Provisions E324,06-Dec-2019,000006837162780,BATLEYS PERTH,5300,Catering costs - provisions,7.50,1.25,6.25
Adult and Health Services,Head of Adults,055643,Hawthorn House LD Respite Unit,Supplies and Services,324117,Provisions E324,06-Dec-2019,000006837162780 - 1,BATLEYS PERTH,5300,Catering costs - provisions,148.43,,148.43
Regeneration and Local Services,Development and Housing,030771,Durham Advance Flexible Fund,Supplies and Services,328041,Clothing uniforms and laundry E328,06-Dec-2019,000006841892018,MATALAN.CO.UK,5691,Clothing uniforms and laundry,28.00,0.00,28.00
Resources BK0010,Digital and Customer Services,070110,School Services - Man Info System (MIS) Support Team,Supplies and Services,342053,Computers and Communications,07-Dec-2019,000006828336314,WPMU DEV INCSUBFEE.COM,7372,Computer software,14.50,0.00,14.50
Regeneration and Local Services,Culture Sport and Tourism,054775,Durham Town Hall 054775,Supplies and Services,324117,Provisions E324,07-Dec-2019,000006828336820,TESCO STORES 6029,5411,Catering costs - provisions,18.50,0.00,18.50
Transformation and Partnerships,Business Support,052986,CYPS - Locality and Operational Support,Supplies and Services,304221,Equipment and Materials,07-Dec-2019,000006828337212,LANCHESTER GARDEN CENT,5261,Direct materials,72.00,0.00,72.00
Children and Young Peoples Services,Head of Childrens Social Care,085551,Short Break Services-Park Hse Sher,Supplies and Services,328041,Clothing uniforms and laundry E328,07-Dec-2019,000006828337368,ORIGINAL FACTORY S,5311,Clothing uniforms and laundry,6.00,0.00,6.00
Children and Young Peoples Services,Head of Childrens Social Care,085352,Tow Law CU,Supplies and Services,324117,Provisions E324,07-Dec-2019,000006828337380,NISA LOCAL,5411,Catering costs - provisions,12.56,0.00,12.56
Children and Young Peoples Services,Head of Childrens Social Care,085352,Tow Law CU,Supplies and Services,348037,Subsistence E348,07-Dec-2019,000006828337384,LAUS 202 BUFFET HOUSE,5812,Subsistence,120.00,0.00,120.00
Children and Young Peoples Services,Head of Childrens Social Care,085334,West Rainton Satelite Home,Supplies and Services,328041,Clothing uniforms and laundry E328,07-Dec-2019,000006828337552,B&M RETAIL LTD,5310,Clothing uniforms and laundry,12.47,0.00,12.47
Children and Young Peoples Services,Head of Childrens Social Care,085334,West Rainton Satelite Home,Supplies and Services,328041,Clothing uniforms and laundry E328,07-Dec-2019,000006828337556,M&CO.,5621,Clothing uniforms and laundry,6.05,0.00,6.05
Children and Young Peoples Services,Head of Childrens Social Care,085334,West Rainton Satelite Home,Supplies and Services,304999,Equipment and Materials,07-Dec-2019,000006828337560,SAVERS HEALTH & BEAUTY,5912,Misc equipment tools and materials,20.98,0.00,20.98
Regeneration and Local Services,Development and Housing,031500,Housing Solutions - Core Team,Employees,040149,Recruitment Instruction and Training,07-Dec-2019,000006828337724,PREMIER INN,3811,Training-all costs,106.00,0.00,106.00
Children and Young Peoples Services,Head of Childrens Social Care,085342,9 Cedar Drive Aycliffe,Supplies and Services,328041,Clothing uniforms and laundry E328,07-Dec-2019,000006828337744,PRIMARK 673,5651,Clothing uniforms and laundry,14.00,0.00,14.00
Children and Young Peoples Services,Head of Childrens Social Care,085332,Middlestone Moor CU,Supplies and Services,328041,Clothing uniforms and laundry E328,07-Dec-2019,000006828337856,FLANNELSFASHION.,5691,Clothing uniforms and laundry,106.99,0.00,106.99
Children and Young Peoples Services,Head of Childrens Social Care,085332,Middlestone Moor CU,Supplies and Services,304259,Equipment and Materials,07-Dec-2019,000006828337862,JD SPORTS PLC,5941,Equipment-purchase and rental,152.05,0.00,152.05
Children and Young Peoples Services,Head of Childrens Social Care,085332,Middlestone Moor CU,Supplies and Services,348037,Subsistence E348,07-Dec-2019,000006828337866,THE CLARENCE VILLA,5813,Subsistence,70.50,0.00,70.50
Children and Young Peoples Services,Head of Childrens Social Care,085332,Middlestone Moor CU,Supplies and Services,304999,Equipment and Materials,07-Dec-2019,000006828337870,HOME BARGAINS,5251,Misc equipment tools and materials,1.48,0.00,1.48
Children and Young Peoples Services,Head of Childrens Social Care,085332,Middlestone Moor CU,Supplies and Services,304999,Equipment and Materials,07-Dec-2019,000006828337874,BOOTS 6023,5912,Misc equipment tools and materials,30.81,0.00,30.81
Regeneration and Local Services,Culture Sport and Tourism,011263,Louisa Centre 011263,Supplies and Services,324117,Provisions E324,07-Dec-2019,000006828337980,ASDA SUPERSTORE,5411,Catering costs - provisions,14.06,0.00,14.06
Regeneration and Local Services,Culture Sport and Tourism,011263,Louisa Centre 011263,Supplies and Services,324117,Provisions E324,07-Dec-2019,000006828337986,ASDA SUPERSTORE,5411,Catering costs - provisions,5.00,0.00,5.00
Children and Young Peoples Services,Head of Childrens Social Care,085342,9 Cedar Drive Aycliffe,Supplies and Services,384999,Miscellaneous Expenses,07-Dec-2019,000006828338058,Amazon.co.uk GV7OT8KL5,5969,Other expenses,15.99,0.00,15.99
Children and Young Peoples Services,Head of Childrens Social Care,085342,9 Cedar Drive Aycliffe,Supplies and Services,304403,Equipment and Materials,07-Dec-2019,000006828338064,AMZNMktplace,5999,Other consumables,13.99,0.00,13.99
Children and Young Peoples Services,Head of Education and Skills,070169,Durham SSP,Supplies and Services,384199,Miscellaneous Expenses,07-Dec-2019,000006828338276,WM MORRISONS STORE,5411,Other hired and contracted services,200.00,0.00,200.00
Children and Young Peoples Services,Head of Education and Skills,070169,Durham SSP,Supplies and Services,384199,Miscellaneous Expenses,07-Dec-2019,000006828338280,AMZNMKTPLACE AMAZON.CO,5999,Other hired and contracted services,17.63,0.00,17.63
Children and Young Peoples Services,Head of Education and Skills,071801,Selby Cottage Childcare Centre,Supplies and Services,304999,Equipment and Materials,08-Dec-2019,000006828336280,Amazon Prime KI5RH16Y5,5968,Misc equipment tools and materials,7.99,0.00,7.99
Children and Young Peoples Services,Head of Childrens Social Care,085342,9 Cedar Drive Aycliffe,Supplies and Services,304259,Equipment and Materials,08-Dec-2019,000006828336444,Amazon Music 480N20DJ5,5735,Equipment-purchase and rental,3.99,0.00,3.99
Dedicated Schools Grant BG0015,DSG High Needs Block,079050,SENSS-Sensory,Supplies and Services,384999,Miscellaneous Expenses,08-Dec-2019,000006828336456,Amazon.co.uk 373HI33M5,5969,Other expenses,3.30,0.55,2.75
Dedicated Schools Grant BG0015,DSG High Needs Block,079050,SENSS-Sensory,Supplies and Services,384999,Miscellaneous Expenses,08-Dec-2019,000006828336456 - 1,Amazon.co.uk 373HI33M5,5969,Other expenses,32.35,,32.35
Dedicated Schools Grant BG0015,DSG High Needs Block,079050,SENSS-Sensory,Supplies and Services,304403,Equipment and Materials,08-Dec-2019,000006828336464,AMZNMKTPLACE AMAZON.CO,5999,Other consumables,23.18,0.00,23.18
Dedicated Schools Grant BG0015,DSG High Needs Block,079050,SENSS-Sensory,Supplies and Services,384999,Miscellaneous Expenses,08-Dec-2019,000006828336470,Amazon.co.uk UH44P5DV5,5969,Other expenses,11.23,1.88,9.35
Children and Young Peoples Services,Head of Childrens Social Care,085341,High Etherley Satelite Home,Supplies and Services,324117,Provisions E324,08-Dec-2019,000006828336550,WM MORRISONS STORE,5411,Catering costs - provisions,75.13,0.00,75.13
Children and Young Peoples Services,Head of Childrens Social Care,085333,Coxhoe Satelite Home,Supplies and Services,304403,Equipment and Materials,08-Dec-2019,000006828336606,AMZNMktplace,5999,Other consumables,11.99,2.00,9.99
Children and Young Peoples Services,Head of Childrens Social Care,085333,Coxhoe Satelite Home,Supplies and Services,328041,Clothing uniforms and laundry E328,08-Dec-2019,000006828336614,The Range,5311,Clothing uniforms and laundry,43.45,0.00,43.45
Children and Young Peoples Services,Head of Childrens Social Care,085333,Coxhoe Satelite Home,Supplies and Services,324117,Provisions E324,08-Dec-2019,000006828336620,ALDI 12 774,5411,Catering costs - provisions,14.36,2.39,11.97
Children and Young Peoples Services,Head of Childrens Social Care,085333,Coxhoe Satelite Home,Supplies and Services,324117,Provisions E324,08-Dec-2019,000006828336628,ALDI 12 774,5411,Catering costs - provisions,5.04,0.84,4.20
Children and Young Peoples Services,Head of Childrens Social Care,085333,Coxhoe Satelite Home,Supplies and Services,324117,Provisions E324,08-Dec-2019,000006828336628 - 1,ALDI 12 774,5411,Catering costs - provisions,90.98,,90.98
Children and Young Peoples Services,Head of Childrens Social Care,085334,West Rainton Satelite Home,Supplies and Services,348037,Subsistence E348,08-Dec-2019,000006828337150,INFINATE AIR CAFE- SWE,5812,Subsistence,9.30,0.00,9.30
Children and Young Peoples Services,Head of Childrens Social Care,085334,West Rainton Satelite Home,Supplies and Services,304999,Equipment and Materials,08-Dec-2019,000006828337154,INFINITE AIR,7991,Misc equipment tools and materials,35.85,0.00,35.85
Children and Young Peoples Services,Head of Childrens Social Care,085334,West Rainton Satelite Home,Supplies and Services,304999,Equipment and Materials,08-Dec-2019,000006828337156,INFINITE AIR,7991,Misc equipment tools and materials,15.00,0.00,15.00
Regeneration and Local Services,Development and Housing,030554,International Relations 030554,Supplies and Services,332047,Printing Stationery and Gen Off Exps,08-Dec-2019,000006828337418,RYMAN,5943,Stationery,13.98,0.00,13.98
Children and Young Peoples Services,Head of Education and Skills,071802,Louisa Cent Nursery,Supplies and Services,324117,Provisions E324,08-Dec-2019,000006828337684,ASDA SUPERSTORE,5411,Catering costs - provisions,4.57,0.00,4.57
Children and Young Peoples Services,Head of Childrens Social Care,085342,9 Cedar Drive Aycliffe,Supplies and Services,340001,Postages E340,08-Dec-2019,000006828337748,THE POST OFFICE,9402,Postages,4.20,0.00,4.20
Children and Young Peoples Services,Head of Childrens Social Care,085342,9 Cedar Drive Aycliffe,Supplies and Services,324117,Provisions E324,08-Dec-2019,000006828337754,MARTIN MCCOLL,5499,Catering costs - provisions,1.50,0.00,1.50
Children and Young Peoples Services,Head of Childrens Social Care,085352,Tow Law CU,Supplies and Services,304999,Equipment and Materials,08-Dec-2019,000006828337804,HOME BARGAINS,5251,Misc equipment tools and materials,17.05,0.00,17.05
Children and Young Peoples Services,Head of Childrens Social Care,085352,Tow Law CU,Supplies and Services,324117,Provisions E324,08-Dec-2019,000006828337808,ASDA STORES,5411,Catering costs - provisions,21.70,0.00,21.70
Children and Young Peoples Services,Head of Childrens Social Care,085352,Tow Law CU,Supplies and Services,324117,Provisions E324,08-Dec-2019,000006828337812,TESCO STORES 2371,5411,Catering costs - provisions,81.38,0.00,81.38
Children and Young Peoples Services,Head of Childrens Social Care,085352,Tow Law CU,Supplies and Services,328041,Clothing uniforms and laundry E328,08-Dec-2019,000006828337818,POUNDLAND LTD 1554,5310,Clothing uniforms and laundry,1.00,0.00,1.00
Children and Young Peoples Services,Head of Childrens Social Care,085332,Middlestone Moor CU,Supplies and Services,304259,Equipment and Materials,08-Dec-2019,000006828338162,J D SPORTS,5941,Equipment-purchase and rental,115.05,0.00,115.05
Regeneration and Local Services,Corporate Property and Land,030691,Catering - Durham Dales Centre,Supplies and Services,324117,Provisions E324,08-Dec-2019,000006828338812,ASDA STORES,5411,Catering costs - provisions,23.00,0.00,23.00
Resources BK0010,Digital and Customer Services,070110,School Services - Man Info System (MIS) Support Team,Supplies and Services,342053,Computers and Communications,09-Dec-2019,000006828336318,WPMU DEV INCSUBFEE.COM,7372,Computer software,0.40,0.00,0.40
Children and Young Peoples Services,Head of Education and Skills,071801,Selby Cottage Childcare Centre,Supplies and Services,324117,Provisions E324,09-Dec-2019,000006837161022,TESCO STORES 2278,5411,Catering costs - provisions,107.36,0.00,107.36
Children and Young Peoples Services,Head of Education and Skills,071801,Selby Cottage Childcare Centre,Supplies and Services,324117,Provisions E324,09-Dec-2019,000006837161030,WILKO RETAIL LIMITED,5399,Catering costs - provisions,40.30,0.00,40.30
Transformation and Partnerships,Partnerships & Community Engagement Div.,060470,Partnership and Comm Eng Management,Supplies and Services,344033,Telephones,09-Dec-2019,000006837161046,AMZNMktplace,5999,Telephones general-all costs,6.95,1.16,5.79
Children and Young Peoples Services,Head of Education and Skills,070264,EDC Premises,Supplies and Services,324117,Provisions E324,09-Dec-2019,000006837161056,FREEMAN CATERING BUTCH,5422,Catering costs - provisions,34.34,0.00,34.34
Regeneration and Local Services,Culture Sport and Tourism,030705,Visit County Durham 030705,Supplies and Services,342033,Computers and Communications,09-Dec-2019,000006837161132,SurveyMonkey,7372,Computer hardware,320.00,0.00,320.00
Children and Young Peoples Services,Head of Childrens Social Care,085342,9 Cedar Drive Aycliffe,Supplies and Services,324117,Provisions E324,09-Dec-2019,000006837161140,TESCO STORES 2916,5411,Catering costs - provisions,30.65,0.00,30.65
Children and Young Peoples Services,Head of Childrens Social Care,085342,9 Cedar Drive Aycliffe,Supplies and Services,324117,Provisions E324,09-Dec-2019,000006837161146,TESCO STORES 2916,5411,Catering costs - provisions,14.70,0.00,14.70
Children and Young Peoples Services,Head of Childrens Social Care,085342,9 Cedar Drive Aycliffe,Supplies and Services,348037,Subsistence E348,09-Dec-2019,000006837161152,COSTA @ NEXT 43041645,5814,Subsistence,10.65,0.00,10.65
Dedicated Schools Grant BG0015,DSG High Needs Block,079050,SENSS-Sensory,Supplies and Services,304403,Equipment and Materials,09-Dec-2019,000006837161162,AMZNMktplace,5999,Other consumables,12.50,2.08,10.42
Children and Young Peoples Services,Head of Childrens Social Care,085341,High Etherley Satelite Home,Supplies and Services,348037,Subsistence E348,09-Dec-2019,000006837161212,SumUp The Burn Pub &,5813,Subsistence,75.00,0.00,75.00
Children and Young Peoples Services,Head of Childrens Social Care,085341,High Etherley Satelite Home,Supplies and Services,324117,Provisions E324,09-Dec-2019,000006837161216,ASDA STORES,5411,Catering costs - provisions,32.08,0.00,32.08
Children and Young Peoples Services,Head of Childrens Social Care,085352,Tow Law CU,Supplies and Services,348037,Subsistence E348,09-Dec-2019,000006837161282,MAN VS FOOD GRILL HOUS,5812,Subsistence,53.25,0.00,53.25
Regeneration and Local Services,Corporate Property and Land,021242,Catering - County Hall,Supplies and Services,324117,Provisions E324,09-Dec-2019,000006837161298,FREEMAN CATERING BUTCH,5422,Catering costs - provisions,250.53,0.00,250.53
Regeneration and Local Services,Corporate Property and Land,021242,Catering - County Hall,Supplies and Services,324117,Provisions E324,09-Dec-2019,000006837161308,FREEMAN CATERING BUTCH,5422,Catering costs - provisions,228.43,0.00,228.43
Regeneration and Local Services,Corporate Property and Land,021242,Catering - County Hall,Supplies and Services,324117,Provisions E324,09-Dec-2019,000006837161314,FREEMAN CATERING BUTCH,5422,Catering costs - provisions,69.15,0.00,69.15
Regeneration and Local Services,Development and Housing,030770,Durham Advance,Transport,235057,Public Transport,09-Dec-2019,000006837161322,PRINCE BISHOP SHOPPING,7523,Staff travelling,2.10,0.35,1.75
Regeneration and Local Services,Culture Sport and Tourism,054812,Gala Theatre - Catering etc,Supplies and Services,324117,Provisions E324,09-Dec-2019,000006837161390,FREEMAN CATERING BUTCH,5422,Catering costs - provisions,33.85,0.00,33.85
Regeneration and Local Services,Development and Housing,030773,CLLD North,Transport,235057,Public Transport,09-Dec-2019,000006837161486,ARRIVA NORTH EAST,4131,Staff travelling,15.00,0.00,15.00
Children and Young Peoples Services,Head of Education and Skills,071732,Dean Bank Childcare,Supplies and Services,324117,Provisions E324,09-Dec-2019,000006837161676,ASDA GROCERIES ONLINE,5411,Catering costs - provisions,89.45,0.00,89.45
Children and Young Peoples Services,Head of Education and Skills,071732,Dean Bank Childcare,Supplies and Services,324117,Provisions E324,09-Dec-2019,000006837161686,ASDA GROCERIES ONLINE,5411,Catering costs - provisions,64.37,0.00,64.37
Children and Young Peoples Services,Head of Education and Skills,071732,Dean Bank Childcare,Supplies and Services,324117,Provisions E324,09-Dec-2019,000006837161696,ASDA GROCERIES ONLINE,5411,Catering costs - provisions,-0.34,0.00,-0.34
Children and Young Peoples Services,Head of Education and Skills,071732,Dean Bank Childcare,Supplies and Services,324117,Provisions E324,09-Dec-2019,000006837161706,ASDA GROCERIES ONLINE,5411,Catering costs - provisions,-1.69,0.00,-1.69
Regeneration and Local Services,Culture Sport and Tourism,054813,Gala Theatre - Technical,Supplies and Services,304403,Equipment and Materials,09-Dec-2019,000006837161716,AMZNMktplace,5999,Other consumables,65.99,0.00,65.99
Regeneration and Local Services,Development and Housing,030771,Durham Advance Flexible Fund,Transport,235057,Public Transport,09-Dec-2019,000006837161946,Rail Seasons,4112,Staff travelling,25.10,0.00,25.10
Regeneration and Local Services,Development and Housing,030771,Durham Advance Flexible Fund,Transport,235057,Public Transport,09-Dec-2019,000006837161978,GO NORTH EAST LIMITED,4131,Staff travelling,5.30,0.00,5.30
Regeneration and Local Services,Business Durham CL0850,030674,Business Services General,Supplies and Services,304999,Equipment and Materials,09-Dec-2019,000006837161994,MAILCHIMP MONTHLY,5968,Misc equipment tools and materials,69.36,0.00,69.36
Children and Young Peoples Services,Head of Childrens Social Care,085334,West Rainton Satelite Home,Supplies and Services,324117,Provisions E324,09-Dec-2019,000006837162040,SAINSBURYS SACAT 0776,5411,Catering costs - provisions,11.00,0.00,11.00
Children and Young Peoples Services,Head of Early Help Inclusion & Vulnerable Children.,085957,Secure Management,Supplies and Services,324117,Provisions E324,09-Dec-2019,000006837162058,TESCO STORES 6329,5411,Catering costs - provisions,198.44,0.00,198.44
Regeneration and Local Services,Environmental Services,011060,C&G - Hardwick Park Catering,Supplies and Services,324117,Provisions E324,09-Dec-2019,000006837162102,JR HOLLAND FOODSERVICE,5499,Catering costs - provisions,67.66,0.00,67.66
Regeneration and Local Services,Environmental Services,011060,C&G - Hardwick Park Catering,Supplies and Services,324117,Provisions E324,09-Dec-2019,000006837162112,FREEMAN CATERING BUTCH,5422,Catering costs - provisions,43.86,0.00,43.86
Regeneration and Local Services,Environmental Services,011060,C&G - Hardwick Park Catering,Supplies and Services,324117,Provisions E324,09-Dec-2019,000006837162128,FREEMAN CATERING BUTCH,5422,Catering costs - provisions,37.35,0.00,37.35
Regeneration and Local Services,Environmental Services,011060,C&G - Hardwick Park Catering,Supplies and Services,324117,Provisions E324,09-Dec-2019,000006837162138,FREEMAN CATERING BUTCH,5422,Catering costs - provisions,43.43,0.00,43.43
Regeneration and Local Services,Environmental Services,011060,C&G - Hardwick Park Catering,Supplies and Services,324117,Provisions E324,09-Dec-2019,000006837162144,FREEMAN CATERING BUTCH,5422,Catering costs - provisions,15.84,0.00,15.84
Regeneration and Local Services,Environmental Services,011060,C&G - Hardwick Park Catering,Supplies and Services,324117,Provisions E324,09-Dec-2019,000006837162154,FREEMAN CATERING BUTCH,5422,Catering costs - provisions,-5.00,0.00,-5.00
Regeneration and Local Services,Environmental Services,011060,C&G - Hardwick Park Catering,Supplies and Services,324117,Provisions E324,09-Dec-2019,000006837162158,FREEMAN CATERING BUTCH,5422,Catering costs - provisions,-7.74,0.00,-7.74
Children and Young Peoples Services,Head of Early Help Inclusion & Vulnerable Children.,085962,Aycliffe Secure - Durham,Supplies and Services,304403,Equipment and Materials,09-Dec-2019,000006837162200,AMZNMktplace,5999,Other consumables,84.70,0.00,84.70
Regeneration and Local Services,Corporate Property and Land,021234,Catering - Locomotion,Supplies and Services,324117,Provisions E324,09-Dec-2019,000006837162210,JR HOLLAND FOODSERVICE,5499,Catering costs - provisions,28.90,0.00,28.90
Regeneration and Local Services,Corporate Property and Land,021234,Catering - Locomotion,Supplies and Services,324117,Provisions E324,09-Dec-2019,000006837162218,FREEMAN CATERING BUTCH,5422,Catering costs - provisions,38.10,0.00,38.10
Regeneration and Local Services,Corporate Property and Land,010525,Catering - Green Lane,Supplies and Services,324117,Provisions E324,09-Dec-2019,000006837162282,FREEMAN CATERING BUTCH,5422,Catering costs - provisions,85.90,0.00,85.90
Children and Young Peoples Services,Head of Childrens Social Care,085551,Short Break Services-Park Hse Sher,Supplies and Services,324117,Provisions E324,09-Dec-2019,000006837162308,ICELAND,5411,Catering costs - provisions,19.00,0.00,19.00
Children and Young Peoples Services,Head of Childrens Social Care,085334,West Rainton Satelite Home,Supplies and Services,324117,Provisions E324,09-Dec-2019,000006837162440,SAINSBURYS 0776,5411,Catering costs - provisions,100.60,0.00,100.60
Children and Young Peoples Services,Head of Childrens Social Care,085334,West Rainton Satelite Home,Supplies and Services,384999,Miscellaneous Expenses,09-Dec-2019,000006837162448,SMYTHS TOYS DURHAM,5945,Other expenses,142.98,0.00,142.98
Regeneration and Local Services,Corporate Property and Land,020082,Bldg Serv - R&M Div 82- Lifts,Supplies and Services,304259,Equipment and Materials,09-Dec-2019,000006837162570,AMZNMktplace,5999,Equipment-purchase and rental,19.99,3.33,16.66
Regeneration and Local Services,Business Durham CL0850,030717,Business Services,Supplies and Services,324117,Provisions E324,09-Dec-2019,000006837162590,WILKO RETAIL LIMITED,5399,Catering costs - provisions,6.00,1.00,5.00
Regeneration and Local Services,Business Durham CL0850,030717,Business Services,Supplies and Services,324117,Provisions E324,09-Dec-2019,000006837162600,SAINSBURYS 0776,5411,Catering costs - provisions,26.50,0.00,26.50
Regeneration and Local Services,Business Durham CL0850,030717,Business Services,Supplies and Services,324117,Provisions E324,09-Dec-2019,000006837162606,SAINSBURYS 0776,5411,Catering costs - provisions,18.75,0.00,18.75
Regeneration and Local Services,Business Durham CL0850,030717,Business Services,Supplies and Services,324117,Provisions E324,09-Dec-2019,000006837162612,MARKS&SPENCER PLC,5411,Catering costs - provisions,22.80,0.00,22.80
Regeneration and Local Services,Corporate Property and Land,030691,Catering - Durham Dales Centre,Supplies and Services,324117,Provisions E324,09-Dec-2019,000006837162706,FREEMAN CATERING BUTCH,5422,Catering costs - provisions,56.14,0.00,56.14
Regeneration and Local Services,Corporate Property and Land,030691,Catering - Durham Dales Centre,Supplies and Services,324117,Provisions E324,09-Dec-2019,000006837162716,FREEMAN CATERING BUTCH,5422,Catering costs - provisions,89.21,0.00,89.21
Regeneration and Local Services,Corporate Property and Land,030691,Catering - Durham Dales Centre,Supplies and Services,324117,Provisions E324,09-Dec-2019,000006837162724,FREEMAN CATERING BUTCH,5422,Catering costs - provisions,91.35,0.00,91.35
Adult and Health Services,Head of Adults,055643,Hawthorn House LD Respite Unit,Supplies and Services,324117,Provisions E324,09-Dec-2019,000006837162790,FREEMAN CATERING BUTCH,5422,Catering costs - provisions,57.77,0.00,57.77
Resources BK0010,Digital and Customer Services,065335,School Services - Implementations,Supplies and Services,304639,Equipment and Materials,09-Dec-2019,000006837162842,AMZNMktplace,5999,Technicians-supplies,3.99,0.00,3.99
Resources BK0010,Digital and Customer Services,065335,School Services - Implementations,Supplies and Services,304639,Equipment and Materials,09-Dec-2019,000006837162850,AMZNMktplace,5999,Technicians-supplies,5.57,0.93,4.64
Resources BK0010,Digital and Customer Services,065335,School Services - Implementations,Supplies and Services,304639,Equipment and Materials,09-Dec-2019,000006837162854,REPLACEBASE,5732,Technicians-supplies,107.48,17.91,89.57
Regeneration and Local Services,Development and Housing,030771,Durham Advance Flexible Fund,Transport,235057,Public Transport,09-Dec-2019,000006837162922,GO NORTH EAST LIMITED,4131,Staff travelling,5.30,0.00,5.30
Regeneration and Local Services,Development and Housing,030771,Durham Advance Flexible Fund,Transport,235057,Public Transport,09-Dec-2019,000006837162932,GO NORTH EAST LIMITED,4131,Staff travelling,5.30,0.00,5.30
Resources BK0010,Legal & Democratic Services,067953,Coroner County Durham & Darlington,Supplies and Services,340001,Postages E340,09-Dec-2019,000006837162954,ROYAL MAIL ONLINE SHOP,9402,Postages,210.00,0.00,210.00
Regeneration and Local Services,Development and Housing,031500,Housing Solutions - Core Team,Supplies and Services,352001,Conference Expenses,09-Dec-2019,000006837162966,GRAINGER HOTEL,7011,Conferencesseminars fees etc,150.00,25.00,125.00
Regeneration and Local Services,Development and Housing,031500,Housing Solutions - Core Team,Supplies and Services,352001,Conference Expenses,09-Dec-2019,000006837162974,HAYAT HOTEL,7011,Conferencesseminars fees etc,123.00,20.50,102.50
Regeneration and Local Services,Development and Housing,031500,Housing Solutions - Core Team,Supplies and Services,352001,Conference Expenses,09-Dec-2019,000006837162980,HAYAT HOTEL,7011,Conferencesseminars fees etc,500.00,83.33,416.67
Children and Young Peoples Services,Head of Education and Skills,071903,Early Years Sustainability,Supplies and Services,304259,Equipment and Materials,09-Dec-2019,000006837162988,BATH&NE SOMERSET CNCL,9399,Equipment-purchase and rental,57.90,0.00,57.90
Children and Young Peoples Services,Head of Education and Skills,071903,Early Years Sustainability,Supplies and Services,304259,Equipment and Materials,09-Dec-2019,000006837162994,BATH&NE SOMERSET CNCL,9399,Equipment-purchase and rental,57.90,0.00,57.90
Regeneration and Local Services,Corporate Property and Land,021324,Catering - Meadowfield,Supplies and Services,324117,Provisions E324,09-Dec-2019,000006837163016,FREEMAN CATERING BUTCH,5422,Catering costs - provisions,71.54,0.00,71.54
Regeneration and Local Services,Corporate Property and Land,021324,Catering - Meadowfield,Supplies and Services,324117,Provisions E324,09-Dec-2019,000006837163024,FREEMAN CATERING BUTCH,5422,Catering costs - provisions,114.24,0.00,114.24
Children and Young Peoples Services,Head of Childrens Social Care,085332,Middlestone Moor CU,Supplies and Services,324117,Provisions E324,09-Dec-2019,000006837163036,TESCO STORES 6329,5411,Catering costs - provisions,16.70,0.00,16.70
Children and Young Peoples Services,Head of Education and Skills,071802,Louisa Cent Nursery,Supplies and Services,324117,Provisions E324,09-Dec-2019,000006837163088,ASDA SUPERSTORE,5411,Catering costs - provisions,10.56,0.00,10.56
Regeneration and Local Services,Development and Housing,030554,International Relations 030554,Supplies and Services,352001,Conference Expenses,09-Dec-2019,000006837163122,MARRIOTT,3509,Conferencesseminars fees etc,11.00,1.83,9.17
Children and Young Peoples Services,Head of Childrens Social Care,085380,Operations Manager LAC Resources,Supplies and Services,324117,Provisions E324,09-Dec-2019,000006837163148,WILKO RETAIL LIMITED,5399,Catering costs - provisions,78.20,13.03,65.17
Children and Young Peoples Services,Head of Childrens Social Care,085380,Operations Manager LAC Resources,Supplies and Services,304999,Equipment and Materials,09-Dec-2019,000006837163156,HOME BARGAINS,5251,Misc equipment tools and materials,92.34,15.39,76.95
Children and Young Peoples Services,Head of Childrens Social Care,085380,Operations Manager LAC Resources,Supplies and Services,304999,Equipment and Materials,09-Dec-2019,000006837163156 - 1,HOME BARGAINS,5251,Misc equipment tools and materials,12.43,,12.43
Children and Young Peoples Services,Head of Childrens Social Care,085380,Operations Manager LAC Resources,Supplies and Services,304999,Equipment and Materials,09-Dec-2019,000006837163162,HOME BARGAINS,5251,Misc equipment tools and materials,74.30,12.38,61.92
Children and Young Peoples Services,Head of Childrens Social Care,085380,Operations Manager LAC Resources,Supplies and Services,324117,Provisions E324,09-Dec-2019,000006837163168,ASDA STORES,5411,Catering costs - provisions,30.04,0.00,30.04
Transformation and Partnerships,Business Support,069010,Administration 069010,Supplies and Services,340001,Postages E340,09-Dec-2019,000006837163256,ROYAL MAIL ONLINE SHOP,9402,Postages,231.85,0.00,231.85
Children and Young Peoples Services,Head of Childrens Social Care,085396,Fostering Placement Team,Transport,235057,Public Transport,09-Dec-2019,000006837163270,HOLIDAY PAYMENT VRUK,4722,Staff travelling,282.00,0.00,282.00
Regeneration and Local Services,Corporate Property and Land,021235,Catering - Wharton Park,Supplies and Services,324117,Provisions E324,09-Dec-2019,000006837163302,JR HOLLAND FOODSERVICE,5499,Catering costs - provisions,21.20,0.00,21.20
Children and Young Peoples Services,Head of Childrens Social Care,085341,High Etherley Satelite Home,Supplies and Services,308011,Furniture,09-Dec-2019,000006841890264,IKEA LTD 143 GATESHEAD,5712,Furniture repair and replacement,253.00,42.17,210.83
Children and Young Peoples Services,Head of Childrens Social Care,085341,High Etherley Satelite Home,Supplies and Services,308011,Furniture,09-Dec-2019,000006841890270,IKEA LTD 143 GATESHEAD,5712,Furniture repair and replacement,8.00,1.33,6.67
Children and Young Peoples Services,Head of Education and Skills,071801,Selby Cottage Childcare Centre,Supplies and Services,328041,Clothing uniforms and laundry E328,09-Dec-2019,000006841890310,B&M RETAIL LTD,5310,Clothing uniforms and laundry,27.40,0.00,27.40
Children and Young Peoples Services,Head of Childrens Social Care,085342,9 Cedar Drive Aycliffe,Supplies and Services,348037,Subsistence E348,09-Dec-2019,000006841890448,MCDONALDS,5812,Subsistence,2.38,0.00,2.38
Children and Young Peoples Services,Head of Childrens Social Care,085342,9 Cedar Drive Aycliffe,Supplies and Services,304259,Equipment and Materials,09-Dec-2019,000006841890456,J D SPORTS 152,5941,Equipment-purchase and rental,75.05,0.00,75.05
Children and Young Peoples Services,Head of Childrens Social Care,085352,Tow Law CU,Supplies and Services,304221,Equipment and Materials,09-Dec-2019,000006841890572,B & Q 1332,5200,Direct materials,9.63,0.00,9.63
Children and Young Peoples Services,Head of Childrens Social Care,085352,Tow Law CU,Supplies and Services,324117,Provisions E324,09-Dec-2019,000006841890580,WM MORRISONS STORE,5411,Catering costs - provisions,16.50,0.00,16.50
Children and Young Peoples Services,Head of Childrens Social Care,085352,Tow Law CU,Supplies and Services,348037,Subsistence E348,09-Dec-2019,000006841890586,MCDONALDS,5812,Subsistence,18.27,0.00,18.27
Children and Young Peoples Services,Head of Early Help Inclusion & Vulnerable Children.,088104,BA/BC/Crook 0-19 Targeted Family Support,Supplies and Services,312009,Newspapers books and periodicals E312,09-Dec-2019,000006841890598,WWW.THEWORKS.CO.UK,5310,Newspapers books and periodicals,40.00,0.00,40.00
Regeneration and Local Services,Development and Housing,030770,Durham Advance,Supplies and Services,304403,Equipment and Materials,09-Dec-2019,000006841890688,TIMPSON LTD,5999,Other consumables,9.99,0.00,9.99
Regeneration and Local Services,Culture Sport and Tourism,010664,Freemans Quay Leisure Centre,Supplies and Services,304221,Equipment and Materials,09-Dec-2019,000006841890836,SCREWFIX DIRECT,5200,Direct materials,72.99,0.00,72.99
Regeneration and Local Services,Culture Sport and Tourism,054813,Gala Theatre - Technical,Supplies and Services,308011,Furniture,09-Dec-2019,000006841890886,ONLINECARPETS.COUK,5713,Furniture repair and replacement,92.79,0.00,92.79
Regeneration and Local Services,Culture Sport and Tourism,054813,Gala Theatre - Technical,Supplies and Services,304403,Equipment and Materials,09-Dec-2019,000006841890892,AMZNMKTPLACE AMAZON.CO,5999,Other consumables,318.38,0.00,318.38
Children and Young Peoples Services,Head of Childrens Social Care,085551,Short Break Services-Park Hse Sher,Supplies and Services,324117,Provisions E324,09-Dec-2019,000006841891240,ALDI 12 774,5411,Catering costs - provisions,40.09,0.00,40.09
Children and Young Peoples Services,Head of Childrens Social Care,085342,9 Cedar Drive Aycliffe,Premises,145009,Cleaning and Domestic Supplies,09-Dec-2019,000006841891416,MALCOLMS CLEANING,7349,Other cleaning and domestic costs,26.00,0.00,26.00
Regeneration and Local Services,Environmental Services,010367,C&G - South Grounds Maintenance,Supplies and Services,304221,Equipment and Materials,09-Dec-2019,000006841891516,SCREWFIX DIRECT,5200,Direct materials,102.50,0.00,102.50
Resources BK0010,Digital and Customer Services,065335,School Services - Implementations,Supplies and Services,304639,Equipment and Materials,09-Dec-2019,000006841891590,AMZNMKTPLACE AMAZON.CO,5999,Technicians-supplies,20.85,3.48,17.37
Transformation and Partnerships,Transformation,060125,Information Management,Supplies and Services,372009,Subscriptions E372,09-Dec-2019,000006841891626,I R M S,7399,Subscriptions 372009,399.00,0.00,399.00
Children and Young Peoples Services,Head of Childrens Social Care,085380,Operations Manager LAC Resources,Supplies and Services,328041,Clothing uniforms and laundry E328,09-Dec-2019,000006841891802,THE WORKS,5310,Clothing uniforms and laundry,66.75,0.00,66.75
Children and Young Peoples Services,Head of Childrens Social Care,085380,Operations Manager LAC Resources,Supplies and Services,324117,Provisions E324,09-Dec-2019,000006841891804,ALDI 34 774,5411,Catering costs - provisions,70.92,11.82,59.10
Children and Young Peoples Services,Head of Childrens Social Care,085380,Operations Manager LAC Resources,Supplies and Services,324117,Provisions E324,09-Dec-2019,000006841891804 - 1,ALDI 34 774,5411,Catering costs - provisions,2.99,,2.99
Regeneration and Local Services,Development and Housing,031500,Housing Solutions - Core Team,Employees,040149,Recruitment Instruction and Training,09-Dec-2019,000006841891834,PREMIER INN,3811,Training-all costs,70.00,0.00,70.00
Adult and Health Services,Head of Adults,055310,Positive Journeys (Tudhoe),Supplies and Services,324117,Provisions E324,09-Dec-2019,000006841891892,ALDI 59 774,5411,Catering costs - provisions,2.78,0.00,2.78
Regeneration and Local Services,Culture Sport and Tourism,054812,Gala Theatre - Catering etc,Supplies and Services,324117,Provisions E324,09-Dec-2019,000006847591646,BATLEYS PERTH,5300,Catering costs - provisions,483.24,80.54,402.70
Regeneration and Local Services,Business Durham CL0850,030674,Business Services General,Supplies and Services,304999,Equipment and Materials,10-Dec-2019,000006837162000,MAILCHIMP MONTHLY,5968,Misc equipment tools and materials,1.91,0.00,1.91
Regeneration and Local Services,Corporate Property and Land,020082,Bldg Serv - R&M Div 82- Lifts,Supplies and Services,304259,Equipment and Materials,10-Dec-2019,000006837162578,AMZNMktplace,5999,Equipment-purchase and rental,30.06,5.01,25.05
Regeneration and Local Services,Corporate Property and Land,020082,Bldg Serv - R&M Div 82- Lifts,Supplies and Services,304259,Equipment and Materials,10-Dec-2019,000006837162578 - 1,AMZNMktplace,5999,Equipment-purchase and rental,0.03,,0.03
Children and Young Peoples Services,Head of Education and Skills,071801,Selby Cottage Childcare Centre,Supplies and Services,324117,Provisions E324,10-Dec-2019,000006841890316,TESCO STORES 2278,5411,Catering costs - provisions,4.00,0.00,4.00
Transformation and Partnerships,Communications Management,060270,Communications and Marketing,Supplies and Services,304403,Equipment and Materials,10-Dec-2019,000006841890368,AMZNMktplace,5999,Other consumables,8.99,0.00,8.99
Transformation and Partnerships,Communications Management,060270,Communications and Marketing,Supplies and Services,304403,Equipment and Materials,10-Dec-2019,000006841890374,AMZNMKTPLACE AMAZON.CO,5999,Other consumables,15.96,0.00,15.96
Regeneration and Local Services,Development and Housing,030773,CLLD North,Transport,235057,Public Transport,10-Dec-2019,000006841890406,GO NORTH EAST LIMITED,4131,Staff travelling,5.30,0.00,5.30
Regeneration and Local Services,Development and Housing,030773,CLLD North,Supplies and Services,304259,Equipment and Materials,10-Dec-2019,000006841890420,EA WASTE CARRIERS,9399,Equipment-purchase and rental,154.00,0.00,154.00
Children and Young Peoples Services,Head of Childrens Social Care,085342,9 Cedar Drive Aycliffe,Supplies and Services,324117,Provisions E324,10-Dec-2019,000006841890486,TESCO STORES 2916,5411,Catering costs - provisions,43.00,0.00,43.00
Children and Young Peoples Services,Head of Childrens Social Care,085342,9 Cedar Drive Aycliffe,Supplies and Services,348037,Subsistence E348,10-Dec-2019,000006841890494,THE CLARENCE VILLA,5813,Subsistence,119.70,0.00,119.70
Children and Young Peoples Services,Head of Early Help Inclusion & Vulnerable Children.,088116,South Area - Teenage Parent Programme,Supplies and Services,324117,Provisions E324,10-Dec-2019,000006841890608,BREWERS FAYRE 41517810,5812,Catering costs - provisions,93.13,0.00,93.13
Regeneration and Local Services,Corporate Property and Land,021242,Catering - County Hall,Supplies and Services,324117,Provisions E324,10-Dec-2019,000006841890662,JR HOLLAND FOODSERVICE,5499,Catering costs - provisions,167.79,0.00,167.79
Regeneration and Local Services,Corporate Property and Land,021242,Catering - County Hall,Supplies and Services,324117,Provisions E324,10-Dec-2019,000006841890666,JR HOLLAND FOODSERVICE,5499,Catering costs - provisions,31.51,0.00,31.51
Regeneration and Local Services,Corporate Property and Land,021242,Catering - County Hall,Supplies and Services,324117,Provisions E324,10-Dec-2019,000006841890674,JR HOLLAND FOODSERVICE,5499,Catering costs - provisions,23.40,0.00,23.40
Regeneration and Local Services,Corporate Property and Land,021242,Catering - County Hall,Supplies and Services,324117,Provisions E324,10-Dec-2019,000006841890678,JR HOLLAND FOODSERVICE,5499,Catering costs - provisions,115.90,0.00,115.90
Regeneration and Local Services,Corporate Property and Land,021242,Catering - County Hall,Supplies and Services,324117,Provisions E324,10-Dec-2019,000006841890682,JR HOLLAND FOODSERVICE,5499,Catering costs - provisions,9.44,0.00,9.44
Transformation and Partnerships,Business Support,052986,CYPS - Locality and Operational Support,Supplies and Services,324117,Provisions E324,10-Dec-2019,000006841890844,ASDA SUPERSTORE 4987,5411,Catering costs - provisions,9.06,0.00,9.06
Children and Young Peoples Services,Head of Education and Skills,071732,Dean Bank Childcare,Supplies and Services,324117,Provisions E324,10-Dec-2019,000006841890876,SAINSBURYS SACAT (2303,5411,Catering costs - provisions,19.45,0.00,19.45
Regeneration and Local Services,Culture Sport and Tourism,054813,Gala Theatre - Technical,Supplies and Services,304403,Equipment and Materials,10-Dec-2019,000006841890896,AMZNMKTPLACE AMAZON.CO,5999,Other consumables,40.50,0.00,40.50
Children and Young Peoples Services,Head of Early Help Inclusion & Vulnerable Children.,088113,Seaham  0-19 Community Family Hub,Supplies and Services,324117,Provisions E324,10-Dec-2019,000006841890902,TESCO STORES 2371,5411,Catering costs - provisions,58.49,0.00,58.49
Resources BK0010,Legal & Democratic Services,069540,Charter Trust,Supplies and Services,384071,Miscellaneous Expenses,10-Dec-2019,000006841890926,CLINTONS 1195,5947,Departmental hospitality,7.00,1.17,5.83
Regeneration and Local Services,Development and Housing,030771,Durham Advance Flexible Fund,Supplies and Services,324117,Provisions E324,10-Dec-2019,000006841890972,SAINSBURYS 0776,5411,Catering costs - provisions,40.00,0.00,40.00
Regeneration and Local Services,Development and Housing,030771,Durham Advance Flexible Fund,Supplies and Services,348037,Subsistence E348,10-Dec-2019,000006841890978,COSTA COFFEE 43038640,5814,Subsistence,5.35,0.89,4.46
Regeneration and Local Services,Development and Housing,030771,Durham Advance Flexible Fund,Supplies and Services,324117,Provisions E324,10-Dec-2019,000006841890980,MARKS&SPENCER PLC,5411,Catering costs - provisions,117.10,0.00,117.10
Regeneration and Local Services,Business Durham CL0850,030674,Business Services General,Third Party Payments,430100,Rendered by Private Contractors,10-Dec-2019,000006841891010,BLS monday.com,7399,Payments to sub-contractors,148.80,24.80,124.00
Children and Young Peoples Services,Head of Childrens Social Care,085334,West Rainton Satelite Home,Supplies and Services,324117,Provisions E324,10-Dec-2019,000006841891024,TESCO STORES 6329,5411,Catering costs - provisions,14.00,0.00,14.00
Children and Young Peoples Services,Head of Early Help Inclusion & Vulnerable Children.,071445,Chester le Street One Point Hub,Transport,235057,Public Transport,10-Dec-2019,000006841891036,SUNDERLAND CC,7523,Staff travelling,11.00,0.00,11.00
Children and Young Peoples Services,Head of Early Help Inclusion & Vulnerable Children.,085957,Secure Management,Supplies and Services,328041,Clothing uniforms and laundry E328,10-Dec-2019,000006841891042,FOOTASYLUM PLC,5691,Clothing uniforms and laundry,152.97,0.00,152.97
Children and Young Peoples Services,Head of Early Help Inclusion & Vulnerable Children.,085957,Secure Management,Supplies and Services,328041,Clothing uniforms and laundry E328,10-Dec-2019,000006841891046,FOOTASYLUM PLC,5691,Clothing uniforms and laundry,33.94,0.00,33.94
Children and Young Peoples Services,Head of Early Help Inclusion & Vulnerable Children.,085957,Secure Management,Supplies and Services,384999,Miscellaneous Expenses,10-Dec-2019,000006841891052,Amazon.co.uk GR9PL0AG5,5969,Other expenses,26.19,4.37,21.82
Children and Young Peoples Services,Head of Early Help Inclusion & Vulnerable Children.,085957,Secure Management,Supplies and Services,304403,Equipment and Materials,10-Dec-2019,000006841891056,AMZNMktplace,5999,Other consumables,15.90,2.65,13.25
Children and Young Peoples Services,Head of Early Help Inclusion & Vulnerable Children.,085957,Secure Management,Supplies and Services,304403,Equipment and Materials,10-Dec-2019,000006841891056 - 1,AMZNMktplace,5999,Other consumables,0.04,,0.04
Children and Young Peoples Services,Head of Early Help Inclusion & Vulnerable Children.,085957,Secure Management,Supplies and Services,304403,Equipment and Materials,10-Dec-2019,000006841891062,AMZNMktplace,5999,Other consumables,24.95,0.00,24.95
Children and Young Peoples Services,Head of Early Help Inclusion & Vulnerable Children.,085957,Secure Management,Supplies and Services,304403,Equipment and Materials,10-Dec-2019,000006841891068,AMZNMktplace,5999,Other consumables,21.98,3.67,18.31
Children and Young Peoples Services,Head of Early Help Inclusion & Vulnerable Children.,085957,Secure Management,Supplies and Services,304403,Equipment and Materials,10-Dec-2019,000006841891074,AMZNMktplace,5999,Other consumables,12.60,2.10,10.50
Children and Young Peoples Services,Head of Early Help Inclusion & Vulnerable Children.,085957,Secure Management,Supplies and Services,304403,Equipment and Materials,10-Dec-2019,000006841891074 - 1,AMZNMktplace,5999,Other consumables,5.67,,5.67
Children and Young Peoples Services,Head of Early Help Inclusion & Vulnerable Children.,085957,Secure Management,Supplies and Services,328041,Clothing uniforms and laundry E328,10-Dec-2019,000006841891076,SELECT,5691,Clothing uniforms and laundry,35.22,5.87,29.35
Children and Young Peoples Services,Head of Early Help Inclusion & Vulnerable Children.,085957,Secure Management,Supplies and Services,328041,Clothing uniforms and laundry E328,10-Dec-2019,000006841891076 - 1,SELECT,5691,Clothing uniforms and laundry,10.76,,10.76
Children and Young Peoples Services,Head of Early Help Inclusion & Vulnerable Children.,085957,Secure Management,Supplies and Services,342033,Computers and Communications,10-Dec-2019,000006841891082,VERY,5964,Computer hardware,33.99,0.00,33.99
Transformation and Partnerships,Business Support,052986,CYPS - Locality and Operational Support,Supplies and Services,304403,Equipment and Materials,10-Dec-2019,000006841891090,CITY TAXIS,5734,Other consumables,50.00,0.00,50.00
Transformation and Partnerships,Business Support,052986,CYPS - Locality and Operational Support,Supplies and Services,324117,Provisions E324,10-Dec-2019,000006841891098,ASDA GROCERIES ONLINE,5411,Catering costs - provisions,39.00,0.00,39.00
Regeneration and Local Services,Environmental Services,011058,C&G - Wharton Park,Supplies and Services,332047,Printing Stationery and Gen Off Exps,10-Dec-2019,000006841891112,AMZNMktplace,5999,Stationery,15.98,2.66,13.32
Regeneration and Local Services,Environmental Services,011060,C&G - Hardwick Park Catering,Supplies and Services,324117,Provisions E324,10-Dec-2019,000006841891120,JR HOLLAND FOODSERVICE,5499,Catering costs - provisions,35.66,0.00,35.66
Regeneration and Local Services,Culture Sport and Tourism,054966,Gala Theatre - Gala Productions,Supplies and Services,384999,Miscellaneous Expenses,10-Dec-2019,000006841891156,Amazon.co.uk P48U92R45,5969,Other expenses,7.88,1.32,6.56
Children and Young Peoples Services,Head of Early Help Inclusion & Vulnerable Children.,088101,CLS 0-19 Community Family Hub,Supplies and Services,304999,Equipment and Materials,10-Dec-2019,000006841891168,HOME BARGAINS SPENNYMO,5251,Misc equipment tools and materials,40.91,6.82,34.09
Children and Young Peoples Services,Head of Early Help Inclusion & Vulnerable Children.,088101,CLS 0-19 Community Family Hub,Supplies and Services,304999,Equipment and Materials,10-Dec-2019,000006841891174,HOME BARGAINS SPENNYMO,5251,Misc equipment tools and materials,40.56,6.76,33.80
Children and Young Peoples Services,Head of Childrens Social Care,085331,New Lea Childrens Home,Supplies and Services,324117,Provisions E324,10-Dec-2019,000006841891182,ASDA GROCERIES ONLINE,5411,Catering costs - provisions,137.95,0.00,137.95
Children and Young Peoples Services,Head of Childrens Social Care,085331,New Lea Childrens Home,Supplies and Services,324117,Provisions E324,10-Dec-2019,000006841891190,ASDA GROCERIES ONLINE,5411,Catering costs - provisions,-1.43,0.00,-1.43
Regeneration and Local Services,Corporate Property and Land,010525,Catering - Green Lane,Supplies and Services,324117,Provisions E324,10-Dec-2019,000006841891218,JR HOLLAND FOODSERVICE,5499,Catering costs - provisions,60.05,0.00,60.05
Children and Young Peoples Services,Head of Childrens Social Care,085352,Tow Law CU,Supplies and Services,304999,Equipment and Materials,10-Dec-2019,000006841891250,BOOTS/5002,5912,Misc equipment tools and materials,45.63,0.00,45.63
Children and Young Peoples Services,Head of Early Help Inclusion & Vulnerable Children.,071443,Stanley One Point Hub,Supplies and Services,384999,Miscellaneous Expenses,10-Dec-2019,000006841891294,Amazon.co.uk AG69E9PM5,5969,Other expenses,33.60,5.60,28.00
Children and Young Peoples Services,Head of Early Help Inclusion & Vulnerable Children.,071443,Stanley One Point Hub,Supplies and Services,384999,Miscellaneous Expenses,10-Dec-2019,000006841891294 - 1,Amazon.co.uk AG69E9PM5,5969,Other expenses,41.20,,41.20
Children and Young Peoples Services,Head of Early Help Inclusion & Vulnerable Children.,071443,Stanley One Point Hub,Supplies and Services,324117,Provisions E324,10-Dec-2019,000006841891300,ASDA GEORGE COM LEEDS,5411,Catering costs - provisions,16.00,0.00,16.00
Children and Young Peoples Services,Head of Early Help Inclusion & Vulnerable Children.,071443,Stanley One Point Hub,Supplies and Services,324117,Provisions E324,10-Dec-2019,000006841891306,ASDA GROCERIES ONLINE,5411,Catering costs - provisions,83.77,0.00,83.77
Children and Young Peoples Services,Head of Early Help Inclusion & Vulnerable Children.,071443,Stanley One Point Hub,Supplies and Services,324117,Provisions E324,10-Dec-2019,000006841891310,ASDA GROCERIES ONLINE,5411,Catering costs - provisions,-1.18,0.00,-1.18
Children and Young Peoples Services,Head of Early Help Inclusion & Vulnerable Children.,071443,Stanley One Point Hub,Supplies and Services,324117,Provisions E324,10-Dec-2019,000006841891316,ASDA GROCERIES ONLINE,5411,Catering costs - provisions,-6.00,0.00,-6.00
Resources BK0010,Resources Management CK0450,069000,Resources Management 069000,Supplies and Services,324117,Provisions E324,10-Dec-2019,000006841891386,SAINSBURYS LOC4937,5411,Catering costs - provisions,6.55,0.00,6.55
Children and Young Peoples Services,Head of Childrens Social Care,085342,9 Cedar Drive Aycliffe,Supplies and Services,324117,Provisions E324,10-Dec-2019,000006841891422,SAINSBURYS SACAT 2082,5411,Catering costs - provisions,1.00,0.00,1.00
Children and Young Peoples Services,Head of Childrens Social Care,085342,9 Cedar Drive Aycliffe,Supplies and Services,304403,Equipment and Materials,10-Dec-2019,000006841891428,CARD FACTORY,5947,Other consumables,5.64,0.00,5.64
Children and Young Peoples Services,Head of Childrens Social Care,085342,9 Cedar Drive Aycliffe,Supplies and Services,304403,Equipment and Materials,10-Dec-2019,000006841891432,CARD FACTORY,5947,Other consumables,4.77,0.00,4.77
Children and Young Peoples Services,Head of Childrens Social Care,085352,Tow Law CU,Supplies and Services,304259,Equipment and Materials,10-Dec-2019,000006841891464,DARLINGTON HIPPODROME,9399,Equipment-purchase and rental,102.00,0.00,102.00
Adult and Health Services,Head of Adults,055643,Hawthorn House LD Respite Unit,Supplies and Services,324117,Provisions E324,10-Dec-2019,000006841891524,JR HOLLAND FOODSERVICE,5499,Catering costs - provisions,17.38,0.00,17.38
Regeneration and Local Services,Environmental Services,031200,North Pennines Core,Supplies and Services,348037,Subsistence E348,10-Dec-2019,000006841891538,MIDDLE FEAST,5814,Subsistence,7.45,0.00,7.45
Children and Young Peoples Services,Head of Childrens Social Care,085334,West Rainton Satelite Home,Supplies and Services,324117,Provisions E324,10-Dec-2019,000006841891552,TESCO STORES 2371,5411,Catering costs - provisions,9.00,0.00,9.00
Children and Young Peoples Services,Head of Childrens Social Care,085342,9 Cedar Drive Aycliffe,Supplies and Services,324117,Provisions E324,10-Dec-2019,000006841891596,TESCO STORES 2916,5411,Catering costs - provisions,17.00,0.00,17.00
Regeneration and Local Services,Development and Housing,030771,Durham Advance Flexible Fund,Supplies and Services,348037,Subsistence E348,10-Dec-2019,000006841891620,COSTA COFFEE,5814,Subsistence,2.52,0.42,2.10
Regeneration and Local Services,Development and Housing,030771,Durham Advance Flexible Fund,Supplies and Services,348037,Subsistence E348,10-Dec-2019,000006841891620 - 1,COSTA COFFEE,5814,Subsistence,0.03,,0.03
Regeneration and Local Services,Corporate Property and Land,021324,Catering - Meadowfield,Supplies and Services,324117,Provisions E324,10-Dec-2019,000006841891654,JR HOLLAND FOODSERVICE,5499,Catering costs - provisions,7.92,0.00,7.92
Regeneration and Local Services,Corporate Property and Land,021324,Catering - Meadowfield,Supplies and Services,324117,Provisions E324,10-Dec-2019,000006841891660,JR HOLLAND FOODSERVICE,5499,Catering costs - provisions,14.19,0.00,14.19
Children and Young Peoples Services,Head of Childrens Social Care,085332,Middlestone Moor CU,Supplies and Services,324117,Provisions E324,10-Dec-2019,000006841891664,ASDA SUPERSTORE 4987,5411,Catering costs - provisions,36.81,0.00,36.81
Regeneration and Local Services,Development and Housing,031576,B& B - Temp Accom,Supplies and Services,364320,Grants to Voluntary Organisations,10-Dec-2019,000006841891684,BUDGET EXPRESS HOTEL,7011,Accommodation assistance,445.00,0.00,445.00
Children and Young Peoples Services,Head of Early Help Inclusion & Vulnerable Children.,085801,CDYJS - Support,Supplies and Services,348037,Subsistence E348,10-Dec-2019,000006841891690,SAMBUCA CHESTER LE STR,5812,Subsistence,124.95,0.00,124.95
Children and Young Peoples Services,Head of Childrens Social Care,085352,Tow Law CU,Supplies and Services,348037,Subsistence E348,10-Dec-2019,000006841891714,BIG LUKES WORLD BUFFET,5812,Subsistence,61.51,0.00,61.51
Children and Young Peoples Services,Head of Childrens Social Care,085352,Tow Law CU,Supplies and Services,304999,Equipment and Materials,10-Dec-2019,000006841891722,BOOTS/5002,5912,Misc equipment tools and materials,12.62,0.00,12.62
Children and Young Peoples Services,Head of Education and Skills,071802,Louisa Cent Nursery,Supplies and Services,324117,Provisions E324,10-Dec-2019,000006841891752,ASDA SUPERSTORE,5411,Catering costs - provisions,79.01,0.00,79.01
Children and Young Peoples Services,Head of Education and Skills,071802,Louisa Cent Nursery,Supplies and Services,324117,Provisions E324,10-Dec-2019,000006841891756,ASDA SUPERSTORE,5411,Catering costs - provisions,21.57,0.00,21.57
Children and Young Peoples Services,Head of Childrens Social Care,085380,Operations Manager LAC Resources,Supplies and Services,324117,Provisions E324,10-Dec-2019,000006841891810,WILKO RETAIL LIMITED,5399,Catering costs - provisions,10.25,1.71,8.54
Children and Young Peoples Services,Head of Childrens Social Care,085380,Operations Manager LAC Resources,Supplies and Services,304999,Equipment and Materials,10-Dec-2019,000006841891820,HOME BARGAINS SUNDERLA,5251,Misc equipment tools and materials,10.02,1.67,8.35
Children and Young Peoples Services,Head of Childrens Social Care,085332,Middlestone Moor CU,Supplies and Services,384999,Miscellaneous Expenses,10-Dec-2019,000006841891840,ATG TICKET WEB,7922,Other expenses,173.65,0.00,173.65
Children and Young Peoples Services,Head of Education and Skills,071801,Selby Cottage Childcare Centre,Supplies and Services,324117,Provisions E324,10-Dec-2019,000006847591370,ALDI 32 774,5411,Catering costs - provisions,40.96,0.00,40.96
Children and Young Peoples Services,Head of Education and Skills,071801,Selby Cottage Childcare Centre,Supplies and Services,324117,Provisions E324,10-Dec-2019,000006847591382,WM MORRISONS STORE,5411,Catering costs - provisions,8.50,0.00,8.50
Children and Young Peoples Services,Head of Education and Skills,054640,Durham Learning Resources 054640,Supplies and Services,304403,Equipment and Materials,10-Dec-2019,000006847591408,AMZNMKTPLACE AMAZON.CO,5999,Other consumables,6.35,1.06,5.29
Children and Young Peoples Services,Head of Childrens Social Care,085352,Tow Law CU,Supplies and Services,324117,Provisions E324,10-Dec-2019,000006847591540,WM MORRISONS STORE,5411,Catering costs - provisions,20.35,0.00,20.35
Children and Young Peoples Services,Head of Early Help Inclusion & Vulnerable Children.,088105,BA/BC/Crook 0-19 Community Family Hub,Supplies and Services,304649,Equipment and Materials,10-Dec-2019,000006847591568,WWW.THEWORKS.CO.UK,5310,Toys,156.95,0.00,156.95
Regeneration and Local Services,Corporate Property and Land,021242,Catering - County Hall,Supplies and Services,324117,Provisions E324,10-Dec-2019,000006847591586,BATLEYS PERTH,5300,Catering costs - provisions,463.92,77.32,386.60
Regeneration and Local Services,Corporate Property and Land,021242,Catering - County Hall,Supplies and Services,324117,Provisions E324,10-Dec-2019,000006847591586 - 1,BATLEYS PERTH,5300,Catering costs - provisions,157.39,,157.39
Children and Young Peoples Services,Head of Childrens Social Care,085622,Families First Ferryhill,Supplies and Services,384999,Miscellaneous Expenses,10-Dec-2019,000006847591622,WWW.DURHAM.GOV.UK,9399,Other expenses,22.00,0.00,22.00
Regeneration and Local Services,Development and Housing,031576,B& B - Temp Accom,Supplies and Services,364320,Grants to Voluntary Organisations,10-Dec-2019,000006847591794,PREMIER INN,3811,Accommodation assistance,87.50,0.00,87.50
Regeneration and Local Services,Development and Housing,031576,B& B - Temp Accom,Supplies and Services,364320,Grants to Voluntary Organisations,10-Dec-2019,000006847591802,PREMIER INN,3811,Accommodation assistance,210.50,0.00,210.50
Children and Young Peoples Services,Head of Childrens Social Care,085352,Tow Law CU,Supplies and Services,348037,Subsistence E348,10-Dec-2019,000006847591866,GREGGS,5812,Subsistence,12.50,0.00,12.50
Children and Young Peoples Services,Head of Education and Skills,071732,Dean Bank Childcare,Supplies and Services,328041,Clothing uniforms and laundry E328,10-Dec-2019,000006847591884,B&M RETAIL LTD,5310,Clothing uniforms and laundry,45.25,0.00,45.25
Children and Young Peoples Services,Head of Early Help Inclusion & Vulnerable Children.,088113,Seaham  0-19 Community Family Hub,Supplies and Services,348037,Subsistence E348,10-Dec-2019,000006847591918,GREGGS PLC,5812,Subsistence,24.00,0.00,24.00
Regeneration and Local Services,Development and Housing,030771,Durham Advance Flexible Fund,Supplies and Services,304259,Equipment and Materials,10-Dec-2019,000006847592014,DVLA DRIVER ONLINE,9399,Equipment-purchase and rental,34.00,0.00,34.00
Children and Young Peoples Services,Head of Early Help Inclusion & Vulnerable Children.,085957,Secure Management,Supplies and Services,304259,Equipment and Materials,10-Dec-2019,000006847592022,JD SPORTS INTERNET,5941,Equipment-purchase and rental,75.00,0.00,75.00
Children and Young Peoples Services,Head of Early Help Inclusion & Vulnerable Children.,085957,Secure Management,Supplies and Services,304403,Equipment and Materials,10-Dec-2019,000006847592030,AMZNMKTPLACE AMAZON.CO,5999,Other consumables,3.58,0.00,3.58
Children and Young Peoples Services,Head of Early Help Inclusion & Vulnerable Children.,085957,Secure Management,Supplies and Services,304403,Equipment and Materials,10-Dec-2019,000006847592040,AMZNMKTPLACE AMAZON.CO,5999,Other consumables,8.99,1.50,7.49
Regeneration and Local Services,Environmental Services,011060,C&G - Hardwick Park Catering,Supplies and Services,324117,Provisions E324,10-Dec-2019,000006847592080,BATLEYS PERTH,5300,Catering costs - provisions,118.20,19.70,98.50
Regeneration and Local Services,Environmental Services,011060,C&G - Hardwick Park Catering,Supplies and Services,324117,Provisions E324,10-Dec-2019,000006847592080 - 1,BATLEYS PERTH,5300,Catering costs - provisions,59.01,,59.01
Regeneration and Local Services,Corporate Property and Land,021234,Catering - Locomotion,Supplies and Services,324117,Provisions E324,10-Dec-2019,000006847592108,BATLEYS PERTH,5300,Catering costs - provisions,200.34,33.39,166.95
Regeneration and Local Services,Corporate Property and Land,021234,Catering - Locomotion,Supplies and Services,324117,Provisions E324,10-Dec-2019,000006847592108 - 1,BATLEYS PERTH,5300,Catering costs - provisions,7.95,,7.95
Children and Young Peoples Services,Head of Early Help Inclusion & Vulnerable Children.,088101,CLS 0-19 Community Family Hub,Supplies and Services,324117,Provisions E324,10-Dec-2019,000006847592114,CO-OP GROUP 010460,5411,Catering costs - provisions,13.15,0.00,13.15
Regeneration and Local Services,Corporate Property and Land,010525,Catering - Green Lane,Supplies and Services,324117,Provisions E324,10-Dec-2019,000006847592126,BATLEYS PERTH,5300,Catering costs - provisions,-19.20,-3.20,-16.00
Children and Young Peoples Services,Head of Childrens Social Care,085352,Tow Law CU,Supplies and Services,328041,Clothing uniforms and laundry E328,10-Dec-2019,000006847592140,ARGOS LTD,5310,Clothing uniforms and laundry,36.98,0.00,36.98
Children and Young Peoples Services,Head of Childrens Social Care,085352,Tow Law CU,Supplies and Services,328041,Clothing uniforms and laundry E328,10-Dec-2019,000006847592146,PRIMARK 670 GATESHEAD,5651,Clothing uniforms and laundry,10.00,0.00,10.00
Regeneration and Local Services,Development and Housing,031581,Prevention Fund,Supplies and Services,384999,Miscellaneous Expenses,10-Dec-2019,000006847592224,CASTLEDENE SALES AND,6513,Other expenses,88.00,0.00,88.00
Regeneration and Local Services,Environmental Services,010367,C&G - South Grounds Maintenance,Supplies and Services,384999,Miscellaneous Expenses,10-Dec-2019,000006847592370,GUSTHARTS.COM,5046,Other expenses,245.68,40.95,204.73
Children and Young Peoples Services,Head of Early Help Inclusion & Vulnerable Children.,071616,Seaham Childrens Centre,Supplies and Services,328041,Clothing uniforms and laundry E328,10-Dec-2019,000006847592388,ARGOS RETAIL GROUP,5310,Clothing uniforms and laundry,69.60,0.00,69.60
Children and Young Peoples Services,Head of Childrens Social Care,085352,Tow Law CU,Supplies and Services,328041,Clothing uniforms and laundry E328,10-Dec-2019,000006847592436,ARGOS RETAIL GROUP,5310,Clothing uniforms and laundry,80.32,0.00,80.32
Regeneration and Local Services,Environmental Services,031200,North Pennines Core,Supplies and Services,348037,Subsistence E348,10-Dec-2019,000006847592490,YATES,5812,Subsistence,9.74,0.00,9.74
Children and Young Peoples Services,Head of Childrens Social Care,085334,West Rainton Satelite Home,Supplies and Services,328041,Clothing uniforms and laundry E328,10-Dec-2019,000006847592516,B & M RETAIL,5310,Clothing uniforms and laundry,1.49,0.00,1.49
Regeneration and Local Services,Development and Housing,031040,Building Control - Central/East Area,Supplies and Services,332048,Printing Stationery and Gen Off Exps,10-Dec-2019,000006847592618,WWW.THEWORKS.CO.UK,5310,Administrative stationery etc,20.25,0.00,20.25
Regeneration and Local Services,Corporate Property and Land,021324,Catering - Meadowfield,Supplies and Services,324117,Provisions E324,10-Dec-2019,000006847592628,BATLEYS PERTH,5300,Catering costs - provisions,134.04,22.34,111.70
Regeneration and Local Services,Corporate Property and Land,021324,Catering - Meadowfield,Supplies and Services,324117,Provisions E324,10-Dec-2019,000006847592628 - 1,BATLEYS PERTH,5300,Catering costs - provisions,176.69,,176.69
Children and Young Peoples Services,Head of Childrens Social Care,085352,Tow Law CU,Supplies and Services,348037,Subsistence E348,10-Dec-2019,000006847592682,GREGGS PLC,5812,Subsistence,6.90,0.00,6.90
Children and Young Peoples Services,Head of Childrens Social Care,085352,Tow Law CU,Supplies and Services,328041,Clothing uniforms and laundry E328,10-Dec-2019,000006847592688,PRIMARK 670 GATESHEAD,5651,Clothing uniforms and laundry,35.00,0.00,35.00
Resources BK0010,Finance & Transactional Services,065180,Collections,Supplies and Services,338048,Services,10-Dec-2019,000006847592776,HMCOURT-SERVICES.G,9222,Court costs 338048,110.00,0.00,110.00
Children and Young Peoples Services,Head of Childrens Social Care,085380,Operations Manager LAC Resources,Supplies and Services,304221,Equipment and Materials,10-Dec-2019,000006847592808,B & Q 1050,5200,Direct materials,24.00,0.00,24.00
Children and Young Peoples Services,Head of Childrens Social Care,085380,Operations Manager LAC Resources,Supplies and Services,328041,Clothing uniforms and laundry E328,10-Dec-2019,000006847592814,B&M RETAIL,5310,Clothing uniforms and laundry,29.99,0.00,29.99
Children and Young Peoples Services,Head of Childrens Social Care,085380,Operations Manager LAC Resources,Supplies and Services,328041,Clothing uniforms and laundry E328,10-Dec-2019,000006847592820,THE RANGE,5311,Clothing uniforms and laundry,58.90,0.00,58.90
Transformation and Partnerships,Business Support,052986,CYPS - Locality and Operational Support,Supplies and Services,384999,Miscellaneous Expenses,10-Dec-2019,000006847593016,PETERLEE LEISURE C,7997,Other expenses,5.00,0.00,5.00
Children and Young Peoples Services,Head of Early Help Inclusion & Vulnerable Children.,085957,Secure Management,Supplies and Services,328041,Clothing uniforms and laundry E328,10-Dec-2019,000006853642026,NEW LOOK INTERNET,5621,Clothing uniforms and laundry,49.98,8.33,41.65
Children and Young Peoples Services,Head of Education and Skills,071801,Selby Cottage Childcare Centre,Supplies and Services,324117,Provisions E324,11-Dec-2019,000006847591376,TESCO STORES 2278,5411,Catering costs - provisions,144.90,0.00,144.90
Children and Young Peoples Services,Head of Education and Skills,071801,Selby Cottage Childcare Centre,Supplies and Services,324117,Provisions E324,11-Dec-2019,000006847591386,TESCO STORES 2278,5411,Catering costs - provisions,13.50,0.00,13.50
Regeneration and Local Services,Culture Sport and Tourism,054341,Sedgefield Library,Supplies and Services,304403,Equipment and Materials,11-Dec-2019,000006847591424,AMZNMktplace,5999,Other consumables,79.75,13.29,66.46
Resources BK0010,Digital and Customer Services,065432,Web Development Group,Supplies and Services,342053,Computers and Communications,11-Dec-2019,000006847591430,UKFAST.NET LTD,4816,Computer software,354.00,59.00,295.00
Resources BK0010,Legal & Democratic Services,067953,Coroner County Durham & Darlington,Supplies and Services,308011,Furniture,11-Dec-2019,000006847591446,BRITISH HEART FOUNDATI,8398,Furniture repair and replacement,70.00,0.00,70.00
Adult and Health Services,Head of Adults,055302,Durham Pathways,Supplies and Services,324117,Provisions E324,11-Dec-2019,000006847591454,WILKO RETAIL LIMITED,5399,Catering costs - provisions,24.75,4.13,20.62
